FILE,Service Area Categorisation,Service Division Categorisation,Responsible Unit,Unit Code,Expenses Type,Expenses Sub Type,Expense  Code,Detailed Expenses Type,Transaction No,Amount,Invoice Date,Capital/Revenue,Supplier Name
2012 - MAR,Cultural Env Reg&Plan Services,Comm. Safety (Crime Reduction),Crime and Strategy Team                 ,A01100,Third Party Payments          ,Private Contractors           ,EH02,Miscellaneous Hired Services,1,"8,000.00",3/12/2012,R,MERTON AND SUTTON MEDIATION   
2012 - MAR,Cultural Env Reg&Plan Services,Comm. Safety (Crime Reduction),Prolific & Priority Offenders           ,A01105,Third Party Payments          ,Private Contractors           ,EH02,Miscellaneous Hired Services,2,"8,443.74",2/27/2012,R,MET POLICE AUTHORITY          
2012 - MAR,Cultural Env Reg&Plan Services,Comm. Safety (Crime Reduction),Prolific & Priority Offenders           ,A01105,Third Party Payments          ,Private Contractors           ,EH02,Miscellaneous Hired Services,3,"8,443.74",3/16/2012,R,MAYORS OFF / POLICING & CRIME 
2012 - MAR,Cultural Env Reg&Plan Services,Comm. Safety (Crime Reduction),CCTV                                    ,A01200,Supplies & Services           ,Equip Furniture/Materials     ,DA01,Equipment - R & M,4,"10,296.65",3/13/2012,R,EUROVIA INFASTRUCTURE LTD     
2012 - MAR,Cultural Env Reg&Plan Services,Comm. Safety (Crime Reduction),CCTV                                    ,A01200,Supplies & Services           ,Comms and Computing           ,DG15,Network Maintenance,5,"11,214.48",2/1/2012,R,BT REDCARE                    
2012 - MAR,Adult Social Care,Other Adult Services,Access and Engagement                   ,A01302,Third Party Payments          ,Private Contractors           ,EH02,Miscellaneous Hired Services,6,"41,048.00",10/1/2011,R,CRI                           
2012 - MAR,Adult Social Care,Other Adult Services,Access and Engagement                   ,A01302,Third Party Payments          ,Private Contractors           ,EH02,Miscellaneous Hired Services,7,"2,050.24",3/28/2011,R,CRI                           
2012 - MAR,,,CCTV (match funding)                    ,CE002EA,Vehicles Plant Equipment and Machinery,,D3,Equipment,8,"8,757.72",11/29/2011,C,EUROVIA INFRASTRUCTURE LTD    
2012 - MAR,,,CCTV (match funding)                    ,CE002EA,Vehicles Plant Equipment and Machinery,,D3,Equipment,9,"16,850.00",3/13/2012,C,EUROVIA INFASTRUCTURE LTD     
2012 - MAR,,,CCTV - Safer Merton & Parking           ,CE002EG,New Construction Conversion and Renovation,,B4,Site Works - Contractor,10,"1,723.59",3/15/2012,C,FM CONWAY LTD                 
2012 - MAR,,,CCTV - Safer Merton & Parking           ,CE002EG,New Construction Conversion and Renovation,,B4,Site Works - Contractor,11,"5,366.92",3/27/2012,C,FM CONWAY LTD                 
2012 - MAR,,,CCTV - Safer Merton & Parking           ,CE002EG,Vehicles Plant Equipment and Machinery,,D3,Equipment,12,"2,813.04",3/5/2012,C,EUROVIA INFRASTRUCTURE LTD    
2012 - MAR,,,Disabled Facilities Grant DCLG          ,CE004RA,Other Capital Expenditure,,E1,Grants,13,600,3/6/2012,C,CHEAM DISABILITY SOLUTIONS    
2012 - MAR,,,Disabled Facilities Grant DCLG          ,CE004RA,Other Capital Expenditure,,E1,Grants,14,"4,942.00",3/7/2012,C,ASCENDIT LIFTS LTD            
2012 - MAR,,,Disabled Facilities Grant DCLG          ,CE004RA,Other Capital Expenditure,,E1,Grants,15,"6,427.50",3/8/2012,C,ATRIUM DESIGN & INSTALLATION  
2012 - MAR,,,Disabled Facilities Grant DCLG          ,CE004RA,Other Capital Expenditure,,E1,Grants,16,776.27,3/13/2012,C,ABLE 2 OCCUP.THERAPY SERV.LTD 
2012 - MAR,,,Disabled Facilities Grant DCLG          ,CE004RA,Other Capital Expenditure,,E1,Grants,17,516.63,3/19/2012,C,SUTTON STAYING PUT            
2012 - MAR,,,Disabled Facilities Grant DCLG          ,CE004RA,Other Capital Expenditure,,E1,Grants,18,692.85,3/19/2012,C,SUTTON STAYING PUT            
2012 - MAR,,,Disabled Facilities Grant DCLG          ,CE004RA,Other Capital Expenditure,,E1,Grants,19,"11,144.80",3/19/2012,C,REDACTED
2012 - MAR,,,Disabled Facilities Grant DCLG          ,CE004RA,Other Capital Expenditure,,E1,Grants,20,"1,500.00",3/21/2012,C,FREEWAY LIFT SERVICES LTD     
2012 - MAR,,,Disabled Facilities Grant DCLG          ,CE004RA,Other Capital Expenditure,,E1,Grants,21,"8,700.90",3/21/2012,C,REDACTED
2012 - MAR,,,Disabled Facilities Grant DCLG          ,CE004RA,Other Capital Expenditure,,E1,Grants,22,"2,075.00",3/30/2012,C,VIVA VIE LTD                  
2012 - MAR,,,Small Repairs Grant                     ,CE005RA,Other Capital Expenditure,,E1,Grants,23,"3,500.00",3/6/2012,C,WIMBLEDON WINDOW CO.LTD.      
2012 - MAR,,,Small Repairs Grant                     ,CE005RA,Other Capital Expenditure,,E1,Grants,24,"2,440.00",3/13/2012,C,REDACTED
2012 - MAR,,,Small Repairs Grant                     ,CE005RA,Other Capital Expenditure,,E1,Grants,25,"4,000.00",3/15/2012,C,JEL ROOFING                   
2012 - MAR,,,Small Repairs Grant                     ,CE005RA,Other Capital Expenditure,,E1,Grants,26,"4,000.00",3/21/2012,C,HUNTER ROOFING                
2012 - MAR,,,King Georges Playing Field              ,CE006CA,New Construction Conversion and Renovation,,B4,Site Works - Contractor,27,704.64,2/20/2012,C,MORTON FAIRVIEW ELEC SERVICES 
2012 - MAR,,,Highway Tree Inspection                 ,CE006FA,New Construction Conversion and Renovation,,B2,Design and Supervision - Site Surveys,28,"3,040.00",2/2/2012,C,A.COLEBROOK ARBORICULTURE CON.
2012 - MAR,,,B640-Ravensbury Pk Development          ,CE009CD,New Construction Conversion and Renovation,,B4,Site Works - Contractor,29,"12,350.00",3/23/2012,C,REDDINGTON & SONS             
2012 - MAR,,,Parks Investment                        ,CE013SA,New Construction Conversion and Renovation,,B4,Site Works - Contractor,30,"5,640.00",2/23/2012,C,TAYLOR BUILDING COMPANY LTD   
2012 - MAR,,,Parks Investment                        ,CE013SA,New Construction Conversion and Renovation,,B4,Site Works - Contractor,31,985,2/23/2012,C,JUST METAL UK LTD             
2012 - MAR,,,Parks Investment                        ,CE013SA,New Construction Conversion and Renovation,,B4,Site Works - Contractor,32,"1,190.00",3/12/2012,C,MORTON FAIRVIEW ELEC SERVICES 
2012 - MAR,,,Parks Investment                        ,CE013SA,New Construction Conversion and Renovation,,B4,Site Works - Contractor,33,810,3/24/2012,C,JUST METAL UK LTD             
2012 - MAR,,,Parks Investment                        ,CE013SA,New Construction Conversion and Renovation,,B4,Site Works - Contractor,34,"2,630.00",3/28/2012,C,THE CRESCENT FENCING CO.      
2012 - MAR,,,Trees for Cities                        ,CE020SA,Acquisition of Land and Existing Buildings,,A4,Other Acquisition Costs,35,"9,286.00",3/23/2012,C,TREES INC                     
2012 - MAR,,,Bridge Inspection                       ,CE021SA,New Construction Conversion and Renovation,,B1,Design and Supervision - Consultants Fee,36,"3,875.00",3/16/2012,C,AECOM LIMITED                 
2012 - MAR,,,Bridge Inspection                       ,CE021SA,New Construction Conversion and Renovation,,B1,Design and Supervision - Consultants Fee,37,"4,600.00",3/16/2012,C,AECOM LIMITED                 
2012 - MAR,,,Bridge Inspection                       ,CE021SA,New Construction Conversion and Renovation,,B3,Design and Supervision - Other Expenses,38,"3,318.09",3/8/2012,C,NETWORK RAIL                  
2012 - MAR,,,Bridge Inspection                       ,CE021SA,New Construction Conversion and Renovation,,B4,Site Works - Contractor,39,"2,852.71",1/31/2012,C,FM CONWAY LTD                 
2012 - MAR,,,Bridge Inspection                       ,CE021SA,New Construction Conversion and Renovation,,B4,Site Works - Contractor,40,"1,162.21",2/17/2012,C,FM CONWAY LTD                 
2012 - MAR,,,Bridge Inspection                       ,CE021SA,New Construction Conversion and Renovation,,B4,Site Works - Contractor,41,"1,988.33",2/29/2012,C,FM CONWAY LTD                 
2012 - MAR,,,Bridge Inspection                       ,CE021SA,New Construction Conversion and Renovation,,B4,Site Works - Contractor,42,"3,413.88",3/21/2012,C,FM CONWAY LTD                 
2012 - MAR,,,Bushey Road Bridge Repair               ,CE023FA,New Construction Conversion and Renovation,,B4,Site Works - Contractor,43,"41,845.45",1/31/2012,C,FM CONWAY LTD                 
2012 - MAR,,,Bushey Road Bridge Repair               ,CE023FA,New Construction Conversion and Renovation,,B4,Site Works - Contractor,44,"39,310.00",2/29/2012,C,FM CONWAY LTD                 
2012 - MAR,,,Bushey Road Bridge Repair               ,CE023FA,New Construction Conversion and Renovation,,B4,Site Works - Contractor,45,"3,106.33",3/21/2012,C,FM CONWAY LTD                 
2012 - MAR,,,Surface Water Drainage                  ,CE024FA,New Construction Conversion and Renovation,,B4,Site Works - Contractor,46,"3,539.12",2/17/2012,C,FM CONWAY LTD                 
2012 - MAR,,,Surface Water Drainage                  ,CE024FA,New Construction Conversion and Renovation,,B4,Site Works - Contractor,47,533.81,3/28/2012,C,FM CONWAY LTD                 
2012 - MAR,,,Surface Water Drainage                  ,CE024FA,New Construction Conversion and Renovation,,B4,Site Works - Contractor,48,"2,196.84",3/27/2012,C,FM CONWAY LTD                 
2012 - MAR,,,Surface Water Drainage                  ,CE024FA,New Construction Conversion and Renovation,,B4,Site Works - Contractor,49,"7,007.63",3/27/2012,C,FM CONWAY LTD                 
2012 - MAR,,,Highways bridges & structures           ,CE025FA,New Construction Conversion and Renovation,,B1,Design and Supervision - Consultants Fee,50,"1,500.00",2/22/2012,C,ATKINS LIMITED                
2012 - MAR,,,Highways bridges & structures           ,CE025FA,New Construction Conversion and Renovation,,B1,Design and Supervision - Consultants Fee,51,"4,966.70",3/15/2012,C,AECOM LIMITED                 
2012 - MAR,,,Highways bridges & structures           ,CE025FA,New Construction Conversion and Renovation,,B1,Design and Supervision - Consultants Fee,52,"4,480.97",3/16/2012,C,ATKINS LIMITED                
2012 - MAR,,,Highways bridges & structures           ,CE025FA,New Construction Conversion and Renovation,,B1,Design and Supervision - Consultants Fee,53,"9,480.00",3/16/2012,C,ATKINS LIMITED                
2012 - MAR,,,Highways bridges & structures           ,CE025FA,New Construction Conversion and Renovation,,B1,Design and Supervision - Consultants Fee,54,"5,009.46",3/16/2012,C,AECOM LIMITED                 
2012 - MAR,,,Highways bridges & structures           ,CE025FA,New Construction Conversion and Renovation,,B3,Design and Supervision - Other Expenses,55,"18,511.67",2/14/2012,C,NETWORK RAIL                  
2012 - MAR,,,Highways bridges & structures           ,CE025FA,New Construction Conversion and Renovation,,B4,Site Works - Contractor,56,"9,314.95",1/31/2012,C,FM CONWAY LTD                 
2012 - MAR,,,Highways bridges & structures           ,CE025FA,New Construction Conversion and Renovation,,B4,Site Works - Contractor,57,"10,364.95",1/31/2012,C,FM CONWAY LTD                 
2012 - MAR,,,Highways bridges & structures           ,CE025FA,New Construction Conversion and Renovation,,B4,Site Works - Contractor,58,"29,219.35",1/31/2012,C,FM CONWAY LTD                 
2012 - MAR,,,Highways bridges & structures           ,CE025FA,New Construction Conversion and Renovation,,B4,Site Works - Contractor,59,"23,897.68",2/17/2012,C,FM CONWAY LTD                 
2012 - MAR,,,Highways bridges & structures           ,CE025FA,New Construction Conversion and Renovation,,B4,Site Works - Contractor,60,"23,957.66",2/17/2012,C,FM CONWAY LTD                 
2012 - MAR,,,Highways bridges & structures           ,CE025FA,New Construction Conversion and Renovation,,B4,Site Works - Contractor,61,"9,351.19",2/29/2012,C,FM CONWAY LTD                 
2012 - MAR,,,Highways bridges & structures           ,CE025FA,New Construction Conversion and Renovation,,B4,Site Works - Contractor,62,"6,209.97",2/29/2012,C,FM CONWAY LTD                 
2012 - MAR,,,Highways bridges & structures           ,CE025FA,New Construction Conversion and Renovation,,B4,Site Works - Contractor,63,"6,909.97",2/29/2012,C,FM CONWAY LTD                 
2012 - MAR,,,Highways bridges & structures           ,CE025FA,New Construction Conversion and Renovation,,B4,Site Works - Contractor,64,"19,479.57",2/29/2012,C,FM CONWAY LTD                 
2012 - MAR,,,Highways bridges & structures           ,CE025FA,New Construction Conversion and Renovation,,B4,Site Works - Contractor,65,"20,021.97",3/21/2012,C,FM CONWAY LTD                 
2012 - MAR,,,Borough Roads Maintenance               ,CE026FA,New Construction Conversion and Renovation,,B1,Design and Supervision - Consultants Fee,66,"3,500.00",3/23/2012,C,JACOBS UK LIMITED             
2012 - MAR,,,Borough Roads Maintenance               ,CE026FA,New Construction Conversion and Renovation,,B1,Design and Supervision - Consultants Fee,67,"2,750.00",3/23/2012,C,JACOBS UK LIMITED             
2012 - MAR,,,Borough Roads Maintenance               ,CE026FA,New Construction Conversion and Renovation,,B4,Site Works - Contractor,68,"8,740.25",3/7/2012,C,FM CONWAY LTD                 
2012 - MAR,,,Borough Roads Maintenance               ,CE026FA,New Construction Conversion and Renovation,,B4,Site Works - Contractor,69,"55,000.00",3/27/2012,C,FM CONWAY LTD                 
2012 - MAR,,,Maintain AntiSkid and Coloured          ,CE027FA,New Construction Conversion and Renovation,,B4,Site Works - Contractor,70,"2,563.00",3/7/2012,C,FM CONWAY LTD                 
2012 - MAR,,,Public Right of Way Improvemen          ,CE028FA,New Construction Conversion and Renovation,,B4,Site Works - Contractor,71,"5,600.00",3/15/2012,C,FM CONWAY LTD                 
2012 - MAR,,,Public Right of Way Improvemen          ,CE028FA,New Construction Conversion and Renovation,,B4,Site Works - Contractor,72,"7,315.00",3/26/2012,C,VEOLIA ES (UK) LIMITED        
2012 - MAR,,,Repairs to Footways                     ,CE029FA,New Construction Conversion and Renovation,,B4,Site Works - Contractor,73,"11,318.00",3/7/2012,C,FM CONWAY LTD                 
2012 - MAR,,,Repairs to Footways                     ,CE029FA,New Construction Conversion and Renovation,,B4,Site Works - Contractor,74,"25,000.00",2/17/2012,C,FM CONWAY LTD                 
2012 - MAR,,,Repairs to Footways                     ,CE029FA,New Construction Conversion and Renovation,,B4,Site Works - Contractor,75,"10,000.00",3/21/2012,C,FM CONWAY LTD                 
2012 - MAR,,,Repairs to Footways                     ,CE029FA,New Construction Conversion and Renovation,,B4,Site Works - Contractor,76,"1,750.00",3/28/2012,C,FM CONWAY LTD                 
2012 - MAR,,,Repairs to Footways                     ,CE029FA,New Construction Conversion and Renovation,,B4,Site Works - Contractor,77,"18,091.00",3/28/2012,C,FM CONWAY LTD                 
2012 - MAR,,,Repairs to Footways                     ,CE029FA,New Construction Conversion and Renovation,,B4,Site Works - Contractor,78,"1,500.00",3/28/2012,C,FM CONWAY LTD                 
2012 - MAR,,,Repairs to Footways                     ,CE029FA,New Construction Conversion and Renovation,,B4,Site Works - Contractor,79,"1,880.00",3/28/2012,C,FM CONWAY LTD                 
2012 - MAR,,,Repairs to Footways                     ,CE029FA,New Construction Conversion and Renovation,,B4,Site Works - Contractor,80,"53,000.00",3/28/2012,C,FM CONWAY LTD                 
2012 - MAR,,,Repairs to Footways                     ,CE029FA,New Construction Conversion and Renovation,,B4,Site Works - Contractor,81,"16,947.12",3/28/2012,C,FM CONWAY LTD                 
2012 - MAR,,,Repairs to Footways                     ,CE029FA,New Construction Conversion and Renovation,,B4,Site Works - Contractor,82,"14,490.09",3/28/2012,C,FM CONWAY LTD                 
2012 - MAR,,,Wimbledon Bridge                        ,CE032FA,New Construction Conversion and Renovation,,B4,Site Works - Contractor,83,"1,325.05",2/17/2012,C,FM CONWAY LTD                 
2012 - MAR,,,Wimbledon Bridge                        ,CE032FA,New Construction Conversion and Renovation,,B4,Site Works - Contractor,84,"51,348.50",2/29/2012,C,FM CONWAY LTD                 
2012 - MAR,,,Wimbledon Bridge                        ,CE032FA,New Construction Conversion and Renovation,,B4,Site Works - Contractor,85,"8,339.37",3/21/2012,C,FM CONWAY LTD                 
2012 - MAR,,,B497/8 Lombard Rd Improvements          ,CE034FA,New Construction Conversion and Renovation,,B4,Site Works - Contractor,86,600,2/15/2012,C,MAY GURNEY LTD T/A CARTLEDGE  
2012 - MAR,,,Leisure Centre Plant & Machine          ,CE038MA,New Construction Conversion and Renovation,,B1,Design and Supervision - Consultants Fee,87,"21,678.89",2/2/2012,C,COMPLEMENT CONSULTING LIMITED 
2012 - MAR,,,Leisure Centre Plant & Machine          ,CE038MA,New Construction Conversion and Renovation,,B4,Site Works - Contractor,88,"2,139.20",3/15/2012,C,COFELY LIMITED                
2012 - MAR,,,Leisure Centre Plant & Machine          ,CE038MA,New Construction Conversion and Renovation,,B4,Site Works - Contractor,89,"2,170.56",3/16/2012,C,COFELY LIMITED                
2012 - MAR,,,Leisure Centre Plant & Machine          ,CE038MA,New Construction Conversion and Renovation,,B4,Site Works - Contractor,90,"1,030.00",3/20/2012,C,LIFESTYLE WINDOW SYSTEMS      
2012 - MAR,,,Leisure Centre Plant & Machine          ,CE038MA,New Construction Conversion and Renovation,,B4,Site Works - Contractor,91,"1,984.64",3/16/2012,C,COFELY LIMITED                
2012 - MAR,,,Leisure Centre Plant & Machine          ,CE038MA,New Construction Conversion and Renovation,,B5,Site Works - Suppliers,92,"1,835.00",2/28/2012,C,NEW WIMBLEDON THEATRE         
2012 - MAR,,,Morden Park changing rooms              ,CE045AB,New Construction Conversion and Renovation,,B4,Site Works - Contractor,93,"2,077.00",12/20/2011,C,TAYLOR BUILDING COMPANY LTD   
2012 - MAR,,,Morden Park changing rooms              ,CE045AB,New Construction Conversion and Renovation,,B4,Site Works - Contractor,94,"1,157.00",1/5/2012,C,TAYLOR BUILDING COMPANY LTD   
2012 - MAR,,,Morden Park changing rooms              ,CE045AB,New Construction Conversion and Renovation,,B4,Site Works - Contractor,95,"1,591.00",2/22/2012,C,E.L.F. ELECTRIC               
2012 - MAR,,,Morden Park changing rooms              ,CE045AB,New Construction Conversion and Renovation,,B4,Site Works - Contractor,96,750.36,2/28/2012,C,MORTON FAIRVIEW ELEC SERVICES 
2012 - MAR,,,Morden Park changing rooms              ,CE045AB,New Construction Conversion and Renovation,,B4,Site Works - Contractor,97,"1,365.00",12/20/2011,C,TAYLOR BUILDING COMPANY LTD   
2012 - MAR,,,Morden Park changing rooms              ,CE045AB,New Construction Conversion and Renovation,,B4,Site Works - Contractor,98,519,3/23/2012,C,REDDINGTON & SONS             
2012 - MAR,,,Morden Park changing rooms              ,CE045AB,New Construction Conversion and Renovation,,B4,Site Works - Contractor,99,"4,510.00",3/28/2012,C,THE CRESCENT FENCING CO.      
2012 - MAR,,,CPZ - Parking Management                ,CE046EA,New Construction Conversion and Renovation,,B4,Site Works - Contractor,100,"1,109.68",2/17/2012,C,FM CONWAY LTD                 
2012 - MAR,,,CPZ - Parking Management                ,CE046EA,New Construction Conversion and Renovation,,B4,Site Works - Contractor,101,"17,147.98",3/7/2012,C,FM CONWAY LTD                 
2012 - MAR,,,CPZ - Parking Management                ,CE046EA,New Construction Conversion and Renovation,,B4,Site Works - Contractor,102,"2,844.65",3/15/2012,C,FM CONWAY LTD                 
2012 - MAR,,,CPZ - Parking Management                ,CE046EA,New Construction Conversion and Renovation,,B4,Site Works - Contractor,103,"3,232.13",3/15/2012,C,FM CONWAY LTD                 
2012 - MAR,,,CPZ - Parking Management                ,CE046EA,New Construction Conversion and Renovation,,B4,Site Works - Contractor,104,"1,800.00",3/27/2012,C,FM CONWAY LTD                 
2012 - MAR,,,CPZ - Parking Management                ,CE046EA,New Construction Conversion and Renovation,,B4,Site Works - Contractor,105,839.76,3/27/2012,C,FM CONWAY LTD                 
2012 - MAR,,,CPZ - Parking Management                ,CE046EA,New Construction Conversion and Renovation,,B4,Site Works - Contractor,106,"1,000.00",3/27/2012,C,FM CONWAY LTD                 
2012 - MAR,,,CPZ - Parking Management                ,CE046EA,New Construction Conversion and Renovation,,B4,Site Works - Contractor,107,"2,880.60",3/28/2012,C,FM CONWAY LTD                 
2012 - MAR,,,CPZ - Parking Management                ,CE046EA,New Construction Conversion and Renovation,,B4,Site Works - Contractor,108,"2,613.00",3/28/2012,C,FM CONWAY LTD                 
2012 - MAR,,,CPZ - Parking Management                ,CE046EA,New Construction Conversion and Renovation,,B4,Site Works - Contractor,109,"1,668.86",3/28/2012,C,FM CONWAY LTD                 
2012 - MAR,,,CPZ - Parking Management                ,CE046EA,New Construction Conversion and Renovation,,B4,Site Works - Contractor,110,"2,385.35",3/30/2012,C,FM CONWAY LTD                 
2012 - MAR,,,CPZ - Parking Management                ,CE046EA,New Construction Conversion and Renovation,,B4,Site Works - Contractor,111,"8,837.68",3/28/2012,C,FM CONWAY LTD                 
2012 - MAR,,,CPZ - Parking Management                ,CE046EA,New Construction Conversion and Renovation,,B4,Site Works - Contractor,112,"3,554.17",3/27/2012,C,FM CONWAY LTD                 
2012 - MAR,,,CPZ - Parking Management                ,CE046EA,New Construction Conversion and Renovation,,B4,Site Works - Contractor,113,904.87,3/30/2012,C,FM CONWAY LTD                 
2012 - MAR,,,CPZ - Parking Management                ,CE046EA,New Construction Conversion and Renovation,,B4,Site Works - Contractor,114,"24,774.95",3/27/2012,C,FM CONWAY LTD                 
2012 - MAR,,,CPZ signage                             ,CE046EB,Vehicles Plant Equipment and Machinery,,D3,Equipment,115,"2,250.00",1/11/2012,C,TEASDALE GROUP LTD            
2012 - MAR,,,50 Montgomery Close                     ,CE047AA,New Construction Conversion and Renovation,,B4,Site Works - Contractor,116,820.73,1/19/2012,C,COFELY LIMITED                
2012 - MAR,,,Low Carbon Zone                         ,CE052FA,Acquisition of Land and Existing Buildings,,A4,Other Acquisition Costs,117,"3,500.00",3/16/2012,C,CLARITY@2AM                   
2012 - MAR,,,Low Carbon Zone                         ,CE052FA,Acquisition of Land and Existing Buildings,,A4,Other Acquisition Costs,118,"1,500.00",3/14/2012,C,PAULA OWEN CONSULTING         
2012 - MAR,,,Low Carbon Zone                         ,CE052FA,Vehicles Plant Equipment and Machinery,,D3,Equipment,119,"2,000.00",3/16/2012,C,PORTABLE APPLIANCE SAFETY SERV
2012 - MAR,,,Climate Change Initiatives              ,CE052MA,New Construction Conversion and Renovation,,B4,Site Works - Contractor,120,"242,809.96",2/29/2012,C,REDACTED
2012 - MAR,,,Climate Change Initiatives              ,CE052MA,New Construction Conversion and Renovation,,B4,Site Works - Contractor,121,"2,689.02",3/26/2012,C,REDACTED
2012 - MAR,,,B633 - Solar PV Deen City Farm          ,CE052RB,New Construction Conversion and Renovation,,B4,Site Works - Contractor,122,"17,375.94",2/29/2012,C,REDACTED
2012 - MAR,,,East Merton Investment                  ,CE058FA,Acquisition of Land and Existing Buildings,,A4,Other Acquisition Costs,123,"8,965.00",3/20/2012,C,TRANSPORT & TRAVEL RESEARCH   
2012 - MAR,,,Town Centre Investment                  ,CE061FB,New Construction Conversion and Renovation,,B4,Site Works - Contractor,124,811.19,3/12/2012,C,MAY GURNEY LTD T/A CARTLEDGE  
2012 - MAR,,,Town Centre Investment                  ,CE061FB,New Construction Conversion and Renovation,,B4,Site Works - Contractor,125,"22,647.50",3/27/2012,C,MAY GURNEY LTD T/A CARTLEDGE  
2012 - MAR,,,Town Centre Investment                  ,CE061FB,New Construction Conversion and Renovation,,B4,Site Works - Contractor,126,"20,161.69",3/28/2012,C,MAY GURNEY LTD T/A CARTLEDGE  
2012 - MAR,,,Town Centre Investment                  ,CE061FB,New Construction Conversion and Renovation,,B6,Site Works - Other Costs,127,685,2/16/2012,C,UK POWER NETWORKS (OPERATIONS)
2012 - MAR,,,Town Centre Investment                  ,CE061FB,New Construction Conversion and Renovation,,B6,Site Works - Other Costs,128,890,2/16/2012,C,UK POWER NETWORKS (OPERATIONS)
2012 - MAR,,,Improve markings & road signs           ,CE066EA,New Construction Conversion and Renovation,,B4,Site Works - Contractor,129,506.71,2/17/2012,C,FM CONWAY LTD                 
2012 - MAR,,,Improve markings & road signs           ,CE066EA,New Construction Conversion and Renovation,,B4,Site Works - Contractor,130,"1,879.17",2/24/2012,C,MAY GURNEY LTD T/A CARTLEDGE  
2012 - MAR,,,Improve markings & road signs           ,CE066EA,New Construction Conversion and Renovation,,B4,Site Works - Contractor,131,863.22,2/24/2012,C,MAY GURNEY LTD T/A CARTLEDGE  
2012 - MAR,,,Improve markings & road signs           ,CE066EA,New Construction Conversion and Renovation,,B4,Site Works - Contractor,132,"10,482.97",2/15/2012,C,MAY GURNEY LTD T/A CARTLEDGE  
2012 - MAR,,,Improve markings & road signs           ,CE066EA,New Construction Conversion and Renovation,,B4,Site Works - Contractor,133,"4,347.32",3/15/2012,C,FM CONWAY LTD                 
2012 - MAR,,,Improve markings & road signs           ,CE066EA,New Construction Conversion and Renovation,,B4,Site Works - Contractor,134,"1,774.64",3/26/2012,C,MAY GURNEY LTD T/A CARTLEDGE  
2012 - MAR,,,Improve markings & road signs           ,CE066EA,New Construction Conversion and Renovation,,B6,Site Works - Other Costs,135,643,3/12/2012,C,UK POWER NETWORKS (OPERATIONS)
2012 - MAR,,,Improve markings & road signs           ,CE066EA,New Construction Conversion and Renovation,,B6,Site Works - Other Costs,136,643,3/12/2012,C,UK POWER NETWORKS (OPERATIONS)
2012 - MAR,,,Improve markings & road signs           ,CE066EA,New Construction Conversion and Renovation,,B6,Site Works - Other Costs,137,"2,572.00",3/12/2012,C,UK POWER NETWORKS (OPERATIONS)
2012 - MAR,,,Improve markings & road signs           ,CE066EA,New Construction Conversion and Renovation,,B6,Site Works - Other Costs,138,643,3/14/2012,C,UK POWER NETWORKS (OPERATIONS)
2012 - MAR,,,Renewal of WTC Paving                   ,CE066FC,New Construction Conversion and Renovation,,B1,Design and Supervision - Consultants Fee,139,"1,500.00",3/23/2012,C,REDACTED
2012 - MAR,,,Renewal of WTC Paving                   ,CE066FC,New Construction Conversion and Renovation,,B4,Site Works - Contractor,140,"7,334.00",3/15/2012,C,VIRGIN MEDIA PAYMENTS LTD     
2012 - MAR,,,Renewal of WTC Paving                   ,CE066FC,New Construction Conversion and Renovation,,B4,Site Works - Contractor,141,"25,403.00",3/21/2012,C,FM CONWAY LTD                 
2012 - MAR,,,Renewal of WTC Paving                   ,CE066FC,New Construction Conversion and Renovation,,B4,Site Works - Contractor,142,"33,597.00",3/21/2012,C,FM CONWAY LTD                 
2012 - MAR,,,Renewal of WTC Paving                   ,CE066FC,New Construction Conversion and Renovation,,B4,Site Works - Contractor,143,"5,963.97",3/21/2012,C,FM CONWAY LTD                 
2012 - MAR,,,Renewal of WTC Paving                   ,CE066FC,New Construction Conversion and Renovation,,B4,Site Works - Contractor,144,"3,043.59",3/21/2012,C,FM CONWAY LTD                 
2012 - MAR,,,Renewal of WTC Paving                   ,CE066FC,New Construction Conversion and Renovation,,B4,Site Works - Contractor,145,"1,000.00",3/1/2012,C,FM CONWAY LTD                 
2012 - MAR,,,Renewal of WTC Paving                   ,CE066FC,New Construction Conversion and Renovation,,B4,Site Works - Contractor,146,"6,800.00",3/21/2012,C,FM CONWAY LTD                 
2012 - MAR,,,Renewal of WTC Paving                   ,CE066FC,New Construction Conversion and Renovation,,B4,Site Works - Contractor,147,"15,000.00",3/1/2012,C,FM CONWAY LTD                 
2012 - MAR,,,Renewal of WTC Paving                   ,CE066FC,New Construction Conversion and Renovation,,B4,Site Works - Contractor,148,"1,679.87",3/27/2012,C,FM CONWAY LTD                 
2012 - MAR,,,Renewal of WTC Paving                   ,CE066FC,New Construction Conversion and Renovation,,B4,Site Works - Contractor,149,591.98,3/28/2012,C,FM CONWAY LTD                 
2012 - MAR,,,Renewal of WTC Paving                   ,CE066FC,New Construction Conversion and Renovation,,B5,Site Works - Suppliers,150,"5,178.60",2/29/2012,C,GLENDALE COUNTRYSIDE LTD      
2012 - MAR,,,Renewal of WTC Paving                   ,CE066FC,New Construction Conversion and Renovation,,B5,Site Works - Suppliers,151,"2,432.65",3/26/2012,C,GLENDALE COUNTRYSIDE LTD      
2012 - MAR,,,Renewal of WTC Paving                   ,CE066FC,New Construction Conversion and Renovation,,B6,Site Works - Other Costs,152,936.12,11/25/2011,C,TRANSPORT FOR LONDON          
2012 - MAR,,,Renewal of WTC Paving                   ,CE066FC,New Construction Conversion and Renovation,,B6,Site Works - Other Costs,153,"8,655.42",3/27/2012,C,TRANSPORT FOR LONDON          
2012 - MAR,,,Renewal of WTC Paving                   ,CE066FC,Other Capital Expenditure,,E4,TFL Other,154,"1,790.00",3/20/2012,C,CYCLEHOOP LTD                 
2012 - MAR,,,Street scene enhancements               ,CE066FE,New Construction Conversion and Renovation,,B1,Design and Supervision - Consultants Fee,155,"10,600.00",3/19/2012,C,MARCUS BEALE ARCHITECTS       
2012 - MAR,,,Street scene enhancements               ,CE066FE,New Construction Conversion and Renovation,,B1,Design and Supervision - Consultants Fee,156,"5,500.00",3/19/2012,C,MARCUS BEALE ARCHITECTS       
2012 - MAR,,,Street scene enhancements               ,CE066FE,New Construction Conversion and Renovation,,B4,Site Works - Contractor,157,"9,215.07",3/28/2012,C,MAY GURNEY LTD T/A CARTLEDGE  
2012 - MAR,,,B591a Street Scene Improvement          ,CE066FH,New Construction Conversion and Renovation,,B4,Site Works - Contractor,158,"31,922.40",2/17/2012,C,FM CONWAY LTD                 
2012 - MAR,,,B591a Street Scene Improvement          ,CE066FH,New Construction Conversion and Renovation,,B4,Site Works - Contractor,159,"17,035.56",2/17/2012,C,FM CONWAY LTD                 
2012 - MAR,,,B591a Street Scene Improvement          ,CE066FH,New Construction Conversion and Renovation,,B4,Site Works - Contractor,160,"6,211.36",2/24/2012,C,MAY GURNEY LTD T/A CARTLEDGE  
2012 - MAR,,,B591a Street Scene Improvement          ,CE066FH,New Construction Conversion and Renovation,,B4,Site Works - Contractor,161,"1,600.00",2/24/2012,C,MAY GURNEY LTD T/A CARTLEDGE  
2012 - MAR,,,Street Tree Programme                   ,CE067FA,New Construction Conversion and Renovation,,B4,Site Works - Contractor,162,"14,406.15",2/17/2012,C,FM CONWAY LTD                 
2012 - MAR,,,Street Tree Programme                   ,CE067FA,New Construction Conversion and Renovation,,B4,Site Works - Contractor,163,"22,475.00",2/9/2012,C,VEOLIA ES (UK) LIMITED        
2012 - MAR,,,Street Tree Programme                   ,CE067FA,New Construction Conversion and Renovation,,B4,Site Works - Contractor,164,"6,670.35",3/22/2012,C,VEOLIA ES (UK) LIMITED        
2012 - MAR,,,Street Tree Programme                   ,CE067FA,New Construction Conversion and Renovation,,B4,Site Works - Contractor,165,"40,637.05",3/22/2012,C,VEOLIA ES (UK) LIMITED        
2012 - MAR,,,Street Tree Programme                   ,CE067FA,New Construction Conversion and Renovation,,B4,Site Works - Contractor,166,"10,000.00",3/22/2012,C,VEOLIA ES (UK) LIMITED        
2012 - MAR,,,Street Lighting Replacement Pr          ,CE068FA,New Construction Conversion and Renovation,,B4,Site Works - Contractor,167,"1,587.60",3/26/2012,C,MAY GURNEY LTD T/A CARTLEDGE  
2012 - MAR,,,Street Lighting Replacement Pr          ,CE068FA,New Construction Conversion and Renovation,,B4,Site Works - Contractor,168,"44,000.00",3/26/2012,C,MAY GURNEY LTD T/A CARTLEDGE  
2012 - MAR,,,Street Lighting Replacement Pr          ,CE068FA,New Construction Conversion and Renovation,,B4,Site Works - Contractor,169,"1,000.00",3/26/2012,C,MAY GURNEY LTD T/A CARTLEDGE  
2012 - MAR,,,Street Lighting Replacement Pr          ,CE068FA,New Construction Conversion and Renovation,,B4,Site Works - Contractor,170,"47,000.00",3/26/2012,C,MAY GURNEY LTD T/A CARTLEDGE  
2012 - MAR,,,Street Lighting Replacement Pr          ,CE068FA,New Construction Conversion and Renovation,,B4,Site Works - Contractor,171,"2,000.00",3/27/2012,C,MAY GURNEY LTD T/A CARTLEDGE  
2012 - MAR,,,Street Lighting Replacement Pr          ,CE068FA,New Construction Conversion and Renovation,,B4,Site Works - Contractor,172,"2,000.00",3/27/2012,C,MAY GURNEY LTD T/A CARTLEDGE  
2012 - MAR,,,Street Light Energy Reduction           ,CE068FB,New Construction Conversion and Renovation,,B4,Site Works - Contractor,173,"2,165.01",2/24/2012,C,MAY GURNEY LTD T/A CARTLEDGE  
2012 - MAR,,,Street Light Energy Reduction           ,CE068FB,New Construction Conversion and Renovation,,B4,Site Works - Contractor,174,"6,042.36",2/15/2012,C,MAY GURNEY LTD T/A CARTLEDGE  
2012 - MAR,,,Street Light Energy Reduction           ,CE068FB,New Construction Conversion and Renovation,,B4,Site Works - Contractor,175,"6,792.63",2/15/2012,C,MAY GURNEY LTD T/A CARTLEDGE  
2012 - MAR,,,Street Light Energy Reduction           ,CE068FB,New Construction Conversion and Renovation,,B4,Site Works - Contractor,176,"2,068.79",2/15/2012,C,MAY GURNEY LTD T/A CARTLEDGE  
2012 - MAR,,,Street Light Energy Reduction           ,CE068FB,New Construction Conversion and Renovation,,B4,Site Works - Contractor,177,761.18,2/15/2012,C,MAY GURNEY LTD T/A CARTLEDGE  
2012 - MAR,,,Street Light Energy Reduction           ,CE068FB,New Construction Conversion and Renovation,,B4,Site Works - Contractor,178,"4,990.68",2/24/2012,C,MAY GURNEY LTD T/A CARTLEDGE  
2012 - MAR,,,Street Light Energy Reduction           ,CE068FB,New Construction Conversion and Renovation,,B4,Site Works - Contractor,179,"3,527.04",2/24/2012,C,MAY GURNEY LTD T/A CARTLEDGE  
2012 - MAR,,,Street Light Energy Reduction           ,CE068FB,New Construction Conversion and Renovation,,B4,Site Works - Contractor,180,"3,404.56",2/24/2012,C,MAY GURNEY LTD T/A CARTLEDGE  
2012 - MAR,,,Street Light Energy Reduction           ,CE068FB,New Construction Conversion and Renovation,,B4,Site Works - Contractor,181,"1,016.97",2/15/2012,C,MAY GURNEY LTD T/A CARTLEDGE  
2012 - MAR,,,Street Light Energy Reduction           ,CE068FB,New Construction Conversion and Renovation,,B4,Site Works - Contractor,182,"3,077.72",2/24/2012,C,MAY GURNEY LTD T/A CARTLEDGE  
2012 - MAR,,,Street Light Energy Reduction           ,CE068FB,New Construction Conversion and Renovation,,B4,Site Works - Contractor,183,642.13,3/20/2012,C,MAY GURNEY LTD T/A CARTLEDGE  
2012 - MAR,,,Street Light Energy Reduction           ,CE068FB,New Construction Conversion and Renovation,,B4,Site Works - Contractor,184,"2,624.24",3/15/2012,C,MAY GURNEY LTD T/A CARTLEDGE  
2012 - MAR,,,Street Light Energy Reduction           ,CE068FB,New Construction Conversion and Renovation,,B4,Site Works - Contractor,185,"5,320.27",3/15/2012,C,MAY GURNEY LTD T/A CARTLEDGE  
2012 - MAR,,,Street Light Energy Reduction           ,CE068FB,New Construction Conversion and Renovation,,B4,Site Works - Contractor,186,"3,920.25",3/15/2012,C,MAY GURNEY LTD T/A CARTLEDGE  
2012 - MAR,,,Street Light Energy Reduction           ,CE068FB,New Construction Conversion and Renovation,,B4,Site Works - Contractor,187,"5,467.47",3/15/2012,C,MAY GURNEY LTD T/A CARTLEDGE  
2012 - MAR,,,Street Light Energy Reduction           ,CE068FB,New Construction Conversion and Renovation,,B4,Site Works - Contractor,188,977.87,3/15/2012,C,MAY GURNEY LTD T/A CARTLEDGE  
2012 - MAR,,,Street Light Energy Reduction           ,CE068FB,New Construction Conversion and Renovation,,B4,Site Works - Contractor,189,"1,082.88",3/15/2012,C,MAY GURNEY LTD T/A CARTLEDGE  
2012 - MAR,,,Street Light Energy Reduction           ,CE068FB,New Construction Conversion and Renovation,,B4,Site Works - Contractor,190,990.16,3/15/2012,C,MAY GURNEY LTD T/A CARTLEDGE  
2012 - MAR,,,Street Light Energy Reduction           ,CE068FB,New Construction Conversion and Renovation,,B4,Site Works - Contractor,191,"5,123.95",3/26/2012,C,MAY GURNEY LTD T/A CARTLEDGE  
2012 - MAR,,,Street Light Energy Reduction           ,CE068FB,New Construction Conversion and Renovation,,B4,Site Works - Contractor,192,"7,155.18",3/23/2012,C,MAY GURNEY LTD T/A CARTLEDGE  
2012 - MAR,,,Street Light Energy Reduction           ,CE068FB,New Construction Conversion and Renovation,,B4,Site Works - Contractor,193,"44,000.00",3/26/2012,C,MAY GURNEY LTD T/A CARTLEDGE  
2012 - MAR,,,Street Light Energy Reduction           ,CE068FB,New Construction Conversion and Renovation,,B4,Site Works - Contractor,194,"25,000.00",3/26/2012,C,MAY GURNEY LTD T/A CARTLEDGE  
2012 - MAR,,,Street Light Energy Reduction           ,CE068FB,New Construction Conversion and Renovation,,B4,Site Works - Contractor,195,"1,230.50",3/30/2012,C,FM CONWAY LTD                 
2012 - MAR,,,Street Light Energy Reduction           ,CE068FB,New Construction Conversion and Renovation,,B4,Site Works - Contractor,196,"1,289.41",3/26/2012,C,MAY GURNEY LTD T/A CARTLEDGE  
2012 - MAR,,,Street Light Energy Reduction           ,CE068FB,New Construction Conversion and Renovation,,B4,Site Works - Contractor,197,"5,297.80",3/26/2012,C,MAY GURNEY LTD T/A CARTLEDGE  
2012 - MAR,,,Street Light Energy Reduction           ,CE068FB,New Construction Conversion and Renovation,,B4,Site Works - Contractor,198,"29,000.00",3/27/2012,C,FM CONWAY LTD                 
2012 - MAR,,,Street Light Energy Reduction           ,CE068FB,New Construction Conversion and Renovation,,B4,Site Works - Contractor,199,"11,289.71",3/23/2012,C,MAY GURNEY LTD T/A CARTLEDGE  
2012 - MAR,,,Street Light Energy Reduction           ,CE068FB,New Construction Conversion and Renovation,,B4,Site Works - Contractor,200,"7,500.00",3/27/2012,C,MAY GURNEY LTD T/A CARTLEDGE  
2012 - MAR,,,Street Light Energy Reduction           ,CE068FB,New Construction Conversion and Renovation,,B4,Site Works - Contractor,201,900,3/26/2012,C,MAY GURNEY LTD T/A CARTLEDGE  
2012 - MAR,,,Street Light Energy Reduction           ,CE068FB,New Construction Conversion and Renovation,,B4,Site Works - Contractor,202,"6,643.26",3/15/2012,C,MAY GURNEY LTD T/A CARTLEDGE  
2012 - MAR,,,Street Light Energy Reduction           ,CE068FB,New Construction Conversion and Renovation,,B4,Site Works - Contractor,203,"41,000.00",3/27/2012,C,MAY GURNEY LTD T/A CARTLEDGE  
2012 - MAR,,,Street Light Energy Reduction           ,CE068FB,New Construction Conversion and Renovation,,B4,Site Works - Contractor,204,"1,000.00",3/26/2012,C,MAY GURNEY LTD T/A CARTLEDGE  
2012 - MAR,,,Street Light Energy Reduction           ,CE068FB,New Construction Conversion and Renovation,,B4,Site Works - Contractor,205,"15,000.00",3/28/2012,C,MAY GURNEY LTD T/A CARTLEDGE  
2012 - MAR,,,Street Light Energy Reduction           ,CE068FB,New Construction Conversion and Renovation,,B4,Site Works - Contractor,206,"15,000.00",3/28/2012,C,MAY GURNEY LTD T/A CARTLEDGE  
2012 - MAR,,,20s Plenty & Area Traffic Calm          ,CE069FA,New Construction Conversion and Renovation,,B4,Site Works - Contractor,207,"4,668.82",3/7/2012,C,FM CONWAY LTD                 
2012 - MAR,,,20s Plenty & Area Traffic Calm          ,CE069FA,New Construction Conversion and Renovation,,B4,Site Works - Contractor,208,"3,333.31",3/7/2012,C,FM CONWAY LTD                 
2012 - MAR,,,20s Plenty & Area Traffic Calm          ,CE069FA,New Construction Conversion and Renovation,,B4,Site Works - Contractor,209,"2,100.00",3/7/2012,C,FM CONWAY LTD                 
2012 - MAR,,,20s Plenty & Area Traffic Calm          ,CE069FA,New Construction Conversion and Renovation,,B4,Site Works - Contractor,210,"2,900.00",3/7/2012,C,FM CONWAY LTD                 
2012 - MAR,,,20s Plenty & Area Traffic Calm          ,CE069FA,New Construction Conversion and Renovation,,B4,Site Works - Contractor,211,"1,473.95",3/7/2012,C,FM CONWAY LTD                 
2012 - MAR,,,20s Plenty & Area Traffic Calm          ,CE069FA,New Construction Conversion and Renovation,,B4,Site Works - Contractor,212,"1,919.06",3/7/2012,C,FM CONWAY LTD                 
2012 - MAR,,,20s Plenty & Area Traffic Calm          ,CE069FA,New Construction Conversion and Renovation,,B4,Site Works - Contractor,213,958.28,3/15/2012,C,FM CONWAY LTD                 
2012 - MAR,,,20s Plenty & Area Traffic Calm          ,CE069FA,New Construction Conversion and Renovation,,B4,Site Works - Contractor,214,"1,912.08",3/26/2012,C,MAY GURNEY LTD T/A CARTLEDGE  
2012 - MAR,,,20s Plenty & Area Traffic Calm          ,CE069FA,New Construction Conversion and Renovation,,B4,Site Works - Contractor,215,"26,514.13",3/27/2012,C,FM CONWAY LTD                 
2012 - MAR,,,20s Plenty & Area Traffic Calm          ,CE069FA,New Construction Conversion and Renovation,,B4,Site Works - Contractor,216,541.5,3/27/2012,C,FM CONWAY LTD                 
2012 - MAR,,,20s Plenty & Area Traffic Calm          ,CE069FA,New Construction Conversion and Renovation,,B4,Site Works - Contractor,217,500,3/26/2012,C,MAY GURNEY LTD T/A CARTLEDGE  
2012 - MAR,,,20s Plenty & Area Traffic Calm          ,CE069FA,New Construction Conversion and Renovation,,B4,Site Works - Contractor,218,"2,500.00",3/26/2012,C,MAY GURNEY LTD T/A CARTLEDGE  
2012 - MAR,,,20s Plenty & Area Traffic Calm          ,CE069FA,New Construction Conversion and Renovation,,B4,Site Works - Contractor,219,"14,500.00",3/28/2012,C,FM CONWAY LTD                 
2012 - MAR,,,Area Traffic calming measures           ,CE070FA,New Construction Conversion and Renovation,,B4,Site Works - Contractor,220,"1,508.56",3/15/2012,C,FM CONWAY LTD                 
2012 - MAR,,,Area Traffic calming measures           ,CE070FA,New Construction Conversion and Renovation,,B4,Site Works - Contractor,221,"12,700.00",3/15/2012,C,FM CONWAY LTD                 
2012 - MAR,,,Area Traffic calming measures           ,CE070FA,New Construction Conversion and Renovation,,B4,Site Works - Contractor,222,"9,786.94",3/26/2012,C,MAY GURNEY LTD T/A CARTLEDGE  
2012 - MAR,,,Area Traffic calming measures           ,CE070FA,New Construction Conversion and Renovation,,B4,Site Works - Contractor,223,"6,000.00",3/28/2012,C,FM CONWAY LTD                 
2012 - MAR,,,Area Traffic calming measures           ,CE070FA,New Construction Conversion and Renovation,,B4,Site Works - Contractor,224,"4,464.85",3/28/2012,C,FM CONWAY LTD                 
2012 - MAR,,,Area Traffic calming measures           ,CE070FA,New Construction Conversion and Renovation,,B4,Site Works - Contractor,225,606.44,3/27/2012,C,FM CONWAY LTD                 
2012 - MAR,,,Area Traffic calming measures           ,CE070FA,New Construction Conversion and Renovation,,B4,Site Works - Contractor,226,"1,366.58",3/27/2012,C,FM CONWAY LTD                 
2012 - MAR,,,Area Traffic calming measures           ,CE070FA,New Construction Conversion and Renovation,,B4,Site Works - Contractor,227,888.03,3/28/2012,C,FM CONWAY LTD                 
2012 - MAR,,,Area Traffic calming measures           ,CE070FA,New Construction Conversion and Renovation,,B6,Site Works - Other Costs,228,643,3/2/2012,C,UK POWER NETWORKS (OPERATIONS)
2012 - MAR,,,Area Traffic calming measures           ,CE070FA,New Construction Conversion and Renovation,,C3,Public Notices,229,575.64,2/24/2012,C,TMP WORLDWIDE LTD             
2012 - MAR,,,Area Traffic calming measures           ,CE070FA,New Construction Conversion and Renovation,,C3,Public Notices,230,514.5,2/25/2012,C,NEWSQUEST (LONDON)LTD         
2012 - MAR,,,Traffic surveys & Safety Measu          ,CE075FA,New Construction Conversion and Renovation,,B1,Design and Supervision - Consultants Fee,231,"12,000.00",3/23/2012,C,JACOBS UK LIMITED             
2012 - MAR,,,Traffic surveys & Safety Measu          ,CE075FA,New Construction Conversion and Renovation,,B4,Site Works - Contractor,232,"15,917.00",3/7/2012,C,FM CONWAY LTD                 
2012 - MAR,,,Traffic surveys & Safety Measu          ,CE075FA,New Construction Conversion and Renovation,,B4,Site Works - Contractor,233,"15,000.00",3/27/2012,C,FM CONWAY LTD                 
2012 - MAR,,,Traffic surveys & Safety Measu          ,CE075FA,New Construction Conversion and Renovation,,B4,Site Works - Contractor,234,"1,590.02",3/27/2012,C,FM CONWAY LTD                 
2012 - MAR,,,Traffic surveys & Safety Measu          ,CE075FA,New Construction Conversion and Renovation,,B4,Site Works - Contractor,235,"15,000.00",3/28/2012,C,FM CONWAY LTD                 
2012 - MAR,,,Replacement of Fleet Vehicles           ,CE082EA,Vehicles Plant Equipment and Machinery,,D1,Vehicles,236,"18,840.26",3/7/2012,C,KENT COUNTY COUNCIL           
2012 - MAR,,,Replacement of Fleet Vehicles           ,CE082EA,Vehicles Plant Equipment and Machinery,,D1,Vehicles,237,"19,182.27",3/8/2012,C,KENT COUNTY COUNCIL           
2012 - MAR,,,B482 Sustainable access                 ,CE085FG,New Construction Conversion and Renovation,,B2,Design and Supervision - Site Surveys,238,950,3/20/2012,C,MHC TRAFFIC                   
2012 - MAR,,,B600 Wim Town Centre trans imp          ,CE085FM,New Construction Conversion and Renovation,,B4,Site Works - Contractor,239,741.18,3/28/2012,C,FM CONWAY LTD                 
2012 - MAR,,,B600 Wim Town Centre trans imp          ,CE085FM,New Construction Conversion and Renovation,,B4,Site Works - Contractor,240,"2,416.50",3/28/2012,C,FM CONWAY LTD                 
2012 - MAR,,,Alley Gating Scheme - Fly Tip           ,CE087FA,Other Capital Expenditure,,E1,Grants,241,691.2,2/24/2012,C,MAYCROSS GATE PARTY           
2012 - MAR,,,Alley Gating Scheme - Fly Tip           ,CE087FA,Other Capital Expenditure,,E1,Grants,242,"1,263.43",1/1/2012,C,6-36 STREATHAM ROAD GATING ASS
2012 - MAR,,,Alley Gating Scheme - Fly Tip           ,CE087FA,Other Capital Expenditure,,E1,Grants,243,"3,143.88",3/27/2012,C,SAXON SECURITY LOCKS          
2012 - MAR,,,Barrows and Bins Replacement            ,CE088EA,Vehicles Plant Equipment and Machinery,,D3,Equipment,244,"5,523.00",3/22/2012,C,STRAIGHT PLC                  
2012 - MAR,,,Barrows and Bins Replacement            ,CE088EA,Vehicles Plant Equipment and Machinery,,D3,Equipment,245,"6,214.80",3/22/2012,C,STRAIGHT PLC                  
2012 - MAR,,,Barrows and Bins Replacement            ,CE088EA,Vehicles Plant Equipment and Machinery,,D3,Equipment,246,525,3/22/2012,C,STRAIGHT PLC                  
2012 - MAR,,,Barrows and Bins Replacement            ,CE088EA,Vehicles Plant Equipment and Machinery,,D3,Equipment,247,"1,248.00",3/21/2012,C,BROXAP LIMITED                
2012 - MAR,,,Barrows and Bins Replacement            ,CE088EA,Vehicles Plant Equipment and Machinery,,D3,Equipment,248,912,3/21/2012,C,BROXAP LIMITED                
2012 - MAR,,,Barrows and Bins Replacement            ,CE088EA,Vehicles Plant Equipment and Machinery,,D3,Equipment,249,"9,480.00",3/21/2012,C,BROXAP LIMITED                
2012 - MAR,,,Re-use/recycling Site Maintena          ,CE090SA,New Construction Conversion and Renovation,,B6,Site Works - Other Costs,250,"2,279.40",3/27/2012,C,R.J.H.WELDING                 
2012 - MAR,,,Re-use/recycling Site Maintena          ,CE090SA,Vehicles Plant Equipment and Machinery,,D3,Equipment,251,"4,983.70",2/28/2012,C,EGBERT H TAYLOR & CO LTD      
2012 - MAR,,,Re-use/recycling Site Maintena          ,CE090SA,Vehicles Plant Equipment and Machinery,,D3,Equipment,252,"6,757.10",3/1/2012,C,GLASDON UK LTD                
2012 - MAR,,,Waste Phase B - Replace RCVs            ,CE092EA,Acquisition of Land and Existing Buildings,,A4,Other Acquisition Costs,253,"9,888.00",3/1/2012,C,AGRIPA SOLUTIONS LTD          
2012 - MAR,,,Waste Phase B - Replace RCVs            ,CE092EA,Vehicles Plant Equipment and Machinery,,D3,Equipment,254,"1,144.00",3/21/2012,C,BROXAP LIMITED                
2012 - MAR,,,Waste Phase B - Replace RCVs            ,CE092EA,Vehicles Plant Equipment and Machinery,,D3,Equipment,255,836,3/21/2012,C,BROXAP LIMITED                
2012 - MAR,,,Waste Phase B - Replace RCVs            ,CE092EA,Vehicles Plant Equipment and Machinery,,D3,Equipment,256,"8,690.00",3/21/2012,C,BROXAP LIMITED                
2012 - MAR,,,Elec Vehic/Scooter Infrastruct          ,CE104FA,New Construction Conversion and Renovation,,B4,Site Works - Contractor,257,"6,499.00",2/24/2012,C,POD POINT LTD.                
2012 - MAR,,,Strategic corridor Mitcham              ,CE104FB,New Construction Conversion and Renovation,,B4,Site Works - Contractor,258,"11,413.68",2/17/2012,C,FM CONWAY LTD                 
2012 - MAR,,,Strategic corridor Mitcham              ,CE104FB,New Construction Conversion and Renovation,,B4,Site Works - Contractor,259,"30,000.00",3/7/2012,C,FM CONWAY LTD                 
2012 - MAR,,,Strategic corridor Mitcham              ,CE104FB,New Construction Conversion and Renovation,,B4,Site Works - Contractor,260,"32,000.00",3/27/2012,C,FM CONWAY LTD                 
2012 - MAR,,,Kingston/Hartfield Rd StratCor          ,CE104FC,New Construction Conversion and Renovation,,B4,Site Works - Contractor,261,"1,079.60",2/15/2012,C,MAY GURNEY LTD T/A CARTLEDGE  
2012 - MAR,,,Kingston/Hartfield Rd StratCor          ,CE104FC,New Construction Conversion and Renovation,,B4,Site Works - Contractor,262,"4,244.25",3/15/2012,C,FM CONWAY LTD                 
2012 - MAR,,,Kingston/Hartfield Rd StratCor          ,CE104FC,New Construction Conversion and Renovation,,B4,Site Works - Contractor,263,"20,000.00",3/15/2012,C,FM CONWAY LTD                 
2012 - MAR,,,Kingston/Hartfield Rd StratCor          ,CE104FC,New Construction Conversion and Renovation,,B4,Site Works - Contractor,264,755.75,3/15/2012,C,FM CONWAY LTD                 
2012 - MAR,,,Kingston/Hartfield Rd StratCor          ,CE104FC,New Construction Conversion and Renovation,,B6,Site Works - Other Costs,265,643,3/12/2012,C,UK POWER NETWORKS (OPERATIONS)
2012 - MAR,,,Kingston/Hartfield Rd StratCor          ,CE104FC,Other Capital Expenditure,,E4,TFL Other,266,500,1/23/2012,C,TRAFFIC MANAGEMENT TECH SERV. 
2012 - MAR,,,Kingston/Hartfield Rd StratCor          ,CE104FC,Other Capital Expenditure,,E4,TFL Other,267,720,3/2/2012,C,TRAM OPERATIONS LTD           
2012 - MAR,,,Accesibility Programme                  ,CE104FD,New Construction Conversion and Renovation,,B4,Site Works - Contractor,268,"8,546.94",2/17/2012,C,FM CONWAY LTD                 
2012 - MAR,,,Accesibility Programme                  ,CE104FD,New Construction Conversion and Renovation,,B4,Site Works - Contractor,269,"20,000.00",3/27/2012,C,FM CONWAY LTD                 
2012 - MAR,,,20MPH Zones                             ,CE104FF,New Construction Conversion and Renovation,,B2,Design and Supervision - Site Surveys,270,"1,750.00",1/18/2012,C,AXIOM TRAFFIC LTD             
2012 - MAR,,,Wimbledon Town Centre                   ,CE104FJ,New Construction Conversion and Renovation,,B4,Site Works - Contractor,271,"4,214.07",3/12/2012,C,MAY GURNEY LTD T/A CARTLEDGE  
2012 - MAR,,,Wimbledon Town Centre                   ,CE104FJ,New Construction Conversion and Renovation,,B4,Site Works - Contractor,272,"5,702.29",3/28/2012,C,FM CONWAY LTD                 
2012 - MAR,,,Wimbledon Town Centre                   ,CE104FJ,New Construction Conversion and Renovation,,B4,Site Works - Contractor,273,"27,595.13",3/28/2012,C,FM CONWAY LTD                 
2012 - MAR,,,Wimbledon Town Centre                   ,CE104FJ,New Construction Conversion and Renovation,,B4,Site Works - Contractor,274,"49,999.99",3/28/2012,C,FM CONWAY LTD                 
2012 - MAR,,,Wimbledon Town Centre                   ,CE104FJ,New Construction Conversion and Renovation,,B4,Site Works - Contractor,275,"45,784.93",3/28/2012,C,MAY GURNEY LTD T/A CARTLEDGE  
2012 - MAR,,,Casualty Reduction & Schools            ,CE104RA,New Construction Conversion and Renovation,,B4,Site Works - Contractor,276,"7,324.11",2/17/2012,C,FM CONWAY LTD                 
2012 - MAR,,,Casualty Reduction & Schools            ,CE104RA,New Construction Conversion and Renovation,,B4,Site Works - Contractor,277,"20,670.44",3/15/2012,C,FM CONWAY LTD                 
2012 - MAR,,,Casualty Reduction & Schools            ,CE104RA,New Construction Conversion and Renovation,,B4,Site Works - Contractor,278,"4,478.24",3/26/2012,C,MAY GURNEY LTD T/A CARTLEDGE  
2012 - MAR,,,Casualty Reduction & Schools            ,CE104RA,New Construction Conversion and Renovation,,B4,Site Works - Contractor,279,"8,825.92",3/27/2012,C,FM CONWAY LTD                 
2012 - MAR,,,Casualty Reduction & Schools            ,CE104RA,New Construction Conversion and Renovation,,B4,Site Works - Contractor,280,"2,900.00",3/28/2012,C,FM CONWAY LTD                 
2012 - MAR,,,Casualty Reduction & Schools            ,CE104RA,New Construction Conversion and Renovation,,B4,Site Works - Contractor,281,"4,893.07",3/28/2012,C,FM CONWAY LTD                 
2012 - MAR,,,Casualty Reduction & Schools            ,CE104RA,New Construction Conversion and Renovation,,B4,Site Works - Contractor,282,"35,000.00",3/27/2012,C,FM CONWAY LTD                 
2012 - MAR,,,Casualty Reduction & Schools            ,CE104RA,New Construction Conversion and Renovation,,B4,Site Works - Contractor,283,"23,371.63",3/27/2012,C,FM CONWAY LTD                 
2012 - MAR,,,Casualty Reduction & Schools            ,CE104RA,New Construction Conversion and Renovation,,B6,Site Works - Other Costs,284,"16,825.19",3/2/2012,C,TRANSPORT FOR LONDON          
2012 - MAR,,,School & Road Safety Campaigns          ,CE104RC,Other Capital Expenditure,,E4,TFL Other,285,765,3/16/2012,C,FOCUS MULTIMEDIA LIMITED      
2012 - MAR,,,School & Road Safety Campaigns          ,CE104RC,Other Capital Expenditure,,E4,TFL Other,286,650,3/26/2012,C,BLAKES DRIVER TRAINING        
2012 - MAR,,,School & Road Safety Campaigns          ,CE104RC,Other Capital Expenditure,,E4,TFL Other,287,930,3/26/2012,C,BLAKES DRIVER TRAINING        
2012 - MAR,,,School & Road Safety Campaigns          ,CE104RC,Other Capital Expenditure,,E4,TFL Other,288,"9,600.00",3/26/2012,C,TRAFFICWATCH (UK) LTD.        
2012 - MAR,,,School & Road Safety Campaigns          ,CE104RC,Other Capital Expenditure,,E4,TFL Other,289,"9,550.00",3/28/2012,C,TRANSPORT INITIATIVES LLP     
2012 - MAR,,,School & Road Safety Campaigns          ,CE104RC,Other Capital Expenditure,,E4,TFL Other,290,"1,000.00",3/26/2012,C,BLAKES DRIVER TRAINING        
2012 - MAR,,,Incentivising Schools                   ,CE104RE,Other Capital Expenditure,,E4,TFL Other,291,"6,932.00",1/11/2012,C,THE RIOT ACT                  
2012 - MAR,,,Carshalton Road                         ,CE105FA,New Construction Conversion and Renovation,,B4,Site Works - Contractor,292,"1,000.00",3/7/2012,C,FM CONWAY LTD                 
2012 - MAR,,,Carshalton Road                         ,CE105FA,New Construction Conversion and Renovation,,B4,Site Works - Contractor,293,"1,000.00",3/28/2012,C,FM CONWAY LTD                 
2012 - MAR,,,Carshalton Road                         ,CE105FA,New Construction Conversion and Renovation,,B4,Site Works - Contractor,294,"3,574.29",3/28/2012,C,FM CONWAY LTD                 
2012 - MAR,,,Merton Road                             ,CE105FB,New Construction Conversion and Renovation,,B4,Site Works - Contractor,295,"1,000.00",3/7/2012,C,FM CONWAY LTD                 
2012 - MAR,,,Merton Road                             ,CE105FB,New Construction Conversion and Renovation,,B4,Site Works - Contractor,296,"1,000.00",3/28/2012,C,FM CONWAY LTD                 
2012 - MAR,,,Merton Road                             ,CE105FB,New Construction Conversion and Renovation,,B4,Site Works - Contractor,297,685.66,3/28/2012,C,FM CONWAY LTD                 
2012 - MAR,,,Morden Road                             ,CE105FC,New Construction Conversion and Renovation,,B4,Site Works - Contractor,298,"1,000.00",3/7/2012,C,FM CONWAY LTD                 
2012 - MAR,,,Lower Green West                        ,CE105FD,New Construction Conversion and Renovation,,B4,Site Works - Contractor,299,"40,117.94",3/27/2012,C,FM CONWAY LTD                 
2012 - MAR,,,Lower Green West                        ,CE105FD,New Construction Conversion and Renovation,,B4,Site Works - Contractor,300,"7,000.00",3/27/2012,C,FM CONWAY LTD                 
2012 - MAR,,,Wim TC Accessibility & Streets          ,CE106FA,New Construction Conversion and Renovation,,B1,Design and Supervision - Consultants Fee,301,750,3/14/2012,C,HYDER CONSULTING (UK) LTD     
2012 - MAR,,,Wim TC Accessibility & Streets          ,CE106FA,New Construction Conversion and Renovation,,B4,Site Works - Contractor,302,"35,696.83",3/21/2012,C,FM CONWAY LTD                 
2012 - MAR,,,Wim TC Accessibility & Streets          ,CE106FA,New Construction Conversion and Renovation,,B4,Site Works - Contractor,303,"30,528.52",3/1/2012,C,FM CONWAY LTD                 
2012 - MAR,,,Wim TC Accessibility & Streets          ,CE106FA,New Construction Conversion and Renovation,,B4,Site Works - Contractor,304,"44,989.01",3/28/2012,C,FM CONWAY LTD                 
2012 - MAR,,,Wim TC Accessibility & Streets          ,CE106FA,New Construction Conversion and Renovation,,B4,Site Works - Contractor,305,"49,999.99",3/28/2012,C,FM CONWAY LTD                 
2012 - MAR,,,Wim TC Accessibility & Streets          ,CE106FA,New Construction Conversion and Renovation,,B5,Site Works - Suppliers,306,"39,600.00",3/2/2012,C,HEALTHMATIC LIMITED           
2012 - MAR,,,Wim TC Accessibility & Streets          ,CE106FA,New Construction Conversion and Renovation,,B5,Site Works - Suppliers,307,540,3/20/2012,C,CARTEL SECURITY SYSTEMS PLC   
2012 - MAR,,,Wim TC Accessibility & Streets          ,CE106FA,New Construction Conversion and Renovation,,B5,Site Works - Suppliers,308,"33,175.00",3/20/2012,C,CARTEL SECURITY SYSTEMS PLC   
2012 - MAR,,,Wim TC Accessibility & Streets          ,CE106FA,New Construction Conversion and Renovation,,B6,Site Works - Other Costs,309,640,2/15/2012,C,UK POWER NETWORKS (OPERATIONS)
2012 - MAR,,,Wim TC Accessibility & Streets          ,CE106FA,New Construction Conversion and Renovation,,B6,Site Works - Other Costs,310,"2,000.00",3/26/2012,C,UK POWER NETWORKS (OPERATIONS)
2012 - MAR,,,Wim TC Accessibility & Streets          ,CE106FA,New Construction Conversion and Renovation,,B6,Site Works - Other Costs,311,"20,000.00",3/27/2012,C,TRANSPORT FOR LONDON          
2012 - MAR,,,Wim TC Accessibility & Streets          ,CE106FA,Vehicles Plant Equipment and Machinery,,D3,Equipment,312,"24,000.00",3/13/2012,C,EUROVIA INFRASTRUCTURE LTD    
2012 - MAR,,,Wim TC Accessibility & Streets          ,CE106FA,Vehicles Plant Equipment and Machinery,,D3,Equipment,313,"3,491.80",3/13/2012,C,EUROVIA INFRASTRUCTURE LTD    
2012 - MAR,,,Lower Downs Rd walking/cycling          ,CE106FB,New Construction Conversion and Renovation,,B1,Design and Supervision - Consultants Fee,314,"3,551.16",3/21/2012,C,HYDER CONSULTING (UK) LTD     
2012 - MAR,,,Lower Downs Rd walking/cycling          ,CE106FB,New Construction Conversion and Renovation,,B4,Site Works - Contractor,315,"2,482.51",2/17/2012,C,FM CONWAY LTD                 
2012 - MAR,,,Highway Asset Management                ,CE107EA,New Construction Conversion and Renovation,,B1,Design and Supervision - Consultants Fee,316,"38,067.78",3/13/2012,C,JACOBS UK LIMITED             
2012 - MAR,,,Haydons Road - Puffin Crossing          ,CE108EA,New Construction Conversion and Renovation,,B4,Site Works - Contractor,317,825.21,3/28/2012,C,FM CONWAY LTD                 
2012 - MAR,,,Leisure Services Parks&OpenSp           ,CE110SA,New Construction Conversion and Renovation,,B1,Design and Supervision - Consultants Fee,318,625,3/1/2012,C,MATTHEW CHILDS DESIGN         
2012 - MAR,,,Leisure Services Parks&OpenSp           ,CE110SA,New Construction Conversion and Renovation,,B1,Design and Supervision - Consultants Fee,319,"1,415.00",3/21/2012,C,MATTHEW CHILDS DESIGN         
2012 - MAR,,,Leisure Services Parks&OpenSp           ,CE110SA,New Construction Conversion and Renovation,,B4,Site Works - Contractor,320,"1,500.00",2/21/2012,C,LA BELLE ROOFING CO LTD       
2012 - MAR,,,Leisure Services Parks&OpenSp           ,CE110SA,New Construction Conversion and Renovation,,B4,Site Works - Contractor,321,"1,388.32",12/20/2011,C,MORTON FAIRVIEW ELEC SERVICES 
2012 - MAR,,,Leisure Services Parks&OpenSp           ,CE110SA,New Construction Conversion and Renovation,,B4,Site Works - Contractor,322,600,2/20/2012,C,MORTON FAIRVIEW ELEC SERVICES 
2012 - MAR,,,Leisure Services Parks&OpenSp           ,CE110SA,New Construction Conversion and Renovation,,B4,Site Works - Contractor,323,677,1/24/2012,C,TAYLOR BUILDING COMPANY LTD   
2012 - MAR,,,Leisure Services Parks&OpenSp           ,CE110SA,New Construction Conversion and Renovation,,B4,Site Works - Contractor,324,735,1/24/2012,C,TAYLOR BUILDING COMPANY LTD   
2012 - MAR,,,Leisure Services Parks&OpenSp           ,CE110SA,New Construction Conversion and Renovation,,B4,Site Works - Contractor,325,"4,096.00",1/19/2012,C,TAYLOR BUILDING COMPANY LTD   
2012 - MAR,,,Leisure Services Parks&OpenSp           ,CE110SA,New Construction Conversion and Renovation,,B4,Site Works - Contractor,326,"1,015.00",11/17/2011,C,JUST METAL UK LTD             
2012 - MAR,,,Leisure Services Parks&OpenSp           ,CE110SA,New Construction Conversion and Renovation,,B4,Site Works - Contractor,327,960,3/8/2012,C,REDDINGTON & SONS             
2012 - MAR,,,Leisure Services Parks&OpenSp           ,CE110SA,New Construction Conversion and Renovation,,B4,Site Works - Contractor,328,"2,351.00",3/14/2012,C,REDACTED
2012 - MAR,,,Leisure Services Parks&OpenSp           ,CE110SA,New Construction Conversion and Renovation,,B4,Site Works - Contractor,329,870,3/15/2012,C,TIDEY & WEBB LTD              
2012 - MAR,,,Leisure Services Parks&OpenSp           ,CE110SA,New Construction Conversion and Renovation,,B4,Site Works - Contractor,330,"4,400.00",3/15/2012,C,TIDEY & WEBB LTD              
2012 - MAR,,,Leisure Services Parks&OpenSp           ,CE110SA,New Construction Conversion and Renovation,,B4,Site Works - Contractor,331,"2,300.00",3/11/2012,C,REDACTED
2012 - MAR,,,Leisure Services Parks&OpenSp           ,CE110SA,New Construction Conversion and Renovation,,B4,Site Works - Contractor,332,"6,590.00",3/25/2012,C,REDACTED
2012 - MAR,,,Leisure Services Parks&OpenSp           ,CE110SA,New Construction Conversion and Renovation,,B4,Site Works - Contractor,333,"5,952.00",3/23/2012,C,JUST METAL UK LTD             
2012 - MAR,,,John Innes Rec/Rutlish wall             ,CE110SB,Other Capital Expenditure,,E4,TFL Other,334,"16,479.43",2/8/2012,C,TRITON BUILDING CONSERVATION  
2012 - MAR,,,Colliers Wood Area (S106)               ,CE110SC,Acquisition of Land and Existing Buildings,,A4,Other Acquisition Costs,335,"3,920.00",3/13/2012,C,RED KITE CONSERVATION SERVICES
2012 - MAR,,,Bushey Rd Bridge Concrete Rep           ,CE111FC,New Construction Conversion and Renovation,,B4,Site Works - Contractor,336,"86,395.00",3/21/2012,C,FM CONWAY LTD                 
2012 - MAR,,,Bushey Rd Bridge Footway Prot           ,CE111FD,New Construction Conversion and Renovation,,B1,Design and Supervision - Consultants Fee,337,"8,175.00",2/22/2012,C,ATKINS LIMITED                
2012 - MAR,,,Bushey Rd Bridge Footway Prot           ,CE111FD,New Construction Conversion and Renovation,,B4,Site Works - Contractor,338,"29,825.00",3/21/2012,C,FM CONWAY LTD                 
2012 - MAR,,,Bushey Rd Bridge Special Insp           ,CE111FE,New Construction Conversion and Renovation,,B1,Design and Supervision - Consultants Fee,339,"1,800.00",3/19/2012,C,ATKINS LIMITED                
2012 - MAR,,,Bushey Rd Bridge Special Insp           ,CE111FE,New Construction Conversion and Renovation,,B1,Design and Supervision - Consultants Fee,340,"2,250.00",3/19/2012,C,ATKINS LIMITED                
2012 - MAR,,,Local Transport Schemes                 ,CE112FA,New Construction Conversion and Renovation,,B4,Site Works - Contractor,341,"2,089.42",3/7/2012,C,FM CONWAY LTD                 
2012 - MAR,,,Local Transport Schemes                 ,CE112FA,New Construction Conversion and Renovation,,B4,Site Works - Contractor,342,"12,712.28",3/27/2012,C,FM CONWAY LTD                 
2012 - MAR,,,Marathon Trust BMX Track                ,CE114SA,New Construction Conversion and Renovation,,B1,Design and Supervision - Consultants Fee,343,529.6,2/29/2012,C,MATERIALS SCIENCE CONS. LTD   
2012 - MAR,,,Marathon Trust BMX Track                ,CE114SA,New Construction Conversion and Renovation,,B1,Design and Supervision - Consultants Fee,344,985,2/29/2012,C,MATERIALS SCIENCE CONS. LTD   
2012 - MAR,,,Marathon Trust BMX Track                ,CE114SA,New Construction Conversion and Renovation,,B2,Design and Supervision - Site Surveys,345,785,2/29/2012,C,ASHDOWN SITE INVESTIGATION    
2012 - MAR,,,Marathon Trust BMX Track                ,CE114SA,New Construction Conversion and Renovation,,B2,Design and Supervision - Site Surveys,346,645,3/21/2012,C,ASHDOWN SITE INVESTIGATION    
2012 - MAR,,,Marathon Trust BMX Track                ,CE114SA,New Construction Conversion and Renovation,,B4,Site Works - Contractor,347,"30,803.75",3/2/2012,C,CLARK AND KENT CONTRACTORS    
2012 - MAR,,,Wimbledon Station Network Rail          ,CE115FA,New Construction Conversion and Renovation,,B4,Site Works - Contractor,348,"100,000.00",3/21/2012,C,FM CONWAY LTD                 
2012 - MAR,,,Wimbledon Station Network Rail          ,CE115FA,New Construction Conversion and Renovation,,B4,Site Works - Contractor,349,"15,247.38",3/28/2012,C,FM CONWAY LTD                 
2012 - MAR,,,Universal Cold Busters                  ,CE120RA,Other Capital Expenditure,,E1,Grants,350,"3,656.10",3/8/2012,C,CLAYDON HEATING               
2012 - MAR,,,Universal Cold Busters                  ,CE120RA,Other Capital Expenditure,,E1,Grants,351,576.96,3/9/2012,C,CLIMATE ENERGY LTD            
2012 - MAR,,,B599-Recycle bins Raynes Park           ,CE121EA,New Construction Conversion and Renovation,,B6,Site Works - Other Costs,352,643.4,3/27/2012,C,R.J.H.WELDING                 
2012 - MAR,,,B599-Recycle bins Raynes Park           ,CE121EA,New Construction Conversion and Renovation,,B6,Site Works - Other Costs,353,"2,279.40",3/27/2012,C,R.J.H.WELDING                 
2012 - MAR,,,Empty Homes Grant                       ,CE122RA,Other Capital Expenditure,,E1,Grants,354,"1,701.00",3/30/2012,C,CLAYDON HEATING               
2012 - MAR,,,Biking Borough Programme                ,CE128RA,Other Capital Expenditure,,E4,TFL Other,355,"5,000.00",3/28/2012,C,TRANSPORT INITIATIVES LLP     
2012 - MAR,,,B544 Wimbledon Station Access           ,CGH34KD,New Construction Conversion and Renovation,,2N,Capital main contractor payments,356,"5,262.25",11/25/2011,C,TRANSPORT FOR LONDON          
2012 - MAR,,,Updating Existing 20mph Zones           ,CGH356D,New Construction Conversion and Renovation,,2N,Capital main contractor payments,357,"10,541.50",2/17/2012,C,FM CONWAY LTD                 
2012 - MAR,Cultural Env Reg&Plan Services,SMSS (Env),ES Support & Development                ,G00070,Supplies & Services           ,Expenses                      ,DH02,Conferences,358,750,3/8/2012,R,UNIVER. OF THE WEST OF ENGLAND
2012 - MAR,Cultural Env Reg&Plan Services,SMSS (Env),ES Support & Development                ,G00070,Supplies & Services           ,Expenses                      ,DH02,Conferences,359,"4,000.00",3/9/2012,R,URBAN DESIGN LONDON           
2012 - MAR,Cultural Env Reg&Plan Services,SMSS (Env),ES Support & Development                ,G00070,Supplies & Services           ,Expenses                      ,DH02,Conferences,360,"2,171.20",3/15/2012,R,BOND SOLON                    
2012 - MAR,Cultural Env Reg&Plan Services,SMSS (Env),ES Business Systems                     ,G00075,Supplies & Services           ,Comms and Computing           ,DG07,Computer Software,361,660,2/21/2012,R,DOTTED EYES LTD               
2012 - MAR,Cultural Env Reg&Plan Services,SMSS (Env),Senior Mgt. - E.S.C.                    ,G00100,Supplies & Services           ,Services                      ,DF11,Counsel's fees,362,650,2/7/2012,R,REDACTED
2012 - MAR,Highways & Transport Services,Structural Maintenance,C'way & F'way Mtce                      ,G00121,Employees                     ,Direct Employee Expenses      ,AA17,Agency Staff & Casual Paymts,363,"6,929.00",3/26/2012,R,RIDGEWAY CONSULTING LTD.      
2012 - MAR,Highways & Transport Services,Structural Maintenance,C'way & F'way Mtce                      ,G00121,Employees                     ,Indirect Employee Expenses    ,AB57,External Training Costs,364,800,3/25/2012,R,PTRC EDUCATION & RESEARCH SERV
2012 - MAR,Highways & Transport Services,Structural Maintenance,C'way & F'way Mtce                      ,G00121,Supplies & Services           ,Equip Furniture/Materials     ,DA09,Equip-Purchases,365,"5,275.00",3/26/2012,R,EXCITECH LIMITED              
2012 - MAR,Highways & Transport Services,Structural Maintenance,C'way & F'way Mtce                      ,G00121,Supplies & Services           ,Comms and Computing           ,DG07,Computer Software,366,"2,621.94",3/13/2012,R,INSIGHT DIRECT (UK) LTD       
2012 - MAR,Highways & Transport Services,Structural Maintenance,C'way & F'way Mtce                      ,G00121,Supplies & Services           ,Comms and Computing           ,DG09,Computer Purchases - Misc,367,675.62,3/22/2012,R,VIGLEN LIMITED                
2012 - MAR,Highways & Transport Services,Structural Maintenance,C'way & F'way Mtce                      ,G00121,Supplies & Services           ,Grants and Subscriptions      ,DJ04,Subscriptions,368,"1,980.00",3/20/2012,R,SWEET & MAXWELL LIMITED       
2012 - MAR,Highways & Transport Services,Structural Maintenance,Surf Water Drainage                     ,G00123,Third Party Payments          ,Private Contractors           ,EH56,Carriageway/Fway Maint,369,629.91,3/28/2012,R,FM CONWAY LTD                 
2012 - MAR,Highways & Transport Services,Structural Maintenance,Footway maintenance                     ,G00124,Third Party Payments          ,Private Contractors           ,EH01,Miscellaneous Agency Services,370,"1,400.77",3/28/2012,R,FM CONWAY LTD                 
2012 - MAR,Highways & Transport Services,Structural Maintenance,Footway maintenance                     ,G00124,Third Party Payments          ,Private Contractors           ,EH56,Carriageway/Fway Maint,371,"3,148.61",2/17/2012,R,FM CONWAY LTD                 
2012 - MAR,Highways & Transport Services,Structural Maintenance,Footway maintenance                     ,G00124,Third Party Payments          ,Private Contractors           ,EH56,Carriageway/Fway Maint,372,"9,935.83",2/17/2012,R,FM CONWAY LTD                 
2012 - MAR,Highways & Transport Services,Structural Maintenance,Footway maintenance                     ,G00124,Third Party Payments          ,Private Contractors           ,EH56,Carriageway/Fway Maint,373,"4,000.00",2/17/2012,R,FM CONWAY LTD                 
2012 - MAR,Highways & Transport Services,Structural Maintenance,Footway maintenance                     ,G00124,Third Party Payments          ,Private Contractors           ,EH56,Carriageway/Fway Maint,374,"1,039.50",2/25/2012,R,NEWSQUEST (LONDON)LTD         
2012 - MAR,Highways & Transport Services,Structural Maintenance,Footway maintenance                     ,G00124,Third Party Payments          ,Private Contractors           ,EH56,Carriageway/Fway Maint,375,"1,607.40",3/15/2012,R,FM CONWAY LTD                 
2012 - MAR,Highways & Transport Services,Structural Maintenance,Footway maintenance                     ,G00124,Third Party Payments          ,Private Contractors           ,EH56,Carriageway/Fway Maint,376,"4,443.53",3/28/2012,R,FM CONWAY LTD                 
2012 - MAR,Highways & Transport Services,Structural Maintenance,Footway maintenance                     ,G00124,Third Party Payments          ,Private Contractors           ,EH56,Carriageway/Fway Maint,377,"30,000.00",3/27/2012,R,FM CONWAY LTD                 
2012 - MAR,Highways & Transport Services,Structural Maintenance,Footway maintenance                     ,G00124,Third Party Payments          ,Private Contractors           ,EH56,Carriageway/Fway Maint,378,"30,000.00",3/28/2012,R,FM CONWAY LTD                 
2012 - MAR,Highways & Transport Services,Env Safety&Routine Maintenance,Carriageway Patching                    ,G00125,Third Party Payments          ,Private Contractors           ,EH56,Carriageway/Fway Maint,379,"82,000.00",3/27/2012,R,FM CONWAY LTD                 
2012 - MAR,Highways & Transport Services,Env Safety&Routine Maintenance,Carriageway Patching                    ,G00125,Third Party Payments          ,Private Contractors           ,EH56,Carriageway/Fway Maint,380,723,3/27/2012,R,FM CONWAY LTD                 
2012 - MAR,Highways & Transport Services,Env Safety&Routine Maintenance,Carriageway Patching                    ,G00125,Third Party Payments          ,Private Contractors           ,EH56,Carriageway/Fway Maint,381,"48,280.00",3/27/2012,R,FM CONWAY LTD                 
2012 - MAR,Highways & Transport Services,Env Safety&Routine Maintenance,Carriageway Patching                    ,G00125,Third Party Payments          ,Private Contractors           ,EH56,Carriageway/Fway Maint,382,"3,000.00",3/27/2012,R,FM CONWAY LTD                 
2012 - MAR,Highways & Transport Services,Env Safety&Routine Maintenance,Carriageway Patching                    ,G00125,Third Party Payments          ,Private Contractors           ,EH56,Carriageway/Fway Maint,383,"2,499.30",3/27/2012,R,FM CONWAY LTD                 
2012 - MAR,Highways & Transport Services,Env Safety&Routine Maintenance,Walk Sheets                             ,G00127,Premises Related Expenditure  ,Ground Maintenance Costs      ,BL03,Maintenance of Grounds,384,897.52,3/26/2012,R,VEOLIA ES (UK) LIMITED        
2012 - MAR,Highways & Transport Services,Env Safety&Routine Maintenance,Walk Sheets                             ,G00127,Third Party Payments          ,Private Contractors           ,EH56,Carriageway/Fway Maint,385,"2,486.33",3/7/2012,R,FM CONWAY LTD                 
2012 - MAR,Highways & Transport Services,Env Safety&Routine Maintenance,Walk Sheets                             ,G00127,Third Party Payments          ,Private Contractors           ,EH56,Carriageway/Fway Maint,386,"5,895.47",3/7/2012,R,FM CONWAY LTD                 
2012 - MAR,Highways & Transport Services,Env Safety&Routine Maintenance,Walk Sheets                             ,G00127,Third Party Payments          ,Private Contractors           ,EH56,Carriageway/Fway Maint,387,"19,645.07",2/17/2012,R,FM CONWAY LTD                 
2012 - MAR,Highways & Transport Services,Env Safety&Routine Maintenance,Walk Sheets                             ,G00127,Third Party Payments          ,Private Contractors           ,EH56,Carriageway/Fway Maint,388,"22,917.19",3/7/2012,R,FM CONWAY LTD                 
2012 - MAR,Highways & Transport Services,Env Safety&Routine Maintenance,Walk Sheets                             ,G00127,Third Party Payments          ,Private Contractors           ,EH56,Carriageway/Fway Maint,389,"16,870.49",3/15/2012,R,FM CONWAY LTD                 
2012 - MAR,Highways & Transport Services,Env Safety&Routine Maintenance,Walk Sheets                             ,G00127,Third Party Payments          ,Private Contractors           ,EH56,Carriageway/Fway Maint,390,"30,757.39",3/15/2012,R,FM CONWAY LTD                 
2012 - MAR,Highways & Transport Services,Env Safety&Routine Maintenance,Walk Sheets                             ,G00127,Third Party Payments          ,Private Contractors           ,EH56,Carriageway/Fway Maint,391,"2,486.33",3/28/2012,R,FM CONWAY LTD                 
2012 - MAR,Highways & Transport Services,Env Safety&Routine Maintenance,Walk Sheets                             ,G00127,Third Party Payments          ,Private Contractors           ,EH56,Carriageway/Fway Maint,392,"5,895.47",3/28/2012,R,FM CONWAY LTD                 
2012 - MAR,Highways & Transport Services,Env Safety&Routine Maintenance,Walk Sheets                             ,G00127,Third Party Payments          ,Private Contractors           ,EH56,Carriageway/Fway Maint,393,"5,500.00",3/27/2012,R,FM CONWAY LTD                 
2012 - MAR,Highways & Transport Services,Env Safety&Routine Maintenance,Walk Sheets                             ,G00127,Third Party Payments          ,Private Contractors           ,EH56,Carriageway/Fway Maint,394,"6,361.35",3/28/2012,R,FM CONWAY LTD                 
2012 - MAR,Highways & Transport Services,Env Safety&Routine Maintenance,Walk Sheets                             ,G00127,Third Party Payments          ,Private Contractors           ,EH56,Carriageway/Fway Maint,395,"8,629.18",3/30/2012,R,FM CONWAY LTD                 
2012 - MAR,Highways & Transport Services,Env Safety&Routine Maintenance,Walk Sheets                             ,G00127,Third Party Payments          ,Private Contractors           ,EH56,Carriageway/Fway Maint,396,"28,380.22",3/24/2012,R,FM CONWAY LTD                 
2012 - MAR,Highways & Transport Services,Env Safety&Routine Maintenance,Walk Sheets                             ,G00127,Third Party Payments          ,Private Contractors           ,EH56,Carriageway/Fway Maint,397,"2,340.48",3/28/2012,R,FM CONWAY LTD                 
2012 - MAR,Highways & Transport Services,Env Safety&Routine Maintenance,Walk Sheets                             ,G00127,Third Party Payments          ,Private Contractors           ,EH56,Carriageway/Fway Maint,398,"17,595.68",3/27/2012,R,FM CONWAY LTD                 
2012 - MAR,Highways & Transport Services,Env Safety&Routine Maintenance,Walk Sheets                             ,G00127,Third Party Payments          ,Private Contractors           ,EH56,Carriageway/Fway Maint,399,"20,675.57",3/27/2012,R,FM CONWAY LTD                 
2012 - MAR,Highways & Transport Services,Env Safety&Routine Maintenance,Walk Sheets                             ,G00127,Third Party Payments          ,Private Contractors           ,EH56,Carriageway/Fway Maint,400,"25,000.00",3/30/2012,R,FM CONWAY LTD                 
2012 - MAR,Highways & Transport Services,Env Safety&Routine Maintenance,Walk Sheets                             ,G00127,Third Party Payments          ,Private Contractors           ,EH56,Carriageway/Fway Maint,401,"3,888.22",3/27/2012,R,FM CONWAY LTD                 
2012 - MAR,Highways & Transport Services,Env Safety&Routine Maintenance,Walk Sheets                             ,G00127,Third Party Payments          ,Private Contractors           ,EH56,Carriageway/Fway Maint,402,"40,894.96",3/27/2012,R,FM CONWAY LTD                 
2012 - MAR,Highways & Transport Services,Env Safety&Routine Maintenance,Walk Sheets                             ,G00127,Third Party Payments          ,Private Contractors           ,EH56,Carriageway/Fway Maint,403,"43,220.00",3/27/2012,R,FM CONWAY LTD                 
2012 - MAR,Highways & Transport Services,Env Safety&Routine Maintenance,Walk Sheets                             ,G00127,Third Party Payments          ,Private Contractors           ,EH56,Carriageway/Fway Maint,404,"30,000.00",3/30/2012,R,FM CONWAY LTD                 
2012 - MAR,Highways & Transport Services,Winter Service,Winter Maintenance                      ,G00150,Third Party Payments          ,Private Contractors           ,EH56,Carriageway/Fway Maint,405,798.76,2/17/2012,R,FM CONWAY LTD                 
2012 - MAR,Highways & Transport Services,Env Safety&Routine Maintenance,Traffic Signs.                          ,G00160,Third Party Payments          ,Private Contractors           ,EH01,Miscellaneous Agency Services,406,798.84,2/15/2012,R,MAY GURNEY LTD T/A CARTLEDGE  
2012 - MAR,Highways & Transport Services,Env Safety&Routine Maintenance,Traffic Signs.                          ,G00160,Third Party Payments          ,Private Contractors           ,EH01,Miscellaneous Agency Services,407,"1,308.65",2/24/2012,R,MAY GURNEY LTD T/A CARTLEDGE  
2012 - MAR,Highways & Transport Services,Env Safety&Routine Maintenance,Traffic Signs.                          ,G00160,Third Party Payments          ,Private Contractors           ,EH01,Miscellaneous Agency Services,408,"3,140.17",3/7/2012,R,FM CONWAY LTD                 
2012 - MAR,Highways & Transport Services,Env Safety&Routine Maintenance,Traffic Signs.                          ,G00160,Third Party Payments          ,Private Contractors           ,EH01,Miscellaneous Agency Services,409,643,3/12/2012,R,UK POWER NETWORKS (OPERATIONS)
2012 - MAR,Highways & Transport Services,Env Safety&Routine Maintenance,Traffic Signs.                          ,G00160,Third Party Payments          ,Private Contractors           ,EH01,Miscellaneous Agency Services,410,"1,301.67",3/15/2012,R,FM CONWAY LTD                 
2012 - MAR,Highways & Transport Services,Env Safety&Routine Maintenance,Traffic Signs.                          ,G00160,Third Party Payments          ,Private Contractors           ,EH01,Miscellaneous Agency Services,411,"1,272.96",3/27/2012,R,FM CONWAY LTD                 
2012 - MAR,Highways & Transport Services,Env Safety&Routine Maintenance,Traffic Signs.                          ,G00160,Third Party Payments          ,Private Contractors           ,EH01,Miscellaneous Agency Services,412,"2,380.79",3/27/2012,R,FM CONWAY LTD                 
2012 - MAR,Highways & Transport Services,Env Safety&Routine Maintenance,Traffic Signs.                          ,G00160,Third Party Payments          ,Private Contractors           ,EH01,Miscellaneous Agency Services,413,"3,471.19",3/27/2012,R,FM CONWAY LTD                 
2012 - MAR,Highways & Transport Services,Env Safety&Routine Maintenance,Traffic Signs.                          ,G00160,Third Party Payments          ,Private Contractors           ,EH01,Miscellaneous Agency Services,414,"6,672.62",3/27/2012,R,FM CONWAY LTD                 
2012 - MAR,Highways & Transport Services,Env Safety&Routine Maintenance,Traffic Signs.                          ,G00160,Third Party Payments          ,Private Contractors           ,EH01,Miscellaneous Agency Services,415,742.18,3/27/2012,R,FM CONWAY LTD                 
2012 - MAR,Highways & Transport Services,Env Safety&Routine Maintenance,Traffic Signs.                          ,G00160,Third Party Payments          ,Private Contractors           ,EH02,Miscellaneous Hired Services,416,"7,000.00",3/15/2012,R,FM CONWAY LTD                 
2012 - MAR,Highways & Transport Services,Env Safety&Routine Maintenance,Traffic Signs.                          ,G00160,Third Party Payments          ,Private Contractors           ,EH02,Miscellaneous Hired Services,417,"2,626.31",3/15/2012,R,FM CONWAY LTD                 
2012 - MAR,Highways & Transport Services,Env Safety&Routine Maintenance,Traffic Signs.                          ,G00160,Third Party Payments          ,Private Contractors           ,EH02,Miscellaneous Hired Services,418,"2,313.41",3/15/2012,R,FM CONWAY LTD                 
2012 - MAR,Highways & Transport Services,Env Safety&Routine Maintenance,Traffic Signs.                          ,G00160,Third Party Payments          ,Private Contractors           ,EH02,Miscellaneous Hired Services,419,"2,035.88",3/15/2012,R,FM CONWAY LTD                 
2012 - MAR,Highways & Transport Services,Env Safety&Routine Maintenance,Traffic Signs.                          ,G00160,Third Party Payments          ,Private Contractors           ,EH02,Miscellaneous Hired Services,420,"8,145.90",3/27/2012,R,FM CONWAY LTD                 
2012 - MAR,Highways & Transport Services,Env Safety&Routine Maintenance,Traffic Signs.                          ,G00160,Third Party Payments          ,Private Contractors           ,EH02,Miscellaneous Hired Services,421,646.88,3/28/2012,R,FM CONWAY LTD                 
2012 - MAR,Highways & Transport Services,Env Safety&Routine Maintenance,Traffic Signs.                          ,G00160,Third Party Payments          ,Private Contractors           ,EH02,Miscellaneous Hired Services,422,"6,952.62",3/27/2012,R,FM CONWAY LTD                 
2012 - MAR,Highways & Transport Services,Env Safety&Routine Maintenance,Traffic Signs.                          ,G00160,Third Party Payments          ,Private Contractors           ,EH02,Miscellaneous Hired Services,423,"4,815.53",3/27/2012,R,FM CONWAY LTD                 
2012 - MAR,Highways & Transport Services,Env Safety&Routine Maintenance,Traffic Signs.                          ,G00160,Third Party Payments          ,Private Contractors           ,EH02,Miscellaneous Hired Services,424,"1,004.64",3/24/2012,R,FM CONWAY LTD                 
2012 - MAR,Highways & Transport Services,Construction Projects,TRAF & HWYS CAPITAL PROJECTS         ,G00210,Supplies & Services           ,Services                      ,DF03,Consultants,425,"1,500.00",3/19/2012,R,FSW IT SOLUTIONS              
2012 - MAR,Highways & Transport Services,Traffic Mgt & Road Safety,Tr Man & Accid Sch                      ,G00220,Third Party Payments          ,Private Contractors           ,EH02,Miscellaneous Hired Services,426,"2,329.60",3/7/2012,R,FM CONWAY LTD                 
2012 - MAR,Highways & Transport Services,Traffic Mgt & Road Safety,Tr Man & Accid Sch                      ,G00220,Third Party Payments          ,Private Contractors           ,EH02,Miscellaneous Hired Services,427,"1,332.80",3/7/2012,R,FM CONWAY LTD                 
2012 - MAR,Highways & Transport Services,Street Lights(Inc Energy Cost),Street Lighting .                       ,G00260,Premises Related Expenditure  ,Energy Costs                  ,BB02,Electricity,428,"53,028.14",3/8/2012,R,KENT COUNTY COUNCIL           
2012 - MAR,Highways & Transport Services,Street Lights(Inc Energy Cost),Street Lighting .                       ,G00260,Third Party Payments          ,Private Contractors           ,EH01,Miscellaneous Agency Services,429,643,2/23/2012,R,UK POWER NETWORKS (OPERATIONS)
2012 - MAR,Highways & Transport Services,Street Lights(Inc Energy Cost),Street Lighting .                       ,G00260,Third Party Payments          ,Private Contractors           ,EH01,Miscellaneous Agency Services,430,643,2/23/2012,R,UK POWER NETWORKS (OPERATIONS)
2012 - MAR,Highways & Transport Services,Street Lights(Inc Energy Cost),Street Lighting .                       ,G00260,Third Party Payments          ,Private Contractors           ,EH01,Miscellaneous Agency Services,431,"9,971.20",2/15/2012,R,MAY GURNEY LTD T/A CARTLEDGE  
2012 - MAR,Highways & Transport Services,Street Lights(Inc Energy Cost),Street Lighting .                       ,G00260,Third Party Payments          ,Private Contractors           ,EH01,Miscellaneous Agency Services,432,"13,634.39",2/24/2012,R,MAY GURNEY LTD T/A CARTLEDGE  
2012 - MAR,Highways & Transport Services,Street Lights(Inc Energy Cost),Street Lighting .                       ,G00260,Third Party Payments          ,Private Contractors           ,EH01,Miscellaneous Agency Services,433,"2,362.93",2/15/2012,R,MAY GURNEY LTD T/A CARTLEDGE  
2012 - MAR,Highways & Transport Services,Street Lights(Inc Energy Cost),Street Lighting .                       ,G00260,Third Party Payments          ,Private Contractors           ,EH01,Miscellaneous Agency Services,434,"1,032.14",2/15/2012,R,MAY GURNEY LTD T/A CARTLEDGE  
2012 - MAR,Highways & Transport Services,Street Lights(Inc Energy Cost),Street Lighting .                       ,G00260,Third Party Payments          ,Private Contractors           ,EH01,Miscellaneous Agency Services,435,"1,300.07",2/15/2012,R,MAY GURNEY LTD T/A CARTLEDGE  
2012 - MAR,Highways & Transport Services,Street Lights(Inc Energy Cost),Street Lighting .                       ,G00260,Third Party Payments          ,Private Contractors           ,EH01,Miscellaneous Agency Services,436,632.02,2/15/2012,R,MAY GURNEY LTD T/A CARTLEDGE  
2012 - MAR,Highways & Transport Services,Street Lights(Inc Energy Cost),Street Lighting .                       ,G00260,Third Party Payments          ,Private Contractors           ,EH01,Miscellaneous Agency Services,437,"3,274.08",2/24/2012,R,MAY GURNEY LTD T/A CARTLEDGE  
2012 - MAR,Highways & Transport Services,Street Lights(Inc Energy Cost),Street Lighting .                       ,G00260,Third Party Payments          ,Private Contractors           ,EH01,Miscellaneous Agency Services,438,924.24,2/24/2012,R,MAY GURNEY LTD T/A CARTLEDGE  
2012 - MAR,Highways & Transport Services,Street Lights(Inc Energy Cost),Street Lighting .                       ,G00260,Third Party Payments          ,Private Contractors           ,EH01,Miscellaneous Agency Services,439,643,3/1/2012,R,UK POWER NETWORKS (OPERATIONS)
2012 - MAR,Highways & Transport Services,Street Lights(Inc Energy Cost),Street Lighting .                       ,G00260,Third Party Payments          ,Private Contractors           ,EH01,Miscellaneous Agency Services,440,643,3/2/2012,R,UK POWER NETWORKS (OPERATIONS)
2012 - MAR,Highways & Transport Services,Street Lights(Inc Energy Cost),Street Lighting .                       ,G00260,Third Party Payments          ,Private Contractors           ,EH01,Miscellaneous Agency Services,441,707,3/1/2012,R,UK POWER NETWORKS (OPERATIONS)
2012 - MAR,Highways & Transport Services,Street Lights(Inc Energy Cost),Street Lighting .                       ,G00260,Third Party Payments          ,Private Contractors           ,EH01,Miscellaneous Agency Services,442,643,3/2/2012,R,UK POWER NETWORKS (OPERATIONS)
2012 - MAR,Highways & Transport Services,Street Lights(Inc Energy Cost),Street Lighting .                       ,G00260,Third Party Payments          ,Private Contractors           ,EH01,Miscellaneous Agency Services,443,643,3/2/2012,R,UK POWER NETWORKS (OPERATIONS)
2012 - MAR,Highways & Transport Services,Street Lights(Inc Energy Cost),Street Lighting .                       ,G00260,Third Party Payments          ,Private Contractors           ,EH01,Miscellaneous Agency Services,444,643,3/1/2012,R,UK POWER NETWORKS (OPERATIONS)
2012 - MAR,Highways & Transport Services,Street Lights(Inc Energy Cost),Street Lighting .                       ,G00260,Third Party Payments          ,Private Contractors           ,EH01,Miscellaneous Agency Services,445,643,3/12/2012,R,UK POWER NETWORKS (OPERATIONS)
2012 - MAR,Highways & Transport Services,Street Lights(Inc Energy Cost),Street Lighting .                       ,G00260,Third Party Payments          ,Private Contractors           ,EH01,Miscellaneous Agency Services,446,"1,241.00",1/31/2012,R,UK POWER NETWORKS (OPERATIONS)
2012 - MAR,Highways & Transport Services,Street Lights(Inc Energy Cost),Street Lighting .                       ,G00260,Third Party Payments          ,Private Contractors           ,EH01,Miscellaneous Agency Services,447,"1,241.00",1/31/2012,R,UK POWER NETWORKS (OPERATIONS)
2012 - MAR,Highways & Transport Services,Street Lights(Inc Energy Cost),Street Lighting .                       ,G00260,Third Party Payments          ,Private Contractors           ,EH01,Miscellaneous Agency Services,448,"1,241.00",2/3/2012,R,UK POWER NETWORKS (OPERATIONS)
2012 - MAR,Highways & Transport Services,Street Lights(Inc Energy Cost),Street Lighting .                       ,G00260,Third Party Payments          ,Private Contractors           ,EH01,Miscellaneous Agency Services,449,"1,241.00",2/3/2012,R,UK POWER NETWORKS (OPERATIONS)
2012 - MAR,Highways & Transport Services,Street Lights(Inc Energy Cost),Street Lighting .                       ,G00260,Third Party Payments          ,Private Contractors           ,EH01,Miscellaneous Agency Services,450,"13,634.39",3/15/2012,R,MAY GURNEY LTD T/A CARTLEDGE  
2012 - MAR,Highways & Transport Services,Street Lights(Inc Energy Cost),Street Lighting .                       ,G00260,Third Party Payments          ,Private Contractors           ,EH01,Miscellaneous Agency Services,451,996.59,3/19/2012,R,MAY GURNEY LTD T/A CARTLEDGE  
2012 - MAR,Highways & Transport Services,Street Lights(Inc Energy Cost),Street Lighting .                       ,G00260,Third Party Payments          ,Private Contractors           ,EH01,Miscellaneous Agency Services,452,898.69,3/19/2012,R,MAY GURNEY LTD T/A CARTLEDGE  
2012 - MAR,Highways & Transport Services,Street Lights(Inc Energy Cost),Street Lighting .                       ,G00260,Third Party Payments          ,Private Contractors           ,EH01,Miscellaneous Agency Services,453,765.52,3/15/2012,R,MAY GURNEY LTD T/A CARTLEDGE  
2012 - MAR,Highways & Transport Services,Street Lights(Inc Energy Cost),Street Lighting .                       ,G00260,Third Party Payments          ,Private Contractors           ,EH01,Miscellaneous Agency Services,454,677.35,3/26/2012,R,MAY GURNEY LTD T/A CARTLEDGE  
2012 - MAR,Highways & Transport Services,Street Lights(Inc Energy Cost),Street Lighting .                       ,G00260,Third Party Payments          ,Private Contractors           ,EH01,Miscellaneous Agency Services,455,"1,104.82",3/26/2012,R,MAY GURNEY LTD T/A CARTLEDGE  
2012 - MAR,Highways & Transport Services,Street Lights(Inc Energy Cost),Street Lighting .                       ,G00260,Third Party Payments          ,Private Contractors           ,EH01,Miscellaneous Agency Services,456,854.17,3/26/2012,R,MAY GURNEY LTD T/A CARTLEDGE  
2012 - MAR,Highways & Transport Services,Street Lights(Inc Energy Cost),Street Lighting .                       ,G00260,Third Party Payments          ,Private Contractors           ,EH01,Miscellaneous Agency Services,457,613.35,3/26/2012,R,MAY GURNEY LTD T/A CARTLEDGE  
2012 - MAR,Highways & Transport Services,Street Lights(Inc Energy Cost),Street Lighting .                       ,G00260,Third Party Payments          ,Private Contractors           ,EH01,Miscellaneous Agency Services,458,509,3/23/2012,R,MAY GURNEY LTD T/A CARTLEDGE  
2012 - MAR,Highways & Transport Services,Street Lights(Inc Energy Cost),Street Lighting .                       ,G00260,Third Party Payments          ,Private Contractors           ,EH01,Miscellaneous Agency Services,459,552.24,3/26/2012,R,MAY GURNEY LTD T/A CARTLEDGE  
2012 - MAR,Highways & Transport Services,Street Lights(Inc Energy Cost),Street Lighting .                       ,G00260,Third Party Payments          ,Private Contractors           ,EH01,Miscellaneous Agency Services,460,"1,762.96",3/23/2012,R,MAY GURNEY LTD T/A CARTLEDGE  
2012 - MAR,Highways & Transport Services,Street Lights(Inc Energy Cost),Street Lighting .                       ,G00260,Third Party Payments          ,Private Contractors           ,EH01,Miscellaneous Agency Services,461,903.73,3/23/2012,R,MAY GURNEY LTD T/A CARTLEDGE  
2012 - MAR,Highways & Transport Services,Street Lights(Inc Energy Cost),Street Lighting .                       ,G00260,Third Party Payments          ,Private Contractors           ,EH01,Miscellaneous Agency Services,462,"8,000.00",3/26/2012,R,MAY GURNEY LTD T/A CARTLEDGE  
2012 - MAR,Highways & Transport Services,Street Lights(Inc Energy Cost),Street Lighting .                       ,G00260,Third Party Payments          ,Private Contractors           ,EH01,Miscellaneous Agency Services,463,"8,000.00",3/26/2012,R,MAY GURNEY LTD T/A CARTLEDGE  
2012 - MAR,Highways & Transport Services,Street Lights(Inc Energy Cost),Street Lighting .                       ,G00260,Third Party Payments          ,Private Contractors           ,EH01,Miscellaneous Agency Services,464,"17,500.00",3/26/2012,R,MAY GURNEY LTD T/A CARTLEDGE  
2012 - MAR,Highways & Transport Services,Street Lights(Inc Energy Cost),Street Lighting .                       ,G00260,Third Party Payments          ,Private Contractors           ,EH01,Miscellaneous Agency Services,465,"6,300.00",3/26/2012,R,MAY GURNEY LTD T/A CARTLEDGE  
2012 - MAR,Highways & Transport Services,Street Lights(Inc Energy Cost),Street Lighting .                       ,G00260,Third Party Payments          ,Private Contractors           ,EH01,Miscellaneous Agency Services,466,"5,000.00",3/26/2012,R,MAY GURNEY LTD T/A CARTLEDGE  
2012 - MAR,Highways & Transport Services,Street Lights(Inc Energy Cost),Street Lighting .                       ,G00260,Third Party Payments          ,Private Contractors           ,EH01,Miscellaneous Agency Services,467,"4,900.00",3/26/2012,R,MAY GURNEY LTD T/A CARTLEDGE  
2012 - MAR,Highways & Transport Services,Street Lights(Inc Energy Cost),Street Lighting .                       ,G00260,Third Party Payments          ,Private Contractors           ,EH01,Miscellaneous Agency Services,468,"5,800.00",3/26/2012,R,MAY GURNEY LTD T/A CARTLEDGE  
2012 - MAR,Highways & Transport Services,Street Lights(Inc Energy Cost),Street Lighting .                       ,G00260,Third Party Payments          ,Private Contractors           ,EH01,Miscellaneous Agency Services,469,"2,900.00",3/26/2012,R,MAY GURNEY LTD T/A CARTLEDGE  
2012 - MAR,Highways & Transport Services,Street Lights(Inc Energy Cost),Street Lighting .                       ,G00260,Third Party Payments          ,Private Contractors           ,EH01,Miscellaneous Agency Services,470,"13,500.00",3/26/2012,R,MAY GURNEY LTD T/A CARTLEDGE  
2012 - MAR,Highways & Transport Services,Street Lights(Inc Energy Cost),Street Lighting .                       ,G00260,Third Party Payments          ,Private Contractors           ,EH01,Miscellaneous Agency Services,471,"3,700.00",3/26/2012,R,MAY GURNEY LTD T/A CARTLEDGE  
2012 - MAR,Highways & Transport Services,Street Lights(Inc Energy Cost),Street Lighting .                       ,G00260,Third Party Payments          ,Private Contractors           ,EH01,Miscellaneous Agency Services,472,"4,500.00",3/26/2012,R,MAY GURNEY LTD T/A CARTLEDGE  
2012 - MAR,Highways & Transport Services,Street Lights(Inc Energy Cost),Street Lighting .                       ,G00260,Third Party Payments          ,Private Contractors           ,EH01,Miscellaneous Agency Services,473,"3,800.00",3/26/2012,R,MAY GURNEY LTD T/A CARTLEDGE  
2012 - MAR,Highways & Transport Services,Street Lights(Inc Energy Cost),Street Lighting .                       ,G00260,Third Party Payments          ,Private Contractors           ,EH01,Miscellaneous Agency Services,474,"21,000.00",3/26/2012,R,MAY GURNEY LTD T/A CARTLEDGE  
2012 - MAR,Highways & Transport Services,Street Lights(Inc Energy Cost),Street Lighting .                       ,G00260,Third Party Payments          ,Private Contractors           ,EH01,Miscellaneous Agency Services,475,"7,200.00",3/26/2012,R,MAY GURNEY LTD T/A CARTLEDGE  
2012 - MAR,Highways & Transport Services,Street Lights(Inc Energy Cost),Street Lighting .                       ,G00260,Third Party Payments          ,Private Contractors           ,EH01,Miscellaneous Agency Services,476,"17,500.00",3/26/2012,R,MAY GURNEY LTD T/A CARTLEDGE  
2012 - MAR,Highways & Transport Services,Street Lights(Inc Energy Cost),Street Lighting .                       ,G00260,Third Party Payments          ,Private Contractors           ,EH01,Miscellaneous Agency Services,477,"9,000.00",3/26/2012,R,MAY GURNEY LTD T/A CARTLEDGE  
2012 - MAR,Highways & Transport Services,Street Lights(Inc Energy Cost),Street Lighting .                       ,G00260,Third Party Payments          ,Private Contractors           ,EH01,Miscellaneous Agency Services,478,"6,000.00",3/26/2012,R,MAY GURNEY LTD T/A CARTLEDGE  
2012 - MAR,Highways & Transport Services,Street Lights(Inc Energy Cost),Street Lighting .                       ,G00260,Third Party Payments          ,Private Contractors           ,EH01,Miscellaneous Agency Services,479,"13,634.39",3/27/2012,R,MAY GURNEY LTD T/A CARTLEDGE  
2012 - MAR,Highways & Transport Services,Parking Services,Coombe Lane                             ,G00292,Premises Related Expenditure  ,Energy Costs                  ,BB02,Electricity,480,697.19,3/13/2012,R,E.ON                          
2012 - MAR,Highways & Transport Services,Parking Services,York Close CP                           ,G00298,Premises Related Expenditure  ,Rents                         ,BC01,Miscellaneous Rents,481,"19,748.98",12/1/2011,R,TRANSPORT TRADING LTD PROP A/C
2012 - MAR,Highways & Transport Services,Parking Services,St. Georges Car Park EAST               ,G00300,Premises Related Expenditure  ,Rents                         ,BC01,Miscellaneous Rents,482,681.87,2/16/2012,R,LLOYDS BANK SF NOMINEES LTD   
2012 - MAR,Highways & Transport Services,Parking Services,St. Georges Car Park WEST M/S           ,G00302,Premises Related Expenditure  ,Energy Costs                  ,BB02,Electricity,483,"1,388.52",3/2/2012,R,KENT COUNTY COUNCIL           
2012 - MAR,Highways & Transport Services,Parking Services,"St. Mks Rd, Multi Sty                   ",G00308,Premises Related Expenditure  ,Rents                         ,BC01,Miscellaneous Rents,484,"3,741.91",1/19/2012,R,FISHER PROPERTY CONSULTANTS   
2012 - MAR,Highways & Transport Services,Parking Services,On Street Parking.                      ,G00311,Premises Related Expenditure  ,RepairsAlterations&MtceOfBldgs,BA06,Repairs & Maintenance General,485,"1,995.06",3/27/2012,R,FM CONWAY LTD                 
2012 - MAR,Highways & Transport Services,Parking Services,Civil Enforcement Officers              ,G00330,Employees                     ,Direct Employee Expenses      ,AA96,SALARY SACRIFICE (TEACHERS),486,833.33,2/28/2012,R,F.W.EVANS CYCLES (UK) LTD.    
2012 - MAR,Highways & Transport Services,Parking Services,Civil Enforcement Officers              ,G00330,Premises Related Expenditure  ,RepairsAlterations&MtceOfBldgs,BA03,DDM - Mechanical,487,"1,799.64",3/8/2012,R,COFELY LIMITED                
2012 - MAR,Highways & Transport Services,Parking Services,Civil Enforcement Officers              ,G00330,Premises Related Expenditure  ,Energy Costs                  ,BB02,Electricity,488,"4,051.74",2/10/2012,R,NPOWER                        
2012 - MAR,Highways & Transport Services,Parking Services,Civil Enforcement Officers              ,G00330,Premises Related Expenditure  ,Rents                         ,BC01,Miscellaneous Rents,489,"4,377.50",3/9/2012,R,WOODCOCK BROTHERS (WIMBLEDON) 
2012 - MAR,Highways & Transport Services,Parking Services,Operational Running Costs               ,G00331,Supplies & Services           ,Equip Furniture/Materials     ,DA09,Equip-Purchases,490,"1,636.50",2/24/2012,R,PARKEON LTD                   
2012 - MAR,Highways & Transport Services,Parking Services,Operational Running Costs               ,G00331,Supplies & Services           ,Equip Furniture/Materials     ,DA09,Equip-Purchases,491,932.5,3/20/2012,R,RAEVAN SUPPLIES LTD           
2012 - MAR,Highways & Transport Services,Parking Services,Operational Running Costs               ,G00331,Supplies & Services           ,Prntng Stnry Gen Off Exp      ,DE01,External Printing,492,"1,430.00",2/17/2012,R,LIBERTY SERVICES              
2012 - MAR,Highways & Transport Services,Parking Services,Operational Running Costs               ,G00331,Supplies & Services           ,Prntng Stnry Gen Off Exp      ,DE01,External Printing,493,"2,394.00",3/19/2012,R,LIBERTY SERVICES              
2012 - MAR,Highways & Transport Services,Parking Services,Operational Running Costs               ,G00331,Supplies & Services           ,Prntng Stnry Gen Off Exp      ,DE01,External Printing,494,"2,394.00",3/19/2012,R,LIBERTY SERVICES              
2012 - MAR,Highways & Transport Services,Parking Services,Operational Running Costs               ,G00331,Third Party Payments          ,Other Agencies                ,EJ58,Parking Cttee for London,495,"1,806.00",3/6/2012,R,LONDON COUNCILS               
2012 - MAR,Highways & Transport Services,Env Safety&Routine Maintenance,Sewers - LBM                            ,G00340,Third Party Payments          ,Private Contractors           ,EH02,Miscellaneous Hired Services,496,"1,257.96",3/28/2012,R,FM CONWAY LTD                 
2012 - MAR,Highways & Transport Services,Env Safety&Routine Maintenance,Flood Risk Management                   ,G00350,Supplies & Services           ,Services                      ,DF03,Consultants,497,"9,986.80",3/15/2012,R,URS INFRASTRUCTURE & ENV UK LT
2012 - MAR,Highways & Transport Services,Env Safety&Routine Maintenance,Flood Risk Management                   ,G00350,Supplies & Services           ,Services                      ,DF03,Consultants,498,"10,174.00",3/16/2012,R,URS INFRASTRUCTURE & ENV UK LT
2012 - MAR,Highways & Transport Services,Env Safety&Routine Maintenance,Flood Risk Management                   ,G00350,Supplies & Services           ,Services                      ,DF03,Consultants,499,"12,479.00",3/22/2012,R,URS INFRASTRUCTURE & ENV UK LT
2012 - MAR,Highways & Transport Services,Env Safety&Routine Maintenance,Flood Risk Management                   ,G00350,Third Party Payments          ,Private Contractors           ,EH56,Carriageway/Fway Maint,500,"10,449.47",3/15/2012,R,FM CONWAY LTD                 
2012 - MAR,Highways & Transport Services,Env Safety&Routine Maintenance,Flood Risk Management                   ,G00350,Third Party Payments          ,Private Contractors           ,EH56,Carriageway/Fway Maint,501,"8,237.36",3/27/2012,R,FM CONWAY LTD                 
2012 - MAR,Highways & Transport Services,Env Safety&Routine Maintenance,Flood Risk Management                   ,G00350,Third Party Payments          ,Private Contractors           ,EH56,Carriageway/Fway Maint,502,"50,000.00",3/27/2012,R,FM CONWAY LTD                 
2012 - MAR,Highways & Transport Services,Env Safety&Routine Maintenance,Flood Risk Management                   ,G00350,Third Party Payments          ,Private Contractors           ,EH56,Carriageway/Fway Maint,503,633.53,3/27/2012,R,FM CONWAY LTD                 
2012 - MAR,Highways & Transport Services,Env Safety&Routine Maintenance,Flood Risk Management                   ,G00350,Third Party Payments          ,Private Contractors           ,EH56,Carriageway/Fway Maint,504,"2,097.28",3/27/2012,R,FM CONWAY LTD                 
2012 - MAR,Highways & Transport Services,Env Safety&Routine Maintenance,Flood Risk Management                   ,G00350,Third Party Payments          ,Private Contractors           ,EH56,Carriageway/Fway Maint,505,"3,120.00",3/27/2012,R,FM CONWAY LTD                 
2012 - MAR,Highways & Transport Services,Env Safety&Routine Maintenance,Flood Risk Management                   ,G00350,Third Party Payments          ,Private Contractors           ,EH56,Carriageway/Fway Maint,506,"15,000.00",3/28/2012,R,FM CONWAY LTD                 
2012 - MAR,Highways & Transport Services,Tr'sport Plg / Policy / Str'gy,RASWA                                   ,G00382,Employees                     ,Indirect Employee Expenses    ,AB57,External Training Costs,507,"1,850.00",1/30/2012,R,STREETWORK SOLUTIONS LTD      
2012 - MAR,Highways & Transport Services,Structural Maintenance,Footpath Crossings.                     ,G00390,Third Party Payments          ,Private Contractors           ,EH56,Carriageway/Fway Maint,508,"6,217.09",2/17/2012,R,FM CONWAY LTD                 
2012 - MAR,Highways & Transport Services,Structural Maintenance,Footpath Crossings.                     ,G00390,Third Party Payments          ,Private Contractors           ,EH56,Carriageway/Fway Maint,509,"2,130.07",3/28/2012,R,FM CONWAY LTD                 
2012 - MAR,Highways & Transport Services,Structural Maintenance,Footpath Crossings.                     ,G00390,Third Party Payments          ,Private Contractors           ,EH56,Carriageway/Fway Maint,510,"4,000.00",3/28/2012,R,FM CONWAY LTD                 
2012 - MAR,Highways & Transport Services,Structural Maintenance,Footpath Crossings.                     ,G00390,Third Party Payments          ,Private Contractors           ,EH56,Carriageway/Fway Maint,511,"2,011.73",3/27/2012,R,FM CONWAY LTD                 
2012 - MAR,Highways & Transport Services,Structural Maintenance,Footpath Crossings.                     ,G00390,Third Party Payments          ,Private Contractors           ,EH56,Carriageway/Fway Maint,512,"2,954.98",3/28/2012,R,FM CONWAY LTD                 
2012 - MAR,Cultural Env Reg&Plan Services,Street Cleaning - Not highways,Street Cleansing (Inc. Gully)           ,G00492,Employees                     ,Indirect Employee Expenses    ,AB57,External Training Costs,513,610,2/17/2012,R,TRAIN-A-LIFT LTD              
2012 - MAR,Cultural Env Reg&Plan Services,Street Cleaning - Not highways,Street Cleansing (Inc. Gully)           ,G00492,Employees                     ,Indirect Employee Expenses    ,AB57,External Training Costs,514,590,3/15/2012,R,TRAIN-A-LIFT LTD              
2012 - MAR,Cultural Env Reg&Plan Services,Street Cleaning - Not highways,Street Cleansing (Inc. Gully)           ,G00492,Employees                     ,Indirect Employee Expenses    ,AB57,External Training Costs,515,507,3/9/2012,R,APSE                          
2012 - MAR,Cultural Env Reg&Plan Services,Street Cleaning - Not highways,Street Cleansing (Inc. Gully)           ,G00492,Premises Related Expenditure  ,Energy Costs                  ,BB02,Electricity,516,690.07,2/15/2012,R,EDF ENERGY                    
2012 - MAR,Cultural Env Reg&Plan Services,Street Cleaning - Not highways,Street Cleansing (Inc. Gully)           ,G00492,Supplies & Services           ,Equip Furniture/Materials     ,DA01,Equipment - R & M,517,766.4,2/29/2012,R,N A BROWN LTD                 
2012 - MAR,Cultural Env Reg&Plan Services,Street Cleaning - Not highways,Street Cleansing (Inc. Gully)           ,G00492,Supplies & Services           ,Equip Furniture/Materials     ,DA31,Waste Sacks & Bags,518,926.1,1/4/2012,R,POLARIS PLASTICS LTD          
2012 - MAR,Cultural Env Reg&Plan Services,Street Cleaning - Not highways,Street Cleansing (Inc. Gully)           ,G00492,Supplies & Services           ,Equip Furniture/Materials     ,DA31,Waste Sacks & Bags,519,"1,852.20",2/6/2012,R,POLARIS PLASTICS LTD          
2012 - MAR,Cultural Env Reg&Plan Services,Street Cleaning - Not highways,Street Cleansing (Inc. Gully)           ,G00492,Supplies & Services           ,Equip Furniture/Materials     ,DA31,Waste Sacks & Bags,520,926.1,2/28/2012,R,POLARIS PLASTICS LTD          
2012 - MAR,Cultural Env Reg&Plan Services,Street Cleaning - Not highways,Street Cleansing (Inc. Gully)           ,G00492,Supplies & Services           ,Equip Furniture/Materials     ,DA31,Waste Sacks & Bags,521,"3,610.30",3/13/2012,R,POLARIS PLASTICS LTD          
2012 - MAR,Cultural Env Reg&Plan Services,Street Cleaning - Not highways,Street Cleansing (Inc. Gully)           ,G00492,Supplies & Services           ,Equip Furniture/Materials     ,DA32,Wheeled Bins,522,"1,781.25",2/21/2012,R,SPIDER UK LTD                 
2012 - MAR,Cultural Env Reg&Plan Services,Street Cleaning - Not highways,Street Cleansing (Inc. Gully)           ,G00492,Supplies & Services           ,Equip Furniture/Materials     ,DA32,Wheeled Bins,523,"1,218.75",3/8/2012,R,SPIDER UK LTD                 
2012 - MAR,Cultural Env Reg&Plan Services,Street Cleaning - Not highways,Street Cleansing (Inc. Gully)           ,G00492,Supplies & Services           ,Equip Furniture/Materials     ,DA32,Wheeled Bins,524,"3,251.25",3/8/2012,R,SPIDER UK LTD                 
2012 - MAR,Cultural Env Reg&Plan Services,Waste Disposal,Waste Disposal .                        ,G00550,Third Party Payments          ,Private Contractors           ,EH66,Clinical Waste Disposal,525,547.15,1/31/2012,R,S.GRUNDON (WASTE) LTD.        
2012 - MAR,Cultural Env Reg&Plan Services,Waste Disposal,Waste Disposal .                        ,G00550,Third Party Payments          ,Private Contractors           ,EH66,Clinical Waste Disposal,526,689.97,2/29/2012,R,S.GRUNDON (WASTE) LTD.        
2012 - MAR,Cultural Env Reg&Plan Services,Waste Disposal,Waste Disposal .                        ,G00550,Third Party Payments          ,Private Contractors           ,EH90,Disposal of Waste from CA Site,527,"12,696.00",3/13/2012,R,SSI SCHAEFER LTD              
2012 - MAR,Cultural Env Reg&Plan Services,Waste Disposal,Waste Disposal .                        ,G00550,Third Party Payments          ,Private Contractors           ,EH90,Disposal of Waste from CA Site,528,"2,625.02",3/15/2012,R,SPHERE PROFFESSIONAL          
2012 - MAR,Cultural Env Reg&Plan Services,Waste Disposal,Waste Disposal .                        ,G00550,Third Party Payments          ,Private Contractors           ,EH90,Disposal of Waste from CA Site,529,"22,208.76",3/6/2012,R,SPHERE PROFFESSIONAL          
2012 - MAR,Cultural Env Reg&Plan Services,Waste Disposal,Waste Disposal .                        ,G00550,Third Party Payments          ,Private Contractors           ,EH90,Disposal of Waste from CA Site,530,"13,777.92",3/21/2012,R,STRAIGHT PLC                  
2012 - MAR,Cultural Env Reg&Plan Services,Waste Disposal,Waste Disposal .                        ,G00550,Third Party Payments          ,Private Contractors           ,EH91,Disposal of Asbestos,531,"1,674.49",1/31/2012,R,CITY OF LONDON CORPORATION    
2012 - MAR,Cultural Env Reg&Plan Services,Waste Disposal,Waste Disposal .                        ,G00550,Third Party Payments          ,Private Contractors           ,EH96,Hardcore Disposal - Country Waste,532,"1,530.58",2/29/2012,R,CORY ENVIRONMENTAL LIMITED    
2012 - MAR,Cultural Env Reg&Plan Services,Waste Disposal,Garth Road Site                         ,G00580,Supplies & Services           ,Equip Furniture/Materials     ,DA01,Equipment - R & M,533,"4,426.80",3/29/2012,R,UNIQUE OFFICE SOLUTIONS LTD   
2012 - MAR,Cultural Env Reg&Plan Services,Waste Disposal,Garth Road Site                         ,G00580,Supplies & Services           ,Equip Furniture/Materials     ,DA01,Equipment - R & M,534,"1,260.00",3/27/2012,R,R.J.H.WELDING                 
2012 - MAR,Highways & Transport Services,Structural Maintenance,Grass Cut/Tr Mtce                       ,G00600,Premises Related Expenditure  ,Ground Maintenance Costs      ,BL03,Maintenance of Grounds,535,"1,357.15",2/13/2012,R,VEOLIA ES (UK) LIMITED        
2012 - MAR,Highways & Transport Services,Structural Maintenance,Grass Cut/Tr Mtce                       ,G00600,Premises Related Expenditure  ,Ground Maintenance Costs      ,BL03,Maintenance of Grounds,536,702.5,2/13/2012,R,VEOLIA ES (UK) LIMITED        
2012 - MAR,Highways & Transport Services,Structural Maintenance,Grass Cut/Tr Mtce                       ,G00600,Premises Related Expenditure  ,Ground Maintenance Costs      ,BL03,Maintenance of Grounds,537,702.84,2/13/2012,R,VEOLIA ES (UK) LIMITED        
2012 - MAR,Highways & Transport Services,Structural Maintenance,Grass Cut/Tr Mtce                       ,G00600,Premises Related Expenditure  ,Ground Maintenance Costs      ,BL03,Maintenance of Grounds,538,"5,530.93",3/22/2012,R,VEOLIA ES (UK) LIMITED        
2012 - MAR,Highways & Transport Services,Structural Maintenance,Grass Cut/Tr Mtce                       ,G00600,Premises Related Expenditure  ,Ground Maintenance Costs      ,BL03,Maintenance of Grounds,539,588.76,3/22/2012,R,VEOLIA ES (UK) LIMITED        
2012 - MAR,Highways & Transport Services,Structural Maintenance,Grass Cut/Tr Mtce                       ,G00600,Premises Related Expenditure  ,Ground Maintenance Costs      ,BL03,Maintenance of Grounds,540,"1,008.85",3/22/2012,R,VEOLIA ES (UK) LIMITED        
2012 - MAR,Highways & Transport Services,Structural Maintenance,Grass Cut/Tr Mtce                       ,G00600,Premises Related Expenditure  ,Ground Maintenance Costs      ,BL03,Maintenance of Grounds,541,775.7,3/22/2012,R,VEOLIA ES (UK) LIMITED        
2012 - MAR,Highways & Transport Services,Structural Maintenance,Grass Cut/Tr Mtce                       ,G00600,Premises Related Expenditure  ,Ground Maintenance Costs      ,BL03,Maintenance of Grounds,542,672.83,3/22/2012,R,VEOLIA ES (UK) LIMITED        
2012 - MAR,Highways & Transport Services,Structural Maintenance,Grass Cut/Tr Mtce                       ,G00600,Premises Related Expenditure  ,Ground Maintenance Costs      ,BL03,Maintenance of Grounds,543,909.4,3/22/2012,R,VEOLIA ES (UK) LIMITED        
2012 - MAR,Highways & Transport Services,Structural Maintenance,Grass Cut/Tr Mtce                       ,G00600,Premises Related Expenditure  ,Ground Maintenance Costs      ,BL03,Maintenance of Grounds,544,724.37,3/22/2012,R,VEOLIA ES (UK) LIMITED        
2012 - MAR,Highways & Transport Services,Structural Maintenance,Grass Cut/Tr Mtce                       ,G00600,Premises Related Expenditure  ,Ground Maintenance Costs      ,BL03,Maintenance of Grounds,545,918.29,3/22/2012,R,VEOLIA ES (UK) LIMITED        
2012 - MAR,Highways & Transport Services,Structural Maintenance,Grass Cut/Tr Mtce                       ,G00600,Premises Related Expenditure  ,Ground Maintenance Costs      ,BL03,Maintenance of Grounds,546,624.25,3/22/2012,R,VEOLIA ES (UK) LIMITED        
2012 - MAR,Highways & Transport Services,Structural Maintenance,Grass Cut/Tr Mtce                       ,G00600,Premises Related Expenditure  ,Ground Maintenance Costs      ,BL03,Maintenance of Grounds,547,"13,490.38",3/22/2012,R,VEOLIA ES (UK) LIMITED        
2012 - MAR,Highways & Transport Services,Structural Maintenance,Grass Cut/Tr Mtce                       ,G00600,Premises Related Expenditure  ,Ground Maintenance Costs      ,BL03,Maintenance of Grounds,548,"4,689.34",3/22/2012,R,VEOLIA ES (UK) LIMITED        
2012 - MAR,Highways & Transport Services,Structural Maintenance,Grass Cut/Tr Mtce                       ,G00600,Premises Related Expenditure  ,Ground Maintenance Costs      ,BL03,Maintenance of Grounds,549,"25,215.00",3/22/2012,R,VEOLIA ES (UK) LIMITED        
2012 - MAR,Highways & Transport Services,Structural Maintenance,Grass Cut/Tr Mtce                       ,G00600,Premises Related Expenditure  ,Ground Maintenance Costs      ,BL03,Maintenance of Grounds,550,630.8,3/22/2012,R,VEOLIA ES (UK) LIMITED        
2012 - MAR,Highways & Transport Services,Structural Maintenance,Grass Cut/Tr Mtce                       ,G00600,Premises Related Expenditure  ,Ground Maintenance Costs      ,BL03,Maintenance of Grounds,551,"13,490.38",3/22/2012,R,VEOLIA ES (UK) LIMITED        
2012 - MAR,Highways & Transport Services,Structural Maintenance,Grass Cut/Tr Mtce                       ,G00600,Premises Related Expenditure  ,Ground Maintenance Costs      ,BL03,Maintenance of Grounds,552,"4,689.34",3/22/2012,R,VEOLIA ES (UK) LIMITED        
2012 - MAR,Highways & Transport Services,Structural Maintenance,Grass Cut/Tr Mtce                       ,G00600,Premises Related Expenditure  ,Ground Maintenance Costs      ,BL03,Maintenance of Grounds,553,"27,117.15",3/22/2012,R,VEOLIA ES (UK) LIMITED        
2012 - MAR,Highways & Transport Services,Structural Maintenance,Grass Cut/Tr Mtce                       ,G00600,Premises Related Expenditure  ,Ground Maintenance Costs      ,BL03,Maintenance of Grounds,554,"23,925.00",3/22/2012,R,VEOLIA ES (UK) LIMITED        
2012 - MAR,Highways & Transport Services,Structural Maintenance,Grass Cut/Tr Mtce                       ,G00600,Premises Related Expenditure  ,Ground Maintenance Costs      ,BL03,Maintenance of Grounds,555,"19,268.91",3/22/2012,R,VEOLIA ES (UK) LIMITED        
2012 - MAR,Cultural Env Reg&Plan Services,Environmental Health,Dog Control.                            ,G00620,Third Party Payments          ,Private Contractors           ,EH02,Miscellaneous Hired Services,556,"2,390.00",1/31/2012,R,WOODLANDS ANIMAL CARE LTD     
2012 - MAR,Cultural Env Reg&Plan Services,Environmental Health,Dog Control.                            ,G00620,Third Party Payments          ,Private Contractors           ,EH02,Miscellaneous Hired Services,557,"2,619.09",3/13/2012,R,RIVERSIDE ANIMAL SERVICES     
2012 - MAR,Cultural Env Reg&Plan Services,Environmental Health,Dog Control.                            ,G00620,Third Party Payments          ,Private Contractors           ,EH02,Miscellaneous Hired Services,558,"1,050.00",12/31/2011,R,WOODLANDS ANIMAL CARE LTD     
2012 - MAR,Cultural Env Reg&Plan Services,Waste Collection,Recycling Activities                    ,G00640,Supplies & Services           ,Equip Furniture/Materials     ,DA04,Materials,559,"27,754.27",3/20/2012,R,SPHERE PROFFESSIONAL          
2012 - MAR,Cultural Env Reg&Plan Services,Waste Collection,Recycling Activities                    ,G00640,Third Party Payments          ,Private Contractors           ,EH61,Green Waste Disposal,560,"13,959.00",2/10/2012,R,VIRIDOR WASTE KENT LTD        
2012 - MAR,Cultural Env Reg&Plan Services,Waste Collection,Recycling Activities                    ,G00640,Third Party Payments          ,Private Contractors           ,EH61,Green Waste Disposal,561,"13,123.32",2/20/2012,R,VIRIDOR WASTE KENT LTD        
2012 - MAR,Cultural Env Reg&Plan Services,Waste Collection,Recycling Activities                    ,G00640,Third Party Payments          ,Private Contractors           ,EH61,Green Waste Disposal,562,"4,667.79",2/29/2012,R,VIRIDOR WASTE KENT LTD        
2012 - MAR,Cultural Env Reg&Plan Services,Waste Collection,Recycling Activities                    ,G00640,Third Party Payments          ,Private Contractors           ,EH63,Paper Haulage,563,"6,818.32",3/9/2012,R,KINGSTON CORPORATION          
2012 - MAR,Cultural Env Reg&Plan Services,Waste Collection,Recycling Collection                    ,G00645,Supplies & Services           ,Clothing Unfrms Laundry       ,DC02,Clothing & Uniforms,564,"1,269.76",2/21/2012,R,SAFETY MANAGEMENT             
2012 - MAR,Cultural Env Reg&Plan Services,Waste Collection,Refuse Collection (Operations)          ,G00661,Supplies & Services           ,Equip Furniture/Materials     ,DA08,Tools-Purchase,565,531.45,2/24/2012,R,BELL BRUSH                    
2012 - MAR,Cultural Env Reg&Plan Services,Waste Collection,Refuse Collection (Operations)          ,G00661,Supplies & Services           ,Equip Furniture/Materials     ,DA08,Tools-Purchase,566,"1,361.70",3/15/2012,R,BELL BRUSH                    
2012 - MAR,Cultural Env Reg&Plan Services,Waste Collection,Refuse Collection (Operations)          ,G00661,Supplies & Services           ,Equip Furniture/Materials     ,DA31,Waste Sacks & Bags,567,"1,164.80",2/27/2012,R,IMPERIAL POLYTHENE PRODUCTS LT
2012 - MAR,Cultural Env Reg&Plan Services,Waste Collection,Refuse Collection (Operations)          ,G00661,Supplies & Services           ,Equip Furniture/Materials     ,DA31,Waste Sacks & Bags,568,"4,035.20",2/28/2012,R,IMPERIAL POLYTHENE PRODUCTS LT
2012 - MAR,Cultural Env Reg&Plan Services,Waste Collection,Refuse Collection (Operations)          ,G00661,Supplies & Services           ,Equip Furniture/Materials     ,DA32,Wheeled Bins,569,752,2/21/2012,R,SPIDER UK LTD                 
2012 - MAR,Cultural Env Reg&Plan Services,Waste Collection,Refuse Collection (Operations)          ,G00661,Supplies & Services           ,Equip Furniture/Materials     ,DA32,Wheeled Bins,570,"1,056.24",2/29/2012,R,UK WASTE CONTAINERS           
2012 - MAR,Cultural Env Reg&Plan Services,Waste Collection,Refuse Collection (Operations)          ,G00661,Supplies & Services           ,Equip Furniture/Materials     ,DA32,Wheeled Bins,571,"1,455.10",3/26/2012,R,UK WASTE CONTAINERS           
2012 - MAR,Cultural Env Reg&Plan Services,Waste Collection,Refuse Collection (Operations)          ,G00661,Supplies & Services           ,Equip Furniture/Materials     ,DA32,Wheeled Bins,572,"2,311.02",3/26/2012,R,UK WASTE CONTAINERS           
2012 - MAR,Cultural Env Reg&Plan Services,Waste Collection,Refuse Collection (Operations)          ,G00661,Supplies & Services           ,Clothing Unfrms Laundry       ,DC02,Clothing & Uniforms,573,"2,362.85",3/7/2012,R,SAFETY MANAGEMENT             
2012 - MAR,Cultural Env Reg&Plan Services,Waste Collection,Refuse Collection (Operations)          ,G00661,Supplies & Services           ,Comms and Computing           ,DG14,Telephones - Mobile,574,"1,110.00",2/28/2012,R,T MOBILE (UK)                 
2012 - MAR,Cultural Env Reg&Plan Services,Waste Collection,Refuse Collection (Operations)          ,G00661,Supplies & Services           ,Comms and Computing           ,DG14,Telephones - Mobile,575,666,3/20/2012,R,T MOBILE (UK)                 
2012 - MAR,Cultural Env Reg&Plan Services,Waste Collection,Commercial Waste                        ,G00663,Supplies & Services           ,Equip Furniture/Materials     ,DA31,Waste Sacks & Bags,576,"1,495.65",2/14/2012,R,IMPERIAL POLYTHENE PRODUCTS LT
2012 - MAR,Cultural Env Reg&Plan Services,Waste Collection,Commercial Waste                        ,G00663,Supplies & Services           ,Equip Furniture/Materials     ,DA31,Waste Sacks & Bags,577,"1,255.15",3/12/2012,R,GELPACK EXCELSIOR             
2012 - MAR,Cultural Env Reg&Plan Services,Waste Collection,Commercial Waste                        ,G00663,Supplies & Services           ,Equip Furniture/Materials     ,DA31,Waste Sacks & Bags,578,"2,510.30",3/13/2012,R,GELPACK EXCELSIOR             
2012 - MAR,Cultural Env Reg&Plan Services,Street Cleaning - Not highways,Waste Enforcement                       ,G00680,Supplies & Services           ,Services                      ,DF30,Activities Programme,579,"1,920.00",1/28/2012,R,DANGEROUS THEATRE COMPANY     
2012 - MAR,Cultural Env Reg&Plan Services,Street Cleaning - Not highways,Waste Enforcement                       ,G00680,Third Party Payments          ,Private Contractors           ,EH56,Carriageway/Fway Maint,580,"1,950.00",3/26/2012,R,GRAFFITIHOTLINE               
2012 - MAR,Cultural Env Reg&Plan Services,Consumer Protection,Trading Standards                       ,G00690,Supplies & Services           ,Services                      ,DF11,Counsel's fees,581,"4,660.38",12/12/2011,R,REDACTED
2012 - MAR,Cultural Env Reg&Plan Services,Environmental Health,Merton Winter Warmer Programme          ,G00696,Third Party Payments          ,Private Contractors           ,EH02,Miscellaneous Hired Services,582,"7,870.65",2/8/2012,R,GROUNDWORK LONDON             
2012 - MAR,Cultural Env Reg&Plan Services,Environmental Health,Merton Winter Warmer Programme          ,G00696,Third Party Payments          ,Private Contractors           ,EH02,Miscellaneous Hired Services,583,"1,217.37",3/12/2012,R,OSBORNE ENERGY LTD            
2012 - MAR,Cultural Env Reg&Plan Services,Environmental Health,Merton Winter Warmer Programme          ,G00696,Third Party Payments          ,Private Contractors           ,EH02,Miscellaneous Hired Services,584,"1,925.00",3/12/2012,R,OSBORNE ENERGY LTD            
2012 - MAR,Cultural Env Reg&Plan Services,Environmental Health,Merton Winter Warmer Programme          ,G00696,Third Party Payments          ,Private Contractors           ,EH02,Miscellaneous Hired Services,585,"2,400.00",3/12/2012,R,CLIMATE CONSULTING            
2012 - MAR,Cultural Env Reg&Plan Services,Environmental Health,Health & Safety                         ,G00697,Supplies & Services           ,Equip Furniture/Materials     ,DA58,Education Materials,586,920,3/20/2012,R,CHARTERED INST.OF ENVIR.HEALTH
2012 - MAR,Cultural Env Reg&Plan Services,Environmental Health,Pest Control                            ,G00724,Supplies & Services           ,Equip Furniture/Materials     ,DA04,Materials,587,"1,391.02",1/17/2012,R,KILLGERM CHEMICALS LIMITED    
2012 - MAR,Cultural Env Reg&Plan Services,Environmental Health,Housing/Env                             ,G00730,Employees                     ,Direct Employee Expenses      ,AA17,Agency Staff & Casual Paymts,588,877.45,2/15/2012,R,REDACTED
2012 - MAR,Cultural Env Reg&Plan Services,Environmental Health,Housing/Env                             ,G00730,Employees                     ,Direct Employee Expenses      ,AA17,Agency Staff & Casual Paymts,589,684.25,2/22/2012,R,REDACTED
2012 - MAR,Cultural Env Reg&Plan Services,Environmental Health,Housing/Env                             ,G00730,Employees                     ,Direct Employee Expenses      ,AA17,Agency Staff & Casual Paymts,590,772.8,2/1/2012,R,REDACTED
2012 - MAR,Cultural Env Reg&Plan Services,Environmental Health,Housing/Env                             ,G00730,Employees                     ,Direct Employee Expenses      ,AA17,Agency Staff & Casual Paymts,591,853.3,2/29/2012,R,REDACTED
2012 - MAR,Cultural Env Reg&Plan Services,Environmental Health,Housing/Env                             ,G00730,Employees                     ,Direct Employee Expenses      ,AA17,Agency Staff & Casual Paymts,592,874.23,3/7/2012,R,REDACTED
2012 - MAR,Cultural Env Reg&Plan Services,Environmental Health,Housing/Env                             ,G00730,Employees                     ,Direct Employee Expenses      ,AA17,Agency Staff & Casual Paymts,593,901.6,3/14/2012,R,REDACTED
2012 - MAR,Cultural Env Reg&Plan Services,Environmental Health,Housing/Env                             ,G00730,Supplies & Services           ,Equip Furniture/Materials     ,DA09,Equip-Purchases,594,"1,950.00",3/5/2012,R,ENVIRONMENTAL RESEARCH GROUP  
2012 - MAR,Cultural Env Reg&Plan Services,Environmental Health,Housing/Env                             ,G00730,Oth Grants Reimbmnts/Contribs ,Rev Inc to fund joint projects,QA01,Contributions Other Bodies X,595,850,3/23/2012,R,REDACTED
2012 - MAR,Cultural Env Reg&Plan Services,Environmental Health,AIR QUALITY GRANT (DEFRA) MB            ,G00732,Third Party Payments          ,Private Contractors           ,EH02,Miscellaneous Hired Services,596,"1,780.00",3/16/2012,R,AECOM LTD                     
2012 - MAR,Cultural Env Reg&Plan Services,SMSS (Env),Waste Management                        ,G00900,Employees                     ,Indirect Employee Expenses    ,AB57,External Training Costs,597,898,2/28/2012,R,KEEP BRITAIN TIDY             
2012 - MAR,Central Services,Gen Grants Bequest & Donations,Vestry Hall                             ,G40314,Employees                     ,Direct Employee Expenses      ,AA17,Agency Staff & Casual Paymts,598,"4,377.59",3/12/2012,R,PCL SECURITY LTD              
2012 - MAR,Central Services,Gen Grants Bequest & Donations,Vestry Hall                             ,G40314,Premises Related Expenditure  ,RepairsAlterations&MtceOfBldgs,BA01,DDM - General Building,599,750,3/12/2012,R,R G JONES SOUND ENGINEER      
2012 - MAR,Central Services,Gen Grants Bequest & Donations,Vestry Hall                             ,G40314,Premises Related Expenditure  ,Energy Costs                  ,BB03,Gas (incl. Butane),600,894.63,2/21/2012,R,KENT COUNTY COUNCIL           
2012 - MAR,Central Services,Gen Grants Bequest & Donations,Vestry Hall                             ,G40314,Premises Related Expenditure  ,Energy Costs                  ,BB03,Gas (incl. Butane),601,"1,000.00",3/22/2012,R,KENT COUNTY COUNCIL           
2012 - MAR,Central Services,Gen Grants Bequest & Donations,Vestry Hall                             ,G40314,Supplies & Services           ,Comms and Computing           ,DG09,Computer Purchases - Misc,602,"1,865.68",2/29/2012,R,VIGLEN LIMITED                
2012 - MAR,Central Services,Gen Grants Bequest & Donations,Vestry Hall                             ,G40314,Third Party Payments          ,Private Contractors           ,EH02,Miscellaneous Hired Services,603,"1,408.47",3/5/2012,R,DYNAMIQ CLEANING LIMITED      
2012 - MAR,Central Services,Gen Grants Bequest & Donations,Vestry Hall                             ,G40314,Third Party Payments          ,Private Contractors           ,EH02,Miscellaneous Hired Services,604,967.55,4/1/2012,R,DYNAMIQ CLEANING LIMITED      
2012 - MAR,Highways & Transport Services,Tr'sport Plg / Policy / Str'gy,Transport Planning                      ,H01070,Supplies & Services           ,Services                      ,DF03,Consultants,605,"3,830.00",3/20/2012,R,MHC TRAFFIC                   
2012 - MAR,Cultural Env Reg&Plan Services,Building Control,Building Control                        ,H01100,Supplies & Services           ,Services                      ,DF57,Consulting Engineers Fees,606,"2,282.01",2/27/2012,R,LABC                          
2012 - MAR,Cultural Env Reg&Plan Services,Development Control,Development Control                     ,H01130,Supplies & Services           ,Services                      ,DF11,Counsel's fees,607,950,2/1/2012,R,REDACTED
2012 - MAR,Cultural Env Reg&Plan Services,Development Control,Development Control                     ,H01130,Supplies & Services           ,Services                      ,DF11,Counsel's fees,608,"2,600.00",3/7/2012,R,REDACTED
2012 - MAR,Cultural Env Reg&Plan Services,Planning Policy,Spatial Policy                          ,H01173,Supplies & Services           ,Comms and Computing           ,DG07,Computer Software,609,838.28,3/22/2012,R,MISCO                         
2012 - MAR,Cultural Env Reg&Plan Services,Planning Policy,Spatial Policy                          ,H01173,Third Party Payments          ,Private Contractors           ,EH10,Contract Payments,610,"6,100.00",3/25/2012,R,SEE & ASSOCIATES              
2012 - MAR,Cultural Env Reg&Plan Services,Planning Policy,Spatial Policy                          ,H01173,Third Party Payments          ,Private Contractors           ,EH10,Contract Payments,611,"3,500.00",3/25/2012,R,SEE & ASSOCIATES              
2012 - MAR,Cultural Env Reg&Plan Services,Planning Policy,REGENERATION & INVESTMENT              ,H01174,Supplies & Services           ,Equip Furniture/Materials     ,DA03,Hire of Equipment,612,"1,540.00",2/27/2012,R,PORTOBELLO PARTNERSHIPS LTD   
2012 - MAR,Cultural Env Reg&Plan Services,Planning Policy,REGENERATION & INVESTMENT              ,H01174,Supplies & Services           ,Comms and Computing           ,DG50,Other IT Expenditure,613,900,2/21/2012,R,OFFICE FOR NATIONAL STATISTICS
2012 - MAR,Cultural Env Reg&Plan Services,Planning Policy,GLA WANDLE VALLEY LCZ                   ,H01176,Supplies & Services           ,Services                      ,DF30,Activities Programme,614,"3,848.89",3/7/2012,R,SUSTAINABLE MERTON            
2012 - MAR,Cultural Env Reg&Plan Services,Planning Policy,GLA WANDLE VALLEY LCZ                   ,H01176,Supplies & Services           ,Services                      ,DF30,Activities Programme,615,"16,337.50",2/26/2012,R,GROUNDWORK LONDON             
2012 - MAR,Cultural Env Reg&Plan Services,Planning Policy,GLA WANDLE VALLEY LCZ                   ,H01176,Supplies & Services           ,Services                      ,DF30,Activities Programme,616,"1,000.00",3/19/2012,R,SUSTAINABLE MERTON            
2012 - MAR,Cultural Env Reg&Plan Services,Planning Policy,GLA WANDLE VALLEY LCZ                   ,H01176,Supplies & Services           ,Services                      ,DF30,Activities Programme,617,"1,429.00",3/22/2012,R,SUSTAINABLE MERTON            
2012 - MAR,Cultural Env Reg&Plan Services,Planning Policy,HPDG - Physical Regeneration            ,H01178,Employees                     ,Indirect Employee Expenses    ,AB57,External Training Costs,618,"4,000.00",2/20/2012,R,PIPERS PROJECTS LTD           
2012 - MAR,Cultural Env Reg&Plan Services,Economic Development,LABGI-BUSINESS SUPPORT SERVICE     ,H01219,Third Party Payments          ,Private Contractors           ,EH02,Miscellaneous Hired Services,619,"19,250.00",2/29/2012,R,MERTON CHAMBER OF COMMERCE    
2012 - MAR,Cultural Env Reg&Plan Services,Economic Development,TOWN CENTRE MANAGEMENT                 ,H01223,Supplies & Services           ,Grants and Subscriptions      ,DJ04,Subscriptions,620,625,2/1/2012,R,ASSOC OF TOWN CTR MANAGEMENT  
2012 - MAR,Cultural Env Reg&Plan Services,Economic Development,TOWN CENTRE MANAGEMENT                 ,H01223,Third Party Payments          ,Private Contractors           ,EH02,Miscellaneous Hired Services,621,"49,500.00",2/29/2012,R,MERTON CHAMBER OF COMMERCE    
2012 - MAR,CS -Oth Operating Inc & Expend,Trading A/c Surpluses/Deficits,Transport-Contract Hire                 ,J01374,Premises Related Expenditure  ,Energy Costs                  ,BB03,Gas (incl. Butane),622,691.92,2/21/2012,R,KENT COUNTY COUNCIL           
2012 - MAR,CS -Oth Operating Inc & Expend,Trading A/c Surpluses/Deficits,Transport-Contract Hire                 ,J01374,Premises Related Expenditure  ,Energy Costs                  ,BB03,Gas (incl. Butane),623,691.91,2/21/2012,R,KENT COUNTY COUNCIL           
2012 - MAR,CS -Oth Operating Inc & Expend,Trading A/c Surpluses/Deficits,Transport-Contract Hire                 ,J01374,Transport Related Expenditure ,Direct Transport Costs        ,CA01,Petrol Derv & Oil,624,"32,102.00",2/14/2012,R,EMO OILS LTD                  
2012 - MAR,CS -Oth Operating Inc & Expend,Trading A/c Surpluses/Deficits,Transport-Contract Hire                 ,J01374,Transport Related Expenditure ,Direct Transport Costs        ,CA01,Petrol Derv & Oil,625,"40,764.50",3/2/2012,R,EMO OILS LTD                  
2012 - MAR,CS -Oth Operating Inc & Expend,Trading A/c Surpluses/Deficits,Transport-Contract Hire                 ,J01374,Transport Related Expenditure ,Direct Transport Costs        ,CA02,Tyres,626,610,2/27/2012,R,MORDEN TYRE SERVICES LTD      
2012 - MAR,CS -Oth Operating Inc & Expend,Trading A/c Surpluses/Deficits,Transport-Contract Hire                 ,J01374,Transport Related Expenditure ,Direct Transport Costs        ,CA02,Tyres,627,874,2/27/2012,R,MORDEN TYRE SERVICES LTD      
2012 - MAR,CS -Oth Operating Inc & Expend,Trading A/c Surpluses/Deficits,Transport-Contract Hire                 ,J01374,Transport Related Expenditure ,Direct Transport Costs        ,CA02,Tyres,628,500,2/24/2012,R,MORDEN TYRE SERVICES LTD      
2012 - MAR,CS -Oth Operating Inc & Expend,Trading A/c Surpluses/Deficits,Transport-Contract Hire                 ,J01374,Transport Related Expenditure ,Direct Transport Costs        ,CA02,Tyres,629,700,3/5/2012,R,MORDEN TYRE SERVICES LTD      
2012 - MAR,CS -Oth Operating Inc & Expend,Trading A/c Surpluses/Deficits,Transport-Contract Hire                 ,J01374,Transport Related Expenditure ,Direct Transport Costs        ,CA02,Tyres,630,"1,285.00",3/12/2012,R,MORDEN TYRE SERVICES LTD      
2012 - MAR,CS -Oth Operating Inc & Expend,Trading A/c Surpluses/Deficits,Transport-Contract Hire                 ,J01374,Transport Related Expenditure ,Direct Transport Costs        ,CA04,R & M of Veh - General,631,"1,475.70",12/12/2011,R,FREIGHT TRANSPORT ASSOCIATION 
2012 - MAR,CS -Oth Operating Inc & Expend,Trading A/c Surpluses/Deficits,Transport-Contract Hire                 ,J01374,Transport Related Expenditure ,Direct Transport Costs        ,CA55,Specialist Maint. (Off Site),632,514.11,2/16/2012,R,FLEETSPEED COACHWORKS LTD.    
2012 - MAR,CS -Oth Operating Inc & Expend,Trading A/c Surpluses/Deficits,Transport-Contract Hire                 ,J01374,Transport Related Expenditure ,Direct Transport Costs        ,CA55,Specialist Maint. (Off Site),633,723.7,2/10/2012,R,CITROEN CONTRACT MOTORING     
2012 - MAR,CS -Oth Operating Inc & Expend,Trading A/c Surpluses/Deficits,Transport-Contract Hire                 ,J01374,Transport Related Expenditure ,Direct Transport Costs        ,CA55,Specialist Maint. (Off Site),634,576.61,2/10/2012,R,CITROEN CONTRACT MOTORING     
2012 - MAR,CS -Oth Operating Inc & Expend,Trading A/c Surpluses/Deficits,Transport-Contract Hire                 ,J01374,Transport Related Expenditure ,Direct Transport Costs        ,CA55,Specialist Maint. (Off Site),635,"1,191.10",2/12/2012,R,FLEETSPEED COACHWORKS LTD.    
2012 - MAR,CS -Oth Operating Inc & Expend,Trading A/c Surpluses/Deficits,Transport-Contract Hire                 ,J01374,Transport Related Expenditure ,Direct Transport Costs        ,CA56,Specialist Maint. (On Site),636,696.61,2/22/2012,R,GALLOWAY VEHICLE SERVICES     
2012 - MAR,CS -Oth Operating Inc & Expend,Trading A/c Surpluses/Deficits,Transport-Contract Hire                 ,J01374,Transport Related Expenditure ,Direct Transport Costs        ,CA56,Specialist Maint. (On Site),637,"1,185.61",3/6/2012,R,R.J.H.WELDING                 
2012 - MAR,CS -Oth Operating Inc & Expend,Trading A/c Surpluses/Deficits,Transport-Contract Hire                 ,J01374,Transport Related Expenditure ,Direct Transport Costs        ,CA56,Specialist Maint. (On Site),638,582.5,3/6/2012,R,R.J.H.WELDING                 
2012 - MAR,CS -Oth Operating Inc & Expend,Trading A/c Surpluses/Deficits,Transport-Contract Hire                 ,J01374,Transport Related Expenditure ,Direct Transport Costs        ,CA56,Specialist Maint. (On Site),639,835.5,3/5/2012,R,TENNANT UK CLEANING SOLUTIONS 
2012 - MAR,CS -Oth Operating Inc & Expend,Trading A/c Surpluses/Deficits,Transport-Contract Hire                 ,J01374,Transport Related Expenditure ,Direct Transport Costs        ,CA72,Vehicle Parts,640,912.28,2/28/2012,R,GEESINK NORBA                 
2012 - MAR,CS -Oth Operating Inc & Expend,Trading A/c Surpluses/Deficits,Transport-Contract Hire                 ,J01374,Transport Related Expenditure ,Direct Transport Costs        ,CA72,Vehicle Parts,641,"1,812.52",1/25/2012,R,GRAYS TRUCK CENTRE LIMITED    
2012 - MAR,CS -Oth Operating Inc & Expend,Trading A/c Surpluses/Deficits,Transport-Contract Hire                 ,J01374,Transport Related Expenditure ,Direct Transport Costs        ,CA72,Vehicle Parts,642,"1,853.90",3/1/2012,R,GRAYS TRUCK CENTRE LIMITED    
2012 - MAR,CS -Oth Operating Inc & Expend,Trading A/c Surpluses/Deficits,Transport-Contract Hire                 ,J01374,Transport Related Expenditure ,Direct Transport Costs        ,CA72,Vehicle Parts,643,565.24,3/2/2012,R,DENNIS EAGLE LIMITED          
2012 - MAR,CS -Oth Operating Inc & Expend,Trading A/c Surpluses/Deficits,Transport-Contract Hire                 ,J01374,Transport Related Expenditure ,Direct Transport Costs        ,CA72,Vehicle Parts,644,758.66,3/13/2012,R,GEESINK NORBA                 
2012 - MAR,CS -Oth Operating Inc & Expend,Trading A/c Surpluses/Deficits,Transport-Contract Hire                 ,J01374,Transport Related Expenditure ,Direct Transport Costs        ,CA72,Vehicle Parts,645,"2,165.90",3/15/2012,R,SIGNS EXPRESS (CROYDON)       
2012 - MAR,CS -Oth Operating Inc & Expend,Trading A/c Surpluses/Deficits,Transport-Contract Hire                 ,J01374,Transport Related Expenditure ,Direct Transport Costs        ,CA72,Vehicle Parts,646,704.43,3/19/2012,R,COMMERCIAL & PLANT LTD        
2012 - MAR,CS -Oth Operating Inc & Expend,Trading A/c Surpluses/Deficits,Transport-Contract Hire                 ,J01374,Transport Related Expenditure ,Direct Transport Costs        ,CA72,Vehicle Parts,647,706.68,3/16/2012,R,GEESINK NORBA                 
2012 - MAR,CS -Oth Operating Inc & Expend,Trading A/c Surpluses/Deficits,Transport-Contract Hire                 ,J01374,Transport Related Expenditure ,Direct Transport Costs        ,CA72,Vehicle Parts,648,698.35,3/15/2012,R,JD ASSOCIATES                 
2012 - MAR,CS -Oth Operating Inc & Expend,Trading A/c Surpluses/Deficits,Transport-Contract Hire                 ,J01374,Transport Related Expenditure ,Direct Transport Costs        ,CA72,Vehicle Parts,649,771.82,3/21/2012,R,NTM GB LIMITED                
2012 - MAR,CS -Oth Operating Inc & Expend,Trading A/c Surpluses/Deficits,Transport-Contract Hire                 ,J01374,Transport Related Expenditure ,Contract Hire and Op Leasing  ,CC53,Plant Hire for MRCS,650,650,2/17/2012,R,GO PLANT                      
2012 - MAR,CS -Oth Operating Inc & Expend,Trading A/c Surpluses/Deficits,Transport-Contract Hire                 ,J01374,Transport Related Expenditure ,Contract Hire and Op Leasing  ,CC53,Plant Hire for MRCS,651,535,2/20/2012,R,PHOENIX VEHICLE HIRE LTD      
2012 - MAR,CS -Oth Operating Inc & Expend,Trading A/c Surpluses/Deficits,Transport-Contract Hire                 ,J01374,Transport Related Expenditure ,Contract Hire and Op Leasing  ,CC53,Plant Hire for MRCS,652,"2,352.00",3/2/2012,R,GVS HIRE LTD                  
2012 - MAR,CS -Oth Operating Inc & Expend,Trading A/c Surpluses/Deficits,Transport-Contract Hire                 ,J01374,Transport Related Expenditure ,Contract Hire and Op Leasing  ,CC53,Plant Hire for MRCS,653,"1,113.00",3/2/2012,R,GVS HIRE LTD                  
2012 - MAR,CS -Oth Operating Inc & Expend,Trading A/c Surpluses/Deficits,Transport-Contract Hire                 ,J01374,Transport Related Expenditure ,Contract Hire and Op Leasing  ,CC53,Plant Hire for MRCS,654,693,3/2/2012,R,GVS HIRE LTD                  
2012 - MAR,CS -Oth Operating Inc & Expend,Trading A/c Surpluses/Deficits,Transport-Contract Hire                 ,J01374,Transport Related Expenditure ,Contract Hire and Op Leasing  ,CC53,Plant Hire for MRCS,655,535,2/27/2012,R,PHOENIX VEHICLE HIRE LTD      
2012 - MAR,CS -Oth Operating Inc & Expend,Trading A/c Surpluses/Deficits,Transport-Contract Hire                 ,J01374,Transport Related Expenditure ,Contract Hire and Op Leasing  ,CC53,Plant Hire for MRCS,656,"1,198.55",2/29/2012,R,SHB HIRE LTD                  
2012 - MAR,CS -Oth Operating Inc & Expend,Trading A/c Surpluses/Deficits,Transport-Contract Hire                 ,J01374,Transport Related Expenditure ,Contract Hire and Op Leasing  ,CC53,Plant Hire for MRCS,657,766.42,2/29/2012,R,SHB HIRE LTD                  
2012 - MAR,CS -Oth Operating Inc & Expend,Trading A/c Surpluses/Deficits,Transport-Contract Hire                 ,J01374,Transport Related Expenditure ,Contract Hire and Op Leasing  ,CC53,Plant Hire for MRCS,658,766.42,2/29/2012,R,SHB HIRE LTD                  
2012 - MAR,CS -Oth Operating Inc & Expend,Trading A/c Surpluses/Deficits,Transport-Contract Hire                 ,J01374,Transport Related Expenditure ,Contract Hire and Op Leasing  ,CC53,Plant Hire for MRCS,659,"2,000.00",2/24/2012,R,NOBLET MUNICIPAL SERVICES LTD 
2012 - MAR,CS -Oth Operating Inc & Expend,Trading A/c Surpluses/Deficits,Transport-Contract Hire                 ,J01374,Transport Related Expenditure ,Contract Hire and Op Leasing  ,CC53,Plant Hire for MRCS,660,650,2/24/2012,R,GO PLANT                      
2012 - MAR,CS -Oth Operating Inc & Expend,Trading A/c Surpluses/Deficits,Transport-Contract Hire                 ,J01374,Transport Related Expenditure ,Contract Hire and Op Leasing  ,CC53,Plant Hire for MRCS,661,535,3/5/2012,R,PHOENIX VEHICLE HIRE LTD      
2012 - MAR,CS -Oth Operating Inc & Expend,Trading A/c Surpluses/Deficits,Transport-Contract Hire                 ,J01374,Transport Related Expenditure ,Contract Hire and Op Leasing  ,CC53,Plant Hire for MRCS,662,535,3/12/2012,R,PHOENIX VEHICLE HIRE LTD      
2012 - MAR,CS -Oth Operating Inc & Expend,Trading A/c Surpluses/Deficits,Transport-Contract Hire                 ,J01374,Transport Related Expenditure ,Contract Hire and Op Leasing  ,CC53,Plant Hire for MRCS,663,756,2/29/2012,R,B&T PLANT HIRE LTD            
2012 - MAR,CS -Oth Operating Inc & Expend,Trading A/c Surpluses/Deficits,Transport-Contract Hire                 ,J01374,Transport Related Expenditure ,Contract Hire and Op Leasing  ,CC53,Plant Hire for MRCS,664,650,3/2/2012,R,GO PLANT                      
2012 - MAR,CS -Oth Operating Inc & Expend,Trading A/c Surpluses/Deficits,Transport-Contract Hire                 ,J01374,Transport Related Expenditure ,Contract Hire and Op Leasing  ,CC53,Plant Hire for MRCS,665,650,3/9/2012,R,GO PLANT                      
2012 - MAR,CS -Oth Operating Inc & Expend,Trading A/c Surpluses/Deficits,Transport-Contract Hire                 ,J01374,Transport Related Expenditure ,Contract Hire and Op Leasing  ,CC53,Plant Hire for MRCS,666,535,3/19/2012,R,PHOENIX VEHICLE HIRE LTD      
2012 - MAR,CS -Oth Operating Inc & Expend,Trading A/c Surpluses/Deficits,Transport-Contract Hire                 ,J01374,Transport Related Expenditure ,Contract Hire and Op Leasing  ,CC53,Plant Hire for MRCS,667,650,3/16/2012,R,GO PLANT                      
2012 - MAR,CS -Oth Operating Inc & Expend,Trading A/c Surpluses/Deficits,Transport-Contract Hire                 ,J01374,Transport Related Expenditure ,Contract Hire and Op Leasing  ,CC55,Plant Hire for Parking,668,555.68,2/29/2012,R,REDACTED
2012 - MAR,CS -Oth Operating Inc & Expend,Trading A/c Surpluses/Deficits,Transport-Contract Hire                 ,J01374,Transport Related Expenditure ,Contract Hire and Op Leasing  ,CC56,Plant Hire for Leisure,669,766.42,2/29/2012,R,SHB HIRE LTD                  
2012 - MAR,CS -Oth Operating Inc & Expend,Trading A/c Surpluses/Deficits,Transport-Contract Hire                 ,J01374,Transport Related Expenditure ,Contract Hire and Op Leasing  ,CC57,Plant Hire for Housing,670,702,2/19/2012,R,KENT COUNTY COUNCIL           
2012 - MAR,CS -Oth Operating Inc & Expend,Trading A/c Surpluses/Deficits,Transport-Contract Hire                 ,J01374,Transport Related Expenditure ,Contract Hire and Op Leasing  ,CC57,Plant Hire for Housing,671,940,2/29/2012,R,REDACTED
2012 - MAR,CS -Oth Operating Inc & Expend,Trading A/c Surpluses/Deficits,Transport-Contract Hire                 ,J01374,Transport Related Expenditure ,Contract Hire and Op Leasing  ,CC58,Plant Hire - Ad Hoc,672,"2,068.43",3/4/2012,R,DAWSON RENTALS BUS AND COACH  
2012 - MAR,CS -Oth Operating Inc & Expend,Trading A/c Surpluses/Deficits,Transport-Contract Hire                 ,J01374,Transport Related Expenditure ,Contract Hire and Op Leasing  ,CC58,Plant Hire - Ad Hoc,673,"1,458.62",3/4/2012,R,DAWSON RENTALS BUS AND COACH  
2012 - MAR,CS -Oth Operating Inc & Expend,Trading A/c Surpluses/Deficits,Transport-Contract Hire                 ,J01374,Transport Related Expenditure ,Contract Hire and Op Leasing  ,CC58,Plant Hire - Ad Hoc,674,"1,458.62",3/4/2012,R,DAWSON RENTALS BUS AND COACH  
2012 - MAR,CS -Oth Operating Inc & Expend,Trading A/c Surpluses/Deficits,Transport-Contract Hire                 ,J01374,Transport Related Expenditure ,Contract Hire and Op Leasing  ,CC60,Vehicle Hire for LB Sutton,675,"2,912.00",2/29/2012,R,BARCLAYS ASSET & SALES FINANCE
2012 - MAR,CS -Oth Operating Inc & Expend,Trading A/c Surpluses/Deficits,Transport-Contract Hire                 ,J01374,Transport Related Expenditure ,Contract Hire and Op Leasing  ,CC60,Vehicle Hire for LB Sutton,676,"3,081.00",2/29/2012,R,BARCLAYS ASSET & SALES FINANCE
2012 - MAR,CS -Oth Operating Inc & Expend,Trading A/c Surpluses/Deficits,Transport-Contract Hire                 ,J01374,Transport Related Expenditure ,Contract Hire and Op Leasing  ,CC60,Vehicle Hire for LB Sutton,677,780,2/29/2012,R,BARCLAYS ASSET & SALES FINANCE
2012 - MAR,CS -Oth Operating Inc & Expend,Trading A/c Surpluses/Deficits,Transport-Contract Hire                 ,J01374,Transport Related Expenditure ,Contract Hire and Op Leasing  ,CC60,Vehicle Hire for LB Sutton,678,960,2/29/2012,R,BARCLAYS ASSET & SALES FINANCE
2012 - MAR,CS -Oth Operating Inc & Expend,Trading A/c Surpluses/Deficits,Transport-Contract Hire                 ,J01374,Transport Related Expenditure ,Contract Hire and Op Leasing  ,CC60,Vehicle Hire for LB Sutton,679,"1,376.00",2/29/2012,R,BARCLAYS ASSET & SALES FINANCE
2012 - MAR,CS -Oth Operating Inc & Expend,Trading A/c Surpluses/Deficits,Transport-Contract Hire                 ,J01374,Transport Related Expenditure ,Contract Hire and Op Leasing  ,CC60,Vehicle Hire for LB Sutton,680,"2,058.67",2/29/2012,R,BARCLAYS ASSET & SALES FINANCE
2012 - MAR,CS -Oth Operating Inc & Expend,Trading A/c Surpluses/Deficits,Transport-Contract Hire                 ,J01374,Transport Related Expenditure ,Contract Hire and Op Leasing  ,CC60,Vehicle Hire for LB Sutton,681,"1,785.00",2/29/2012,R,BRUNSWICK CARS LTD            
2012 - MAR,CS -Oth Operating Inc & Expend,Trading A/c Surpluses/Deficits,Transport-Contract Hire                 ,J01374,Transport Related Expenditure ,Contract Hire and Op Leasing  ,CC60,Vehicle Hire for LB Sutton,682,"2,864.00",2/29/2012,R,BRUNSWICK CARS LTD            
2012 - MAR,CS -Oth Operating Inc & Expend,Trading A/c Surpluses/Deficits,Transport-Contract Hire                 ,J01374,Transport Related Expenditure ,Contract Hire and Op Leasing  ,CC60,Vehicle Hire for LB Sutton,683,"1,442.00",2/29/2012,R,BRUNSWICK CARS LTD            
2012 - MAR,CS -Oth Operating Inc & Expend,Trading A/c Surpluses/Deficits,Transport-Contract Hire                 ,J01374,Transport Related Expenditure ,Contract Hire and Op Leasing  ,CC60,Vehicle Hire for LB Sutton,684,"2,240.00",2/29/2012,R,BRUNSWICK CARS LTD            
2012 - MAR,CS -Oth Operating Inc & Expend,Trading A/c Surpluses/Deficits,Transport-Contract Hire                 ,J01374,Transport Related Expenditure ,Contract Hire and Op Leasing  ,CC60,Vehicle Hire for LB Sutton,685,592,2/29/2012,R,CAPITAL CARS                  
2012 - MAR,CS -Oth Operating Inc & Expend,Trading A/c Surpluses/Deficits,Transport-Contract Hire                 ,J01374,Transport Related Expenditure ,Contract Hire and Op Leasing  ,CC60,Vehicle Hire for LB Sutton,686,"1,440.00",2/27/2012,R,CALVERTON FACTORS LTD         
2012 - MAR,CS -Oth Operating Inc & Expend,Trading A/c Surpluses/Deficits,Transport-Contract Hire                 ,J01374,Transport Related Expenditure ,Contract Hire and Op Leasing  ,CC60,Vehicle Hire for LB Sutton,687,"1,665.00",2/27/2012,R,CALVERTON FACTORS LTD         
2012 - MAR,CS -Oth Operating Inc & Expend,Trading A/c Surpluses/Deficits,Transport-Contract Hire                 ,J01374,Transport Related Expenditure ,Contract Hire and Op Leasing  ,CC60,Vehicle Hire for LB Sutton,688,720,2/27/2012,R,CALVERTON FACTORS LTD         
2012 - MAR,CS -Oth Operating Inc & Expend,Trading A/c Surpluses/Deficits,Transport-Contract Hire                 ,J01374,Transport Related Expenditure ,Contract Hire and Op Leasing  ,CC60,Vehicle Hire for LB Sutton,689,"1,216.00",2/27/2012,R,CALVERTON FACTORS LTD         
2012 - MAR,CS -Oth Operating Inc & Expend,Trading A/c Surpluses/Deficits,Transport-Contract Hire                 ,J01374,Transport Related Expenditure ,Contract Hire and Op Leasing  ,CC60,Vehicle Hire for LB Sutton,690,"1,651.20",2/29/2012,R,BRUNSWICK CARS LTD            
2012 - MAR,CS -Oth Operating Inc & Expend,Trading A/c Surpluses/Deficits,Transport-Contract Hire                 ,J01374,Transport Related Expenditure ,Contract Hire and Op Leasing  ,CC60,Vehicle Hire for LB Sutton,691,600,2/29/2012,R,BARCLAYS ASSET & SALES FINANCE
2012 - MAR,CS -Oth Operating Inc & Expend,Trading A/c Surpluses/Deficits,Transport-Contract Hire                 ,J01374,Transport Related Expenditure ,Contract Hire and Op Leasing  ,CC60,Vehicle Hire for LB Sutton,692,"1,040.00",2/29/2012,R,KENDALL CARS                  
2012 - MAR,CS -Oth Operating Inc & Expend,Trading A/c Surpluses/Deficits,Transport-Contract Hire                 ,J01374,Transport Related Expenditure ,Contract Hire and Op Leasing  ,CC64,Mini Cab Hire for Education,693,"8,695.96",2/26/2012,R,KINGSTON ACCESSIBILITY TRAN LT
2012 - MAR,CS -Oth Operating Inc & Expend,Trading A/c Surpluses/Deficits,Transport-Contract Hire                 ,J01374,Transport Related Expenditure ,Contract Hire and Op Leasing  ,CC64,Mini Cab Hire for Education,694,"8,468.70",3/4/2012,R,KINGSTON ACCESSIBILITY TRAN LT
2012 - MAR,CS -Oth Operating Inc & Expend,Trading A/c Surpluses/Deficits,Transport-Contract Hire                 ,J01374,Transport Related Expenditure ,Contract Hire and Op Leasing  ,CC64,Mini Cab Hire for Education,695,704,2/29/2012,R,AERIAL CAR SERVICES LTD       
2012 - MAR,CS -Oth Operating Inc & Expend,Trading A/c Surpluses/Deficits,Transport-Contract Hire                 ,J01374,Transport Related Expenditure ,Contract Hire and Op Leasing  ,CC64,Mini Cab Hire for Education,696,560,2/29/2012,R,AERIAL CAR SERVICES LTD       
2012 - MAR,CS -Oth Operating Inc & Expend,Trading A/c Surpluses/Deficits,Transport-Contract Hire                 ,J01374,Transport Related Expenditure ,Contract Hire and Op Leasing  ,CC64,Mini Cab Hire for Education,697,"1,088.00",2/29/2012,R,BRUNSWICK CARS LTD            
2012 - MAR,CS -Oth Operating Inc & Expend,Trading A/c Surpluses/Deficits,Transport-Contract Hire                 ,J01374,Transport Related Expenditure ,Contract Hire and Op Leasing  ,CC64,Mini Cab Hire for Education,698,"2,080.00",2/29/2012,R,CAPITAL CARS                  
2012 - MAR,CS -Oth Operating Inc & Expend,Trading A/c Surpluses/Deficits,Transport-Contract Hire                 ,J01374,Transport Related Expenditure ,Contract Hire and Op Leasing  ,CC64,Mini Cab Hire for Education,699,570,2/29/2012,R,CAPITAL CARS                  
2012 - MAR,CS -Oth Operating Inc & Expend,Trading A/c Surpluses/Deficits,Transport-Contract Hire                 ,J01374,Transport Related Expenditure ,Contract Hire and Op Leasing  ,CC64,Mini Cab Hire for Education,700,"1,063.00",2/29/2012,R,CAPITAL CARS                  
2012 - MAR,CS -Oth Operating Inc & Expend,Trading A/c Surpluses/Deficits,Transport-Contract Hire                 ,J01374,Transport Related Expenditure ,Contract Hire and Op Leasing  ,CC64,Mini Cab Hire for Education,701,600,2/26/2012,R,GALPINS SERVICE               
2012 - MAR,CS -Oth Operating Inc & Expend,Trading A/c Surpluses/Deficits,Transport-Contract Hire                 ,J01374,Transport Related Expenditure ,Contract Hire and Op Leasing  ,CC64,Mini Cab Hire for Education,702,588.33,2/29/2012,R,GALPINS SERVICE               
2012 - MAR,CS -Oth Operating Inc & Expend,Trading A/c Surpluses/Deficits,Transport-Contract Hire                 ,J01374,Transport Related Expenditure ,Contract Hire and Op Leasing  ,CC64,Mini Cab Hire for Education,703,"1,506.00",3/1/2012,R,NVCAR HIRE LTD                
2012 - MAR,CS -Oth Operating Inc & Expend,Trading A/c Surpluses/Deficits,Transport-Contract Hire                 ,J01374,Transport Related Expenditure ,Contract Hire and Op Leasing  ,CC64,Mini Cab Hire for Education,704,768,3/1/2012,R,NVCAR HIRE LTD                
2012 - MAR,CS -Oth Operating Inc & Expend,Trading A/c Surpluses/Deficits,Transport-Contract Hire                 ,J01374,Transport Related Expenditure ,Contract Hire and Op Leasing  ,CC64,Mini Cab Hire for Education,705,"1,344.00",3/1/2012,R,NVCAR HIRE LTD                
2012 - MAR,CS -Oth Operating Inc & Expend,Trading A/c Surpluses/Deficits,Transport-Contract Hire                 ,J01374,Transport Related Expenditure ,Contract Hire and Op Leasing  ,CC64,Mini Cab Hire for Education,706,546,3/1/2012,R,NVCAR HIRE LTD                
2012 - MAR,CS -Oth Operating Inc & Expend,Trading A/c Surpluses/Deficits,Transport-Contract Hire                 ,J01374,Transport Related Expenditure ,Contract Hire and Op Leasing  ,CC64,Mini Cab Hire for Education,707,"1,456.00",3/1/2012,R,SHERWOOD TRANSPORT GROUP      
2012 - MAR,CS -Oth Operating Inc & Expend,Trading A/c Surpluses/Deficits,Transport-Contract Hire                 ,J01374,Transport Related Expenditure ,Contract Hire and Op Leasing  ,CC64,Mini Cab Hire for Education,708,"1,120.00",3/1/2012,R,SHERWOOD TRANSPORT GROUP      
2012 - MAR,CS -Oth Operating Inc & Expend,Trading A/c Surpluses/Deficits,Transport-Contract Hire                 ,J01374,Transport Related Expenditure ,Contract Hire and Op Leasing  ,CC64,Mini Cab Hire for Education,709,550,3/1/2012,R,SHERWOOD TRANSPORT GROUP      
2012 - MAR,CS -Oth Operating Inc & Expend,Trading A/c Surpluses/Deficits,Transport-Contract Hire                 ,J01374,Transport Related Expenditure ,Contract Hire and Op Leasing  ,CC64,Mini Cab Hire for Education,710,"1,148.00",3/1/2012,R,SHERWOOD TRANSPORT GROUP      
2012 - MAR,CS -Oth Operating Inc & Expend,Trading A/c Surpluses/Deficits,Transport-Contract Hire                 ,J01374,Transport Related Expenditure ,Contract Hire and Op Leasing  ,CC64,Mini Cab Hire for Education,711,"2,385.00",3/1/2012,R,SHERWOOD TRANSPORT GROUP      
2012 - MAR,CS -Oth Operating Inc & Expend,Trading A/c Surpluses/Deficits,Transport-Contract Hire                 ,J01374,Transport Related Expenditure ,Contract Hire and Op Leasing  ,CC64,Mini Cab Hire for Education,712,"1,038.40",3/1/2012,R,SHERWOOD TRANSPORT GROUP      
2012 - MAR,CS -Oth Operating Inc & Expend,Trading A/c Surpluses/Deficits,Transport-Contract Hire                 ,J01374,Transport Related Expenditure ,Contract Hire and Op Leasing  ,CC64,Mini Cab Hire for Education,713,960,2/29/2012,R,CHEAM STATION CARS            
2012 - MAR,CS -Oth Operating Inc & Expend,Trading A/c Surpluses/Deficits,Transport-Contract Hire                 ,J01374,Transport Related Expenditure ,Contract Hire and Op Leasing  ,CC64,Mini Cab Hire for Education,714,910,2/29/2012,R,CHEAM STATION CARS            
2012 - MAR,CS -Oth Operating Inc & Expend,Trading A/c Surpluses/Deficits,Transport-Contract Hire                 ,J01374,Transport Related Expenditure ,Contract Hire and Op Leasing  ,CC64,Mini Cab Hire for Education,715,"8,468.70",3/11/2012,R,KINGSTON ACCESSIBILITY TRAN LT
2012 - MAR,CS -Oth Operating Inc & Expend,Trading A/c Surpluses/Deficits,Transport-Contract Hire                 ,J01374,Transport Related Expenditure ,Contract Hire and Op Leasing  ,CC64,Mini Cab Hire for Education,716,864,2/29/2012,R,CAPITAL CARS                  
2012 - MAR,CS -Oth Operating Inc & Expend,Trading A/c Surpluses/Deficits,Transport-Contract Hire                 ,J01374,Transport Related Expenditure ,Contract Hire and Op Leasing  ,CC64,Mini Cab Hire for Education,717,800,2/29/2012,R,CAPITAL CARS                  
2012 - MAR,CS -Oth Operating Inc & Expend,Trading A/c Surpluses/Deficits,Transport-Contract Hire                 ,J01374,Transport Related Expenditure ,Contract Hire and Op Leasing  ,CC64,Mini Cab Hire for Education,718,570,2/29/2012,R,CAPITAL CARS                  
2012 - MAR,CS -Oth Operating Inc & Expend,Trading A/c Surpluses/Deficits,Transport-Contract Hire                 ,J01374,Transport Related Expenditure ,Contract Hire and Op Leasing  ,CC64,Mini Cab Hire for Education,719,908.6,3/1/2012,R,SHERWOOD TRANSPORT GROUP      
2012 - MAR,CS -Oth Operating Inc & Expend,Trading A/c Surpluses/Deficits,Transport-Contract Hire                 ,J01374,Transport Related Expenditure ,Contract Hire and Op Leasing  ,CC64,Mini Cab Hire for Education,720,832,2/29/2012,R,BARCLAYS ASSET & SALES FINANCE
2012 - MAR,CS -Oth Operating Inc & Expend,Trading A/c Surpluses/Deficits,Transport-Contract Hire                 ,J01374,Transport Related Expenditure ,Contract Hire and Op Leasing  ,CC64,Mini Cab Hire for Education,721,"1,344.00",2/29/2012,R,BARCLAYS ASSET & SALES FINANCE
2012 - MAR,CS -Oth Operating Inc & Expend,Trading A/c Surpluses/Deficits,Transport-Contract Hire                 ,J01374,Transport Related Expenditure ,Contract Hire and Op Leasing  ,CC64,Mini Cab Hire for Education,722,"2,080.00",2/27/2012,R,CALVERTON FACTORS LTD         
2012 - MAR,CS -Oth Operating Inc & Expend,Trading A/c Surpluses/Deficits,Transport-Contract Hire                 ,J01374,Transport Related Expenditure ,Contract Hire and Op Leasing  ,CC64,Mini Cab Hire for Education,723,"2,231.04",2/29/2012,R,OLYMPIC (SOUTH) LIMITED       
2012 - MAR,CS -Oth Operating Inc & Expend,Trading A/c Surpluses/Deficits,Transport-Contract Hire                 ,J01374,Transport Related Expenditure ,Contract Hire and Op Leasing  ,CC64,Mini Cab Hire for Education,724,960,2/29/2012,R,OLYMPIC (SOUTH) LIMITED       
2012 - MAR,CS -Oth Operating Inc & Expend,Trading A/c Surpluses/Deficits,Transport-Contract Hire                 ,J01374,Transport Related Expenditure ,Contract Hire and Op Leasing  ,CC64,Mini Cab Hire for Education,725,"1,152.00",2/29/2012,R,OLYMPIC (SOUTH) LIMITED       
2012 - MAR,CS -Oth Operating Inc & Expend,Trading A/c Surpluses/Deficits,Transport-Contract Hire                 ,J01374,Transport Related Expenditure ,Contract Hire and Op Leasing  ,CC64,Mini Cab Hire for Education,726,"1,328.00",2/29/2012,R,OLYMPIC (SOUTH) LIMITED       
2012 - MAR,CS -Oth Operating Inc & Expend,Trading A/c Surpluses/Deficits,Transport-Contract Hire                 ,J01374,Transport Related Expenditure ,Contract Hire and Op Leasing  ,CC64,Mini Cab Hire for Education,727,576,2/29/2012,R,OLYMPIC (SOUTH) LIMITED       
2012 - MAR,CS -Oth Operating Inc & Expend,Trading A/c Surpluses/Deficits,Transport-Contract Hire                 ,J01374,Transport Related Expenditure ,Contract Hire and Op Leasing  ,CC64,Mini Cab Hire for Education,728,896,2/29/2012,R,OLYMPIC (SOUTH) LIMITED       
2012 - MAR,CS -Oth Operating Inc & Expend,Trading A/c Surpluses/Deficits,Transport-Contract Hire                 ,J01374,Transport Related Expenditure ,Contract Hire and Op Leasing  ,CC64,Mini Cab Hire for Education,729,768,2/29/2012,R,OLYMPIC (SOUTH) LIMITED       
2012 - MAR,CS -Oth Operating Inc & Expend,Trading A/c Surpluses/Deficits,Transport-Contract Hire                 ,J01374,Transport Related Expenditure ,Contract Hire and Op Leasing  ,CC64,Mini Cab Hire for Education,730,"1,056.00",2/29/2012,R,OLYMPIC (SOUTH) LIMITED       
2012 - MAR,CS -Oth Operating Inc & Expend,Trading A/c Surpluses/Deficits,Transport-Contract Hire                 ,J01374,Transport Related Expenditure ,Contract Hire and Op Leasing  ,CC64,Mini Cab Hire for Education,731,"1,638.40",2/29/2012,R,OLYMPIC (SOUTH) LIMITED       
2012 - MAR,CS -Oth Operating Inc & Expend,Trading A/c Surpluses/Deficits,Transport-Contract Hire                 ,J01374,Transport Related Expenditure ,Contract Hire and Op Leasing  ,CC64,Mini Cab Hire for Education,732,672,2/29/2012,R,OLYMPIC (SOUTH) LIMITED       
2012 - MAR,CS -Oth Operating Inc & Expend,Trading A/c Surpluses/Deficits,Transport-Contract Hire                 ,J01374,Transport Related Expenditure ,Contract Hire and Op Leasing  ,CC64,Mini Cab Hire for Education,733,640,2/29/2012,R,OLYMPIC (SOUTH) LIMITED       
2012 - MAR,CS -Oth Operating Inc & Expend,Trading A/c Surpluses/Deficits,Transport-Contract Hire                 ,J01374,Transport Related Expenditure ,Contract Hire and Op Leasing  ,CC64,Mini Cab Hire for Education,734,"1,144.00",2/29/2012,R,OLYMPIC (SOUTH) LIMITED       
2012 - MAR,CS -Oth Operating Inc & Expend,Trading A/c Surpluses/Deficits,Transport-Contract Hire                 ,J01374,Transport Related Expenditure ,Contract Hire and Op Leasing  ,CC64,Mini Cab Hire for Education,735,"1,536.00",2/29/2012,R,OLYMPIC (SOUTH) LIMITED       
2012 - MAR,CS -Oth Operating Inc & Expend,Trading A/c Surpluses/Deficits,Transport-Contract Hire                 ,J01374,Transport Related Expenditure ,Contract Hire and Op Leasing  ,CC64,Mini Cab Hire for Education,736,"1,403.20",2/29/2012,R,OLYMPIC (SOUTH) LIMITED       
2012 - MAR,CS -Oth Operating Inc & Expend,Trading A/c Surpluses/Deficits,Transport-Contract Hire                 ,J01374,Transport Related Expenditure ,Contract Hire and Op Leasing  ,CC64,Mini Cab Hire for Education,737,"4,117.33",2/29/2012,R,BARCLAYS ASSET & SALES FINANCE
2012 - MAR,CS -Oth Operating Inc & Expend,Trading A/c Surpluses/Deficits,Transport-Contract Hire                 ,J01374,Transport Related Expenditure ,Contract Hire and Op Leasing  ,CC64,Mini Cab Hire for Education,738,996.58,2/29/2012,R,BARCLAYS ASSET & SALES FINANCE
2012 - MAR,CS -Oth Operating Inc & Expend,Trading A/c Surpluses/Deficits,Transport-Contract Hire                 ,J01374,Transport Related Expenditure ,Contract Hire and Op Leasing  ,CC64,Mini Cab Hire for Education,739,800,2/29/2012,R,BARCLAYS ASSET & SALES FINANCE
2012 - MAR,CS -Oth Operating Inc & Expend,Trading A/c Surpluses/Deficits,Transport-Contract Hire                 ,J01374,Transport Related Expenditure ,Contract Hire and Op Leasing  ,CC64,Mini Cab Hire for Education,740,"2,184.00",2/29/2012,R,BARCLAYS ASSET & SALES FINANCE
2012 - MAR,CS -Oth Operating Inc & Expend,Trading A/c Surpluses/Deficits,Transport-Contract Hire                 ,J01374,Transport Related Expenditure ,Contract Hire and Op Leasing  ,CC64,Mini Cab Hire for Education,741,651,2/29/2012,R,BARCLAYS ASSET & SALES FINANCE
2012 - MAR,CS -Oth Operating Inc & Expend,Trading A/c Surpluses/Deficits,Transport-Contract Hire                 ,J01374,Transport Related Expenditure ,Contract Hire and Op Leasing  ,CC64,Mini Cab Hire for Education,742,"2,210.00",2/29/2012,R,BARCLAYS ASSET & SALES FINANCE
2012 - MAR,CS -Oth Operating Inc & Expend,Trading A/c Surpluses/Deficits,Transport-Contract Hire                 ,J01374,Transport Related Expenditure ,Contract Hire and Op Leasing  ,CC64,Mini Cab Hire for Education,743,630,2/29/2012,R,BARCLAYS ASSET & SALES FINANCE
2012 - MAR,CS -Oth Operating Inc & Expend,Trading A/c Surpluses/Deficits,Transport-Contract Hire                 ,J01374,Transport Related Expenditure ,Contract Hire and Op Leasing  ,CC64,Mini Cab Hire for Education,744,832,2/29/2012,R,BARCLAYS ASSET & SALES FINANCE
2012 - MAR,CS -Oth Operating Inc & Expend,Trading A/c Surpluses/Deficits,Transport-Contract Hire                 ,J01374,Transport Related Expenditure ,Contract Hire and Op Leasing  ,CC64,Mini Cab Hire for Education,745,800,2/29/2012,R,BARCLAYS ASSET & SALES FINANCE
2012 - MAR,CS -Oth Operating Inc & Expend,Trading A/c Surpluses/Deficits,Transport-Contract Hire                 ,J01374,Transport Related Expenditure ,Contract Hire and Op Leasing  ,CC64,Mini Cab Hire for Education,746,"1,856.00",2/29/2012,R,BARCLAYS ASSET & SALES FINANCE
2012 - MAR,CS -Oth Operating Inc & Expend,Trading A/c Surpluses/Deficits,Transport-Contract Hire                 ,J01374,Transport Related Expenditure ,Contract Hire and Op Leasing  ,CC64,Mini Cab Hire for Education,747,"2,048.00",2/29/2012,R,BARCLAYS ASSET & SALES FINANCE
2012 - MAR,CS -Oth Operating Inc & Expend,Trading A/c Surpluses/Deficits,Transport-Contract Hire                 ,J01374,Transport Related Expenditure ,Contract Hire and Op Leasing  ,CC64,Mini Cab Hire for Education,748,"2,272.00",2/29/2012,R,BARCLAYS ASSET & SALES FINANCE
2012 - MAR,CS -Oth Operating Inc & Expend,Trading A/c Surpluses/Deficits,Transport-Contract Hire                 ,J01374,Transport Related Expenditure ,Contract Hire and Op Leasing  ,CC64,Mini Cab Hire for Education,749,"2,400.00",2/29/2012,R,BARCLAYS ASSET & SALES FINANCE
2012 - MAR,CS -Oth Operating Inc & Expend,Trading A/c Surpluses/Deficits,Transport-Contract Hire                 ,J01374,Transport Related Expenditure ,Contract Hire and Op Leasing  ,CC64,Mini Cab Hire for Education,750,"1,100.80",2/29/2012,R,BRUNSWICK CARS LTD            
2012 - MAR,CS -Oth Operating Inc & Expend,Trading A/c Surpluses/Deficits,Transport-Contract Hire                 ,J01374,Transport Related Expenditure ,Contract Hire and Op Leasing  ,CC64,Mini Cab Hire for Education,751,"1,216.00",2/29/2012,R,BARCLAYS ASSET & SALES FINANCE
2012 - MAR,CS -Oth Operating Inc & Expend,Trading A/c Surpluses/Deficits,Transport-Contract Hire                 ,J01374,Transport Related Expenditure ,Contract Hire and Op Leasing  ,CC64,Mini Cab Hire for Education,752,504,2/29/2012,R,A STAR TRANSPORT LIMITED      
2012 - MAR,CS -Oth Operating Inc & Expend,Trading A/c Surpluses/Deficits,Transport-Contract Hire                 ,J01374,Transport Related Expenditure ,Contract Hire and Op Leasing  ,CC64,Mini Cab Hire for Education,753,912,2/29/2012,R,BARCLAYS ASSET & SALES FINANCE
2012 - MAR,CS -Oth Operating Inc & Expend,Trading A/c Surpluses/Deficits,Transport-Contract Hire                 ,J01374,Transport Related Expenditure ,Contract Hire and Op Leasing  ,CC64,Mini Cab Hire for Education,754,"1,504.00",2/29/2012,R,BARCLAYS ASSET & SALES FINANCE
2012 - MAR,CS -Oth Operating Inc & Expend,Trading A/c Surpluses/Deficits,Transport-Contract Hire                 ,J01374,Transport Related Expenditure ,Contract Hire and Op Leasing  ,CC64,Mini Cab Hire for Education,755,"1,147.00",2/29/2012,R,BARCLAYS ASSET & SALES FINANCE
2012 - MAR,CS -Oth Operating Inc & Expend,Trading A/c Surpluses/Deficits,Transport-Contract Hire                 ,J01374,Transport Related Expenditure ,Contract Hire and Op Leasing  ,CC64,Mini Cab Hire for Education,756,"2,560.00",2/29/2012,R,BARCLAYS ASSET & SALES FINANCE
2012 - MAR,CS -Oth Operating Inc & Expend,Trading A/c Surpluses/Deficits,Transport-Contract Hire                 ,J01374,Transport Related Expenditure ,Contract Hire and Op Leasing  ,CC64,Mini Cab Hire for Education,757,"1,216.00",2/29/2012,R,BARCLAYS ASSET & SALES FINANCE
2012 - MAR,CS -Oth Operating Inc & Expend,Trading A/c Surpluses/Deficits,Transport-Contract Hire                 ,J01374,Transport Related Expenditure ,Contract Hire and Op Leasing  ,CC64,Mini Cab Hire for Education,758,"1,860.00",2/29/2012,R,BARCLAYS ASSET & SALES FINANCE
2012 - MAR,CS -Oth Operating Inc & Expend,Trading A/c Surpluses/Deficits,Transport-Contract Hire                 ,J01374,Transport Related Expenditure ,Contract Hire and Op Leasing  ,CC64,Mini Cab Hire for Education,759,"1,344.00",2/29/2012,R,BARCLAYS ASSET & SALES FINANCE
2012 - MAR,CS -Oth Operating Inc & Expend,Trading A/c Surpluses/Deficits,Transport-Contract Hire                 ,J01374,Transport Related Expenditure ,Contract Hire and Op Leasing  ,CC64,Mini Cab Hire for Education,760,"1,823.24",2/29/2012,R,BARCLAYS ASSET & SALES FINANCE
2012 - MAR,CS -Oth Operating Inc & Expend,Trading A/c Surpluses/Deficits,Transport-Contract Hire                 ,J01374,Transport Related Expenditure ,Contract Hire and Op Leasing  ,CC64,Mini Cab Hire for Education,761,"1,440.00",2/29/2012,R,BARCLAYS ASSET & SALES FINANCE
2012 - MAR,CS -Oth Operating Inc & Expend,Trading A/c Surpluses/Deficits,Transport-Contract Hire                 ,J01374,Transport Related Expenditure ,Contract Hire and Op Leasing  ,CC64,Mini Cab Hire for Education,762,784,2/29/2012,R,BARCLAYS ASSET & SALES FINANCE
2012 - MAR,CS -Oth Operating Inc & Expend,Trading A/c Surpluses/Deficits,Transport-Contract Hire                 ,J01374,Transport Related Expenditure ,Contract Hire and Op Leasing  ,CC64,Mini Cab Hire for Education,763,"1,440.00",2/29/2012,R,BARCLAYS ASSET & SALES FINANCE
2012 - MAR,CS -Oth Operating Inc & Expend,Trading A/c Surpluses/Deficits,Transport-Contract Hire                 ,J01374,Transport Related Expenditure ,Contract Hire and Op Leasing  ,CC64,Mini Cab Hire for Education,764,"2,240.00",2/29/2012,R,BARCLAYS ASSET & SALES FINANCE
2012 - MAR,CS -Oth Operating Inc & Expend,Trading A/c Surpluses/Deficits,Transport-Contract Hire                 ,J01374,Transport Related Expenditure ,Contract Hire and Op Leasing  ,CC64,Mini Cab Hire for Education,765,"1,888.00",2/29/2012,R,BARCLAYS ASSET & SALES FINANCE
2012 - MAR,CS -Oth Operating Inc & Expend,Trading A/c Surpluses/Deficits,Transport-Contract Hire                 ,J01374,Transport Related Expenditure ,Contract Hire and Op Leasing  ,CC64,Mini Cab Hire for Education,766,625,2/29/2012,R,BARCLAYS ASSET & SALES FINANCE
2012 - MAR,CS -Oth Operating Inc & Expend,Trading A/c Surpluses/Deficits,Transport-Contract Hire                 ,J01374,Transport Related Expenditure ,Contract Hire and Op Leasing  ,CC64,Mini Cab Hire for Education,767,"1,472.00",2/29/2012,R,BARCLAYS ASSET & SALES FINANCE
2012 - MAR,CS -Oth Operating Inc & Expend,Trading A/c Surpluses/Deficits,Transport-Contract Hire                 ,J01374,Transport Related Expenditure ,Contract Hire and Op Leasing  ,CC64,Mini Cab Hire for Education,768,"1,053.00",2/29/2012,R,BARCLAYS ASSET & SALES FINANCE
2012 - MAR,CS -Oth Operating Inc & Expend,Trading A/c Surpluses/Deficits,Transport-Contract Hire                 ,J01374,Transport Related Expenditure ,Contract Hire and Op Leasing  ,CC64,Mini Cab Hire for Education,769,"2,428.00",2/29/2012,R,BARCLAYS ASSET & SALES FINANCE
2012 - MAR,CS -Oth Operating Inc & Expend,Trading A/c Surpluses/Deficits,Transport-Contract Hire                 ,J01374,Transport Related Expenditure ,Contract Hire and Op Leasing  ,CC64,Mini Cab Hire for Education,770,"1,984.00",2/29/2012,R,BARCLAYS ASSET & SALES FINANCE
2012 - MAR,CS -Oth Operating Inc & Expend,Trading A/c Surpluses/Deficits,Transport-Contract Hire                 ,J01374,Transport Related Expenditure ,Contract Hire and Op Leasing  ,CC64,Mini Cab Hire for Education,771,640,2/29/2012,R,OLYMPIC (SOUTH) LIMITED       
2012 - MAR,CS -Oth Operating Inc & Expend,Trading A/c Surpluses/Deficits,Transport-Contract Hire                 ,J01374,Transport Related Expenditure ,Contract Hire and Op Leasing  ,CC64,Mini Cab Hire for Education,772,"8,396.20",3/18/2012,R,KINGSTON ACCESSIBILITY TRAN LT
2012 - MAR,CS -Oth Operating Inc & Expend,Trading A/c Surpluses/Deficits,Transport-Contract Hire                 ,J01374,Transport Related Expenditure ,Contract Hire and Op Leasing  ,CC65,Vehicle Hire for Education,773,"1,407.00",2/29/2012,R,BURNT TREE VEHICLE RENTAL     
2012 - MAR,CS -Oth Operating Inc & Expend,Trading A/c Surpluses/Deficits,Transport-Contract Hire                 ,J01374,Transport Related Expenditure ,Contract Hire and Op Leasing  ,CC65,Vehicle Hire for Education,774,"2,720.00",2/29/2012,R,BARCLAYS ASSET & SALES FINANCE
2012 - MAR,CS -Oth Operating Inc & Expend,Trading A/c Surpluses/Deficits,Transport-Contract Hire                 ,J01374,Transport Related Expenditure ,Contract Hire and Op Leasing  ,CC65,Vehicle Hire for Education,775,"2,266.00",2/29/2012,R,BARCLAYS ASSET & SALES FINANCE
2012 - MAR,CS -Oth Operating Inc & Expend,Trading A/c Surpluses/Deficits,Transport-Contract Hire                 ,J01374,Transport Related Expenditure ,Contract Hire and Op Leasing  ,CC65,Vehicle Hire for Education,776,"1,785.00",2/29/2012,R,REDACTED
2012 - MAR,CS -Oth Operating Inc & Expend,Trading A/c Surpluses/Deficits,Transport-Contract Hire                 ,J01374,Transport Related Expenditure ,Contract Hire and Op Leasing  ,CC65,Vehicle Hire for Education,777,"1,407.00",2/29/2012,R,BURNT TREE VEHICLE RENTAL     
2012 - MAR,CS -Oth Operating Inc & Expend,Trading A/c Surpluses/Deficits,Transport-Contract Hire                 ,J01374,Transport Related Expenditure ,Contract Hire and Op Leasing  ,CC65,Vehicle Hire for Education,778,"3,136.00",2/29/2012,R,BARCLAYS ASSET & SALES FINANCE
2012 - MAR,CS -Oth Operating Inc & Expend,Trading A/c Surpluses/Deficits,Transport-Contract Hire                 ,J01374,Transport Related Expenditure ,Contract Hire and Op Leasing  ,CC65,Vehicle Hire for Education,779,720,2/29/2012,R,BARCLAYS ASSET & SALES FINANCE
2012 - MAR,CS -Oth Operating Inc & Expend,Trading A/c Surpluses/Deficits,Transport-Contract Hire                 ,J01374,Transport Related Expenditure ,Contract Hire and Op Leasing  ,CC65,Vehicle Hire for Education,780,"1,407.00",2/29/2012,R,BURNT TREE VEHICLE RENTAL     
2012 - MAR,CS -Oth Operating Inc & Expend,Trading A/c Surpluses/Deficits,Transport-Contract Hire                 ,J01374,Transport Related Expenditure ,Contract Hire and Op Leasing  ,CC65,Vehicle Hire for Education,781,"9,168.00",3/1/2012,R,KENT COUNTY COUNCIL           
2012 - MAR,CS -Oth Operating Inc & Expend,Trading A/c Surpluses/Deficits,Transport-Contract Hire                 ,J01374,Transport Related Expenditure ,Contract Hire and Op Leasing  ,CC65,Vehicle Hire for Education,782,770,3/12/2012,R,GOLDEN SOVEREIGN COACHES      
2012 - MAR,CS -Oth Operating Inc & Expend,Trading A/c Surpluses/Deficits,Transport-Contract Hire                 ,J01374,Transport Related Expenditure ,Contract Hire and Op Leasing  ,CC66,Mini Cab Hire -Soc Serv -Child,783,"1,108.00",2/26/2012,R,KINGSTON ACCESSIBILITY TRAN LT
2012 - MAR,CS -Oth Operating Inc & Expend,Trading A/c Surpluses/Deficits,Transport-Contract Hire                 ,J01374,Transport Related Expenditure ,Contract Hire and Op Leasing  ,CC66,Mini Cab Hire -Soc Serv -Child,784,"1,108.00",3/4/2012,R,KINGSTON ACCESSIBILITY TRAN LT
2012 - MAR,CS -Oth Operating Inc & Expend,Trading A/c Surpluses/Deficits,Transport-Contract Hire                 ,J01374,Transport Related Expenditure ,Contract Hire and Op Leasing  ,CC66,Mini Cab Hire -Soc Serv -Child,785,750,2/29/2012,R,CHEAM STATION CARS            
2012 - MAR,CS -Oth Operating Inc & Expend,Trading A/c Surpluses/Deficits,Transport-Contract Hire                 ,J01374,Transport Related Expenditure ,Contract Hire and Op Leasing  ,CC66,Mini Cab Hire -Soc Serv -Child,786,735,2/29/2012,R,CHEAM STATION CARS            
2012 - MAR,CS -Oth Operating Inc & Expend,Trading A/c Surpluses/Deficits,Transport-Contract Hire                 ,J01374,Transport Related Expenditure ,Contract Hire and Op Leasing  ,CC66,Mini Cab Hire -Soc Serv -Child,787,"1,108.00",3/11/2012,R,KINGSTON ACCESSIBILITY TRAN LT
2012 - MAR,CS -Oth Operating Inc & Expend,Trading A/c Surpluses/Deficits,Transport-Contract Hire                 ,J01374,Transport Related Expenditure ,Contract Hire and Op Leasing  ,CC66,Mini Cab Hire -Soc Serv -Child,788,"1,666.00",2/27/2012,R,CALVERTON FACTORS LTD         
2012 - MAR,CS -Oth Operating Inc & Expend,Trading A/c Surpluses/Deficits,Transport-Contract Hire                 ,J01374,Transport Related Expenditure ,Contract Hire and Op Leasing  ,CC66,Mini Cab Hire -Soc Serv -Child,789,880,3/1/2012,R,SHERWOOD TRANSPORT GROUP      
2012 - MAR,CS -Oth Operating Inc & Expend,Trading A/c Surpluses/Deficits,Transport-Contract Hire                 ,J01374,Transport Related Expenditure ,Contract Hire and Op Leasing  ,CC66,Mini Cab Hire -Soc Serv -Child,790,504,2/29/2012,R,BARCLAYS ASSET & SALES FINANCE
2012 - MAR,CS -Oth Operating Inc & Expend,Trading A/c Surpluses/Deficits,Transport-Contract Hire                 ,J01374,Transport Related Expenditure ,Contract Hire and Op Leasing  ,CC66,Mini Cab Hire -Soc Serv -Child,791,538,2/29/2012,R,BARCLAYS ASSET & SALES FINANCE
2012 - MAR,CS -Oth Operating Inc & Expend,Trading A/c Surpluses/Deficits,Transport-Contract Hire                 ,J01374,Transport Related Expenditure ,Contract Hire and Op Leasing  ,CC66,Mini Cab Hire -Soc Serv -Child,792,"1,148.00",3/18/2012,R,KINGSTON ACCESSIBILITY TRAN LT
2012 - MAR,CS -Oth Operating Inc & Expend,Trading A/c Surpluses/Deficits,Transport-Contract Hire                 ,J01374,Transport Related Expenditure ,Contract Hire and Op Leasing  ,CC67,Mini Cab Hire -Soc Serv -Adult,793,974,2/26/2012,R,KINGSTON ACCESSIBILITY TRAN LT
2012 - MAR,CS -Oth Operating Inc & Expend,Trading A/c Surpluses/Deficits,Transport-Contract Hire                 ,J01374,Transport Related Expenditure ,Contract Hire and Op Leasing  ,CC67,Mini Cab Hire -Soc Serv -Adult,794,560,2/19/2012,R,KINGSTON ACCESSIBILITY TRAN LT
2012 - MAR,CS -Oth Operating Inc & Expend,Trading A/c Surpluses/Deficits,Transport-Contract Hire                 ,J01374,Transport Related Expenditure ,Contract Hire and Op Leasing  ,CC67,Mini Cab Hire -Soc Serv -Adult,795,"1,146.00",3/4/2012,R,KINGSTON ACCESSIBILITY TRAN LT
2012 - MAR,CS -Oth Operating Inc & Expend,Trading A/c Surpluses/Deficits,Transport-Contract Hire                 ,J01374,Transport Related Expenditure ,Contract Hire and Op Leasing  ,CC67,Mini Cab Hire -Soc Serv -Adult,796,921,2/29/2012,R,CAPITAL CARS                  
2012 - MAR,CS -Oth Operating Inc & Expend,Trading A/c Surpluses/Deficits,Transport-Contract Hire                 ,J01374,Transport Related Expenditure ,Contract Hire and Op Leasing  ,CC67,Mini Cab Hire -Soc Serv -Adult,797,"1,320.00",3/1/2012,R,NVCAR HIRE LTD                
2012 - MAR,CS -Oth Operating Inc & Expend,Trading A/c Surpluses/Deficits,Transport-Contract Hire                 ,J01374,Transport Related Expenditure ,Contract Hire and Op Leasing  ,CC67,Mini Cab Hire -Soc Serv -Adult,798,"1,146.00",3/11/2012,R,KINGSTON ACCESSIBILITY TRAN LT
2012 - MAR,CS -Oth Operating Inc & Expend,Trading A/c Surpluses/Deficits,Transport-Contract Hire                 ,J01374,Transport Related Expenditure ,Contract Hire and Op Leasing  ,CC67,Mini Cab Hire -Soc Serv -Adult,799,840,2/29/2012,R,AERIAL CAR SERVICES LTD       
2012 - MAR,CS -Oth Operating Inc & Expend,Trading A/c Surpluses/Deficits,Transport-Contract Hire                 ,J01374,Transport Related Expenditure ,Contract Hire and Op Leasing  ,CC67,Mini Cab Hire -Soc Serv -Adult,800,962,2/29/2012,R,AERIAL CAR SERVICES LTD       
2012 - MAR,CS -Oth Operating Inc & Expend,Trading A/c Surpluses/Deficits,Transport-Contract Hire                 ,J01374,Transport Related Expenditure ,Contract Hire and Op Leasing  ,CC67,Mini Cab Hire -Soc Serv -Adult,801,588,2/29/2012,R,CAPITAL CARS                  
2012 - MAR,CS -Oth Operating Inc & Expend,Trading A/c Surpluses/Deficits,Transport-Contract Hire                 ,J01374,Transport Related Expenditure ,Contract Hire and Op Leasing  ,CC67,Mini Cab Hire -Soc Serv -Adult,802,"1,380.00",2/29/2012,R,BARCLAYS ASSET & SALES FINANCE
2012 - MAR,CS -Oth Operating Inc & Expend,Trading A/c Surpluses/Deficits,Transport-Contract Hire                 ,J01374,Transport Related Expenditure ,Contract Hire and Op Leasing  ,CC67,Mini Cab Hire -Soc Serv -Adult,803,672,2/29/2012,R,BARCLAYS ASSET & SALES FINANCE
2012 - MAR,CS -Oth Operating Inc & Expend,Trading A/c Surpluses/Deficits,Transport-Contract Hire                 ,J01374,Transport Related Expenditure ,Contract Hire and Op Leasing  ,CC67,Mini Cab Hire -Soc Serv -Adult,804,984,2/29/2012,R,BARCLAYS ASSET & SALES FINANCE
2012 - MAR,CS -Oth Operating Inc & Expend,Trading A/c Surpluses/Deficits,Transport-Contract Hire                 ,J01374,Transport Related Expenditure ,Contract Hire and Op Leasing  ,CC67,Mini Cab Hire -Soc Serv -Adult,805,"1,008.00",2/29/2012,R,BARCLAYS ASSET & SALES FINANCE
2012 - MAR,CS -Oth Operating Inc & Expend,Trading A/c Surpluses/Deficits,Transport-Contract Hire                 ,J01374,Transport Related Expenditure ,Contract Hire and Op Leasing  ,CC67,Mini Cab Hire -Soc Serv -Adult,806,512,2/29/2012,R,BARCLAYS ASSET & SALES FINANCE
2012 - MAR,CS -Oth Operating Inc & Expend,Trading A/c Surpluses/Deficits,Transport-Contract Hire                 ,J01374,Transport Related Expenditure ,Contract Hire and Op Leasing  ,CC67,Mini Cab Hire -Soc Serv -Adult,807,696,2/29/2012,R,BARCLAYS ASSET & SALES FINANCE
2012 - MAR,CS -Oth Operating Inc & Expend,Trading A/c Surpluses/Deficits,Transport-Contract Hire                 ,J01374,Transport Related Expenditure ,Contract Hire and Op Leasing  ,CC67,Mini Cab Hire -Soc Serv -Adult,808,812,2/29/2012,R,BARCLAYS ASSET & SALES FINANCE
2012 - MAR,CS -Oth Operating Inc & Expend,Trading A/c Surpluses/Deficits,Transport-Contract Hire                 ,J01374,Transport Related Expenditure ,Contract Hire and Op Leasing  ,CC67,Mini Cab Hire -Soc Serv -Adult,809,"1,260.00",2/29/2012,R,BARCLAYS ASSET & SALES FINANCE
2012 - MAR,CS -Oth Operating Inc & Expend,Trading A/c Surpluses/Deficits,Transport-Contract Hire                 ,J01374,Transport Related Expenditure ,Contract Hire and Op Leasing  ,CC67,Mini Cab Hire -Soc Serv -Adult,810,580,2/29/2012,R,BARCLAYS ASSET & SALES FINANCE
2012 - MAR,CS -Oth Operating Inc & Expend,Trading A/c Surpluses/Deficits,Transport-Contract Hire                 ,J01374,Transport Related Expenditure ,Contract Hire and Op Leasing  ,CC67,Mini Cab Hire -Soc Serv -Adult,811,624,2/29/2012,R,BARCLAYS ASSET & SALES FINANCE
2012 - MAR,CS -Oth Operating Inc & Expend,Trading A/c Surpluses/Deficits,Transport-Contract Hire                 ,J01374,Transport Related Expenditure ,Contract Hire and Op Leasing  ,CC67,Mini Cab Hire -Soc Serv -Adult,812,896,2/29/2012,R,BARCLAYS ASSET & SALES FINANCE
2012 - MAR,CS -Oth Operating Inc & Expend,Trading A/c Surpluses/Deficits,Transport-Contract Hire                 ,J01374,Transport Related Expenditure ,Contract Hire and Op Leasing  ,CC67,Mini Cab Hire -Soc Serv -Adult,813,"1,608.58",2/29/2012,R,BARCLAYS ASSET & SALES FINANCE
2012 - MAR,CS -Oth Operating Inc & Expend,Trading A/c Surpluses/Deficits,Transport-Contract Hire                 ,J01374,Transport Related Expenditure ,Contract Hire and Op Leasing  ,CC67,Mini Cab Hire -Soc Serv -Adult,814,810,2/29/2012,R,BARCLAYS ASSET & SALES FINANCE
2012 - MAR,CS -Oth Operating Inc & Expend,Trading A/c Surpluses/Deficits,Transport-Contract Hire                 ,J01374,Transport Related Expenditure ,Contract Hire and Op Leasing  ,CC67,Mini Cab Hire -Soc Serv -Adult,815,"1,146.00",3/18/2012,R,KINGSTON ACCESSIBILITY TRAN LT
2012 - MAR,CS -Oth Operating Inc & Expend,Trading A/c Surpluses/Deficits,Transport-Contract Hire                 ,J01374,Transport Related Expenditure ,Contract Hire and Op Leasing  ,CC68,Vehicle Hire Special Projects,816,"1,692.00",2/26/2012,R,KINGSTON ACCESSIBILITY TRAN LT
2012 - MAR,CS -Oth Operating Inc & Expend,Trading A/c Surpluses/Deficits,Transport-Contract Hire                 ,J01374,Transport Related Expenditure ,Contract Hire and Op Leasing  ,CC68,Vehicle Hire Special Projects,817,"1,716.00",3/4/2012,R,KINGSTON ACCESSIBILITY TRAN LT
2012 - MAR,CS -Oth Operating Inc & Expend,Trading A/c Surpluses/Deficits,Transport-Contract Hire                 ,J01374,Transport Related Expenditure ,Contract Hire and Op Leasing  ,CC68,Vehicle Hire Special Projects,818,768,2/29/2012,R,GALPINS SERVICE               
2012 - MAR,CS -Oth Operating Inc & Expend,Trading A/c Surpluses/Deficits,Transport-Contract Hire                 ,J01374,Transport Related Expenditure ,Contract Hire and Op Leasing  ,CC68,Vehicle Hire Special Projects,819,"1,088.00",2/29/2012,R,OLYMPIC (SOUTH) LIMITED       
2012 - MAR,CS -Oth Operating Inc & Expend,Trading A/c Surpluses/Deficits,Transport-Contract Hire                 ,J01374,Transport Related Expenditure ,Contract Hire and Op Leasing  ,CC68,Vehicle Hire Special Projects,820,"1,740.00",3/11/2012,R,KINGSTON ACCESSIBILITY TRAN LT
2012 - MAR,CS -Oth Operating Inc & Expend,Trading A/c Surpluses/Deficits,Transport-Contract Hire                 ,J01374,Transport Related Expenditure ,Contract Hire and Op Leasing  ,CC68,Vehicle Hire Special Projects,821,769,2/29/2012,R,BARCLAYS ASSET & SALES FINANCE
2012 - MAR,CS -Oth Operating Inc & Expend,Trading A/c Surpluses/Deficits,Transport-Contract Hire                 ,J01374,Transport Related Expenditure ,Contract Hire and Op Leasing  ,CC68,Vehicle Hire Special Projects,822,992,2/29/2012,R,BARCLAYS ASSET & SALES FINANCE
2012 - MAR,CS -Oth Operating Inc & Expend,Trading A/c Surpluses/Deficits,Transport-Contract Hire                 ,J01374,Transport Related Expenditure ,Contract Hire and Op Leasing  ,CC68,Vehicle Hire Special Projects,823,"1,344.00",2/29/2012,R,BARCLAYS ASSET & SALES FINANCE
2012 - MAR,CS -Oth Operating Inc & Expend,Trading A/c Surpluses/Deficits,Transport-Contract Hire                 ,J01374,Transport Related Expenditure ,Contract Hire and Op Leasing  ,CC68,Vehicle Hire Special Projects,824,"1,024.00",2/29/2012,R,BARCLAYS ASSET & SALES FINANCE
2012 - MAR,CS -Oth Operating Inc & Expend,Trading A/c Surpluses/Deficits,Transport-Contract Hire                 ,J01374,Transport Related Expenditure ,Contract Hire and Op Leasing  ,CC68,Vehicle Hire Special Projects,825,"2,100.00",2/29/2012,R,BARCLAYS ASSET & SALES FINANCE
2012 - MAR,CS -Oth Operating Inc & Expend,Trading A/c Surpluses/Deficits,Transport-Contract Hire                 ,J01374,Transport Related Expenditure ,Contract Hire and Op Leasing  ,CC68,Vehicle Hire Special Projects,826,"2,040.00",2/29/2012,R,BARCLAYS ASSET & SALES FINANCE
2012 - MAR,CS -Oth Operating Inc & Expend,Trading A/c Surpluses/Deficits,Transport-Contract Hire                 ,J01374,Transport Related Expenditure ,Contract Hire and Op Leasing  ,CC68,Vehicle Hire Special Projects,827,944.92,2/29/2012,R,OLYMPIC (SOUTH) LIMITED       
2012 - MAR,CS -Oth Operating Inc & Expend,Trading A/c Surpluses/Deficits,Transport-Contract Hire                 ,J01374,Transport Related Expenditure ,Contract Hire and Op Leasing  ,CC68,Vehicle Hire Special Projects,828,756,2/29/2012,R,BARCLAYS ASSET & SALES FINANCE
2012 - MAR,CS -Oth Operating Inc & Expend,Trading A/c Surpluses/Deficits,Transport-Contract Hire                 ,J01374,Transport Related Expenditure ,Contract Hire and Op Leasing  ,CC68,Vehicle Hire Special Projects,829,"1,788.00",3/18/2012,R,KINGSTON ACCESSIBILITY TRAN LT
2012 - MAR,CS -Oth Operating Inc & Expend,Trading A/c Surpluses/Deficits,Transport-Contract Hire                 ,J01374,Supplies & Services           ,Equip Furniture/Materials     ,DA09,Equip-Purchases,830,605.23,2/27/2012,R,C.N. UNWIN LTD                
2012 - MAR,CS -Oth Operating Inc & Expend,Trading A/c Surpluses/Deficits,Transport-Workshop                      ,J01376,Premises Related Expenditure  ,RepairsAlterations&MtceOfBldgs,BA01,DDM - General Building,831,"2,820.00",10/20/2011,R,AIR SURVEYS  LIMITED          
2012 - MAR,CS -Oth Operating Inc & Expend,Trading A/c Surpluses/Deficits,Transport-Workshop                      ,J01376,Premises Related Expenditure  ,RepairsAlterations&MtceOfBldgs,BA03,DDM - Mechanical,832,501.37,3/20/2012,R,COFELY LIMITED                
2012 - MAR,CS -Oth Operating Inc & Expend,Trading A/c Surpluses/Deficits,Transport-Workshop                      ,J01376,Premises Related Expenditure  ,RepairsAlterations&MtceOfBldgs,BA05,DDM - Electrical,833,532.02,2/20/2012,R,COFELY LIMITED                
2012 - MAR,CS -Oth Operating Inc & Expend,Trading A/c Surpluses/Deficits,Transport-Workshop                      ,J01376,Premises Related Expenditure  ,RepairsAlterations&MtceOfBldgs,BA05,DDM - Electrical,834,"1,082.65",12/12/2011,R,CHUBB FIRE LIMITED            
2012 - MAR,CS -Oth Operating Inc & Expend,Trading A/c Surpluses/Deficits,Transport-Workshop                      ,J01376,Transport Related Expenditure ,Direct Transport Costs        ,CA05,Vehicle MOTs,835,"1,500.00",3/30/2012,R,V.O.S.A                       
2012 - MAR,Cultural Env Reg&Plan Services,SMSS (Env),Estates Mgt                             ,J01420,Supplies & Services           ,Services                      ,DF03,Consultants,836,"2,250.00",2/27/2012,R,QUINTON SCOTT                 
2012 - MAR,Cultural Env Reg&Plan Services,SMSS (Env),Estates Mgt                             ,J01420,Supplies & Services           ,Grants and Subscriptions      ,DJ04,Subscriptions,837,550,2/22/2012,R,CIPFA                         
2012 - MAR,CS -Oth Operating Inc & Expend,INVESTMENT PROPERTIES,Pollards Hill Comm Cntre                ,J08074,Premises Related Expenditure  ,RepairsAlterations&MtceOfBldgs,BA03,DDM - Mechanical,838,692.01,3/20/2012,R,COFELY LIMITED                
2012 - MAR,CS -Oth Operating Inc & Expend,INVESTMENT PROPERTIES,Pollards Hill Comm Cntre                ,J08074,Premises Related Expenditure  ,Energy Costs                  ,BB02,Electricity,839,908.34,2/28/2012,R,SWALEC                        
2012 - MAR,CS -Oth Operating Inc & Expend,INVESTMENT PROPERTIES,Pollards Hill Comm Cntre                ,J08074,Premises Related Expenditure  ,Energy Costs                  ,BB03,Gas (incl. Butane),840,"2,309.13",2/24/2012,R,FLOGAS CO UK                  
2012 - MAR,Childrens & Education Services,Assuring Access To Schools,Stouthall                               ,K09082,Premises Related Expenditure  ,Rents                         ,BC01,Miscellaneous Rents,841,"4,125.00",3/12/2012,R,ROBERT MORGAN & SONS LTD      
2012 - MAR,Cultural Env Reg&Plan Services,SMSS (Cult),Greenspaces Team (General)              ,P04004,Transport Related Expenditure ,Direct Transport Costs        ,CA01,Petrol Derv & Oil,842,"3,368.87",2/15/2012,R,KENT COUNTY COUNCIL           
2012 - MAR,Cultural Env Reg&Plan Services,SMSS (Cult),Leisure Dev  Service Support            ,P04060,Supplies & Services           ,Equip Furniture/Materials     ,DA30,Memorial seats - purchase,843,583,3/19/2012,R,WOODCRAFT UK                  
2012 - MAR,Cultural Env Reg&Plan Services,SMSS (Cult),Leisure Dev  Service Support            ,P04060,Supplies & Services           ,Equip Furniture/Materials     ,DA30,Memorial seats - purchase,844,563,3/19/2012,R,WOODCRAFT UK                  
2012 - MAR,Cultural Env Reg&Plan Services,SMSS (Cult),Leisure Dev  Service Support            ,P04060,Supplies & Services           ,Equip Furniture/Materials     ,DA30,Memorial seats - purchase,845,703.6,3/19/2012,R,WOODCRAFT UK                  
2012 - MAR,Cultural Env Reg&Plan Services,SMSS (Cult),Leisure Dev  Service Support            ,P04060,Supplies & Services           ,Expenses                      ,DH02,Conferences,846,750,3/20/2012,R,THE EMERGENCY PLANNING COLLEGE
2012 - MAR,Cultural Env Reg&Plan Services,SMSS (Cult),Leisure Developmt Manager               ,P04061,Supplies & Services           ,Services                      ,DF03,Consultants,847,"9,000.00",3/7/2012,R,BHPR ASSOCIATES LIMITED       
2012 - MAR,Cultural Env Reg&Plan Services,SMSS (Cult),Leisure Developmt Manager               ,P04061,Supplies & Services           ,Expenses                      ,DH50,Special Projects,848,924,3/9/2012,R,DG3 EUROPE LIMITED            
2012 - MAR,Cultural Env Reg&Plan Services,SMSS (Cult),Leisure Developmt Manager               ,P04061,Supplies & Services           ,Expenses                      ,DH50,Special Projects,849,"1,000.00",3/22/2012,R,GREENWICH LEISURE LTD         
2012 - MAR,Cultural Env Reg&Plan Services,SMSS (Cult),Leisure Developmt Manager               ,P04061,Supplies & Services           ,Expenses                      ,DH50,Special Projects,850,"5,000.00",3/23/2012,R,MANGO CREATIVE STUDIO LTD     
2012 - MAR,Cultural Env Reg&Plan Services,SMSS (Cult),Leisure Developmt Manager               ,P04061,Supplies & Services           ,Expenses                      ,DH52,London Youth Games,851,"2,930.00",2/1/2012,R,LONDON YOUTH GAMES LIMITED    
2012 - MAR,Cultural Env Reg&Plan Services,Open Spaces,"Pks,Rec Grds (Unloc)                    ",P05005,Premises Related Expenditure  ,Ground Maintenance Costs      ,BL02,Maintenance of paths,852,"1,450.00",2/20/2012,R,REDACTED
2012 - MAR,Cultural Env Reg&Plan Services,Open Spaces,"Pks,Rec Grds (Unloc)                    ",P05005,Premises Related Expenditure  ,Ground Maintenance Costs      ,BL03,Maintenance of Grounds,853,"4,145.00",2/24/2012,R,BARKLANDS TREE SPECIALISTS    
2012 - MAR,Cultural Env Reg&Plan Services,Open Spaces,"Pks,Rec Grds (Unloc)                    ",P05005,Premises Related Expenditure  ,Ground Maintenance Costs      ,BL03,Maintenance of Grounds,854,"6,755.00",10/11/2011,R,TREELINE SERVICES LTD         
2012 - MAR,Cultural Env Reg&Plan Services,Open Spaces,"Pks,Rec Grds (Unloc)                    ",P05005,Premises Related Expenditure  ,Ground Maintenance Costs      ,BL03,Maintenance of Grounds,855,520,3/8/2012,R,TREELINE SERVICES LTD         
2012 - MAR,Cultural Env Reg&Plan Services,Open Spaces,"Pks,Rec Grds (Unloc)                    ",P05005,Premises Related Expenditure  ,Ground Maintenance Costs      ,BL03,Maintenance of Grounds,856,"9,720.00",2/29/2012,R,TREELINE SERVICES LTD         
2012 - MAR,Cultural Env Reg&Plan Services,Open Spaces,"Pks,Rec Grds (Unloc)                    ",P05005,Premises Related Expenditure  ,Ground Maintenance Costs      ,BL03,Maintenance of Grounds,857,"1,900.00",3/20/2012,R,TREELINE SERVICES LTD         
